Body name,Service Area,Dept,Expenses Type,Detailed Expenses Type,Transaction number,Expense Code,Date,Amount,Capital/Revenue,Supplier Name,Supplier ID
WANDSWORTH COUNCIL,CS,ADMINISTRATION,DIRECT2,AGENCY STAFF,20281058,100300510,12-May-14,497.36,Revenue,MATRIX SCM LIMITED,2014926
WANDSWORTH COUNCIL,CS,ADMINISTRATION,DIRECT2,AGENCY STAFF,20282644,100300510,20-May-14,"1,106.19",Revenue,MATRIX SCM LIMITED,2014926
WANDSWORTH COUNCIL,CS,FINANCE,"REPAIRS, ALTERATIONS & MTCE","REPS, ALTS & MTCE-BUILDINGS",397551,100410000,01-May-14,681.52,Revenue,T BROWN GROUP LTD,SP0001050
WANDSWORTH COUNCIL,CS,FINANCE,"REPAIRS, ALTERATIONS & MTCE","REPS, ALTS & MTCE-BUILDINGS",397552,100410000,01-May-14,"1,824.96",Revenue,T BROWN GROUP LTD,SP0001050
WANDSWORTH COUNCIL,CS,ENVIRONMENT & COMMUNITY,GROUNDS MAINTENANCE,CONSULTANTS FEE-LA TREE SURVEY,20283639,100412160,30-May-14,21.84,Revenue,QUADRON SERVICES LIMITED,2016712
WANDSWORTH COUNCIL,CS,ADMINISTRATION,"EQUIPMENT, FURNITURE & MATS",EQUIP.FURN & MATS-REPS & MTCE,20282939,100430010,22-May-14,"1,169.19",Revenue,PEMBERTONS RESIDENTIAL LTD,2012901
WANDSWORTH COUNCIL,CS,ADMINISTRATION,SERVICES,CONSULTANTS FEES,20282933,100534200,22-May-14,"12,000.00",Revenue,MLM CONSULTING ENGINEERS LTD,2018873
WANDSWORTH COUNCIL,CS,ADMINISTRATION,SERVICES,CONSULTANTS FEES,20282934,100534200,22-May-14,"5,525.00",Revenue,TTP Consulting,2991000
WANDSWORTH COUNCIL,CS,ADMINISTRATION,SERVICES,FEASIBILITY STUDIES,20283224,100634380,30-May-14,500.00,Revenue,CAD-CAPTURE DATA SERVICES LTD,2013447
WANDSWORTH COUNCIL,CS,ADMINISTRATION,SERVICES,PROJECT WORK,20282880,102034800,22-May-14,"23,594.00",Revenue,WANDSWORTH CARE ALLIANCE,2006618
WANDSWORTH COUNCIL,ERS,ADMINISTRATION,SERVICES,PROJECT WORK,20282453,102234800,20-May-14,"4,602.50",Revenue,ELAYS NETWORK,2003236
WANDSWORTH COUNCIL,CS,ADMINISTRATION,DIRECT2,AGENCY STAFF,20281058,103000510,12-May-14,"1,854.22",Revenue,MATRIX SCM LIMITED,2014926
WANDSWORTH COUNCIL,CS,ADMINISTRATION,DIRECT2,AGENCY STAFF,20281539,103000510,12-May-14,"3,118.08",Revenue,MATRIX SCM LIMITED,2014926
WANDSWORTH COUNCIL,CS,ADMINISTRATION,DIRECT2,AGENCY STAFF,20282644,103000510,20-May-14,866.47,Revenue,MATRIX SCM LIMITED,2014926
WANDSWORTH COUNCIL,CS,ADMINISTRATION,PRINTING STAT & GEN OFFICE EXP,PRINTING AND STATIONERY,20283411,103033420,29-May-14,"4,591.38",Revenue,RICOH UK LTD,2002588
WANDSWORTH COUNCIL,CS,ADMINISTRATION,COMMUNICATIONS & COMP,COMMUNICATIONS - POSTAGE,20282646,103036000,20-May-14,474.90,Revenue,ROYAL MAIL,2009044
WANDSWORTH COUNCIL,CS,ADMINISTRATION,DIRECT2,AGENCY STAFF,20281539,103100510,12-May-14,119.68,Revenue,MATRIX SCM LIMITED,2014926
WANDSWORTH COUNCIL,CS,ADMINISTRATION,DIRECT2,AGENCY STAFF,20282644,103100510,20-May-14,437.08,Revenue,MATRIX SCM LIMITED,2014926
WANDSWORTH COUNCIL,CS,ADMINISTRATION,"EQUIPMENT, FURNITURE & MATS",FLOWERS,20283399,103130170,29-May-14,542.00,Revenue,PATRICIA WONG,2001370
WANDSWORTH COUNCIL,CS,ADMINISTRATION,"EQUIPMENT, FURNITURE & MATS",FLOWERS,20283400,103130170,29-May-14,542.00,Revenue,PATRICIA WONG,2001370
WANDSWORTH COUNCIL,CS,ADMINISTRATION,"EQUIPMENT, FURNITURE & MATS",FLOWERS,20283401,103130170,29-May-14,542.00,Revenue,PATRICIA WONG,2001370
WANDSWORTH COUNCIL,CS,ADMINISTRATION,MISC,MISCELLANEOUS EXPENSES,20283402,103138500,29-May-14,780.00,Revenue,MEDIA ON DEMAND LTD,2013042
WANDSWORTH COUNCIL,CS,ENVIRONMENT & COMMUNITY,COMMUNICATIONS & COMP,I.T. DEVELOPMENTS,413169,103436200,29-May-14,"2,245.80",Revenue,WAGSTAFF INTERIORS GROUP,SP0005775
WANDSWORTH COUNCIL,ASC,ADMINISTRATION,HEALTH,COMMUNITY OUTREACH HEALTH CHCK,20282867,105341300,22-May-14,"19,200.00",Revenue,SOLUTIONS 4 HEALTH,2017583
WANDSWORTH COUNCIL,ASC,ADMINISTRATION,HEALTH,ADULT WEIGHT MGT SERVICE,20281543,105641230,12-May-14,"4,850.00",Revenue,WEIGHT WATCHERS LTD,2018905
WANDSWORTH COUNCIL,ASC,ADMINISTRATION,"EQUIPMENT, FURNITURE & MATS",TOILET AND MEDICAL SUPPLIES,20282093,106030460,15-May-14,563.04,Revenue,KCA,2017193
WANDSWORTH COUNCIL,ASC,ADMINISTRATION,"EQUIPMENT, FURNITURE & MATS",TOILET AND MEDICAL SUPPLIES,20282094,106030460,15-May-14,563.04,Revenue,KCA,2017193
WANDSWORTH COUNCIL,ASC,ADMINISTRATION,"EQUIPMENT, FURNITURE & MATS",TOILET AND MEDICAL SUPPLIES,20281534,106030460,12-May-14,462.00,Revenue,HOME HEALTH UK LTD,2018851
WANDSWORTH COUNCIL,ASC,ADMINISTRATION,"EQUIPMENT, FURNITURE & MATS",TOILET AND MEDICAL SUPPLIES,20281538,106030460,12-May-14,693.00,Revenue,HOME HEALTH UK LTD,2018851
WANDSWORTH COUNCIL,ASC,ADMINISTRATION,"EQUIPMENT, FURNITURE & MATS",TOILET AND MEDICAL SUPPLIES,20282097,106030460,15-May-14,424.00,Revenue,HOME HEALTH UK LTD,2018851
WANDSWORTH COUNCIL,ASC,ADMINISTRATION,HEALTH,TIER 2&3 COMMUNITY SERVICES,20282096,106041250,15-May-14,554.40,Revenue,KCA,2017193
WANDSWORTH COUNCIL,ASC,ADMINISTRATION,HEALTH,YOUNG PEOPLES HEALTH AGENCY,20282407,106341980,16-May-14,"33,540.00",Revenue,CATCH 22,2005902
WANDSWORTH COUNCIL,ASC,ENVIRONMENT & COMMUNITY,HEALTH,THIRD PARTY PYMT - HEALTH,408691,106741130,22-May-14,"9,109.63",Revenue,THE BREASTFEEDING NETWORK LTD,SP0006832
WANDSWORTH COUNCIL,ASC,ADMINISTRATION,HEALTH,MACMILLAN GP FACILITATOR,20281056,107141260,12-May-14,"1,000.00",Revenue,DR ANTHONY CUNLIFFE,2017228
WANDSWORTH COUNCIL,ASC,ADMINISTRATION,SERVICES,PROJECT WORK,20282868,108034800,22-May-14,"36,105.00",Revenue,TOGETHER WORKING FOR WELLBEING,2008043
WANDSWORTH COUNCIL,NGF HS,ADMINISTRATION,SERVICES,HIPS,20282504,110034460,21-May-14,480.00,Revenue,GORDON BROWN,2001802
WANDSWORTH COUNCIL,NGF HS,ADMINISTRATION,SERVICES,HIPS,20283204,110034460,28-May-14,480.00,Revenue,GORDON BROWN,2001802
WANDSWORTH COUNCIL,NGF CS,FINANCE,ENERGY,ENERGY COSTS - ELECTRICITY,20283421,111010700,29-May-14,745.14,Revenue,EDF ENERGY CUSTOMER FIELD SERVICES,2012299
WANDSWORTH COUNCIL,NGF CS,ADMINISTRATION,PRIVATE,REFUSE COLLECTN & PEST CONTROL,20281922,111045500,15-May-14,"1,202.69",Revenue,SITA UK LTD,2003271
WANDSWORTH COUNCIL,NGF CS,ADMINISTRATION,PRIVATE,REFUSE COLLECTN & PEST CONTROL,20281923,111045500,15-May-14,528.96,Revenue,SITA UK LTD,2003271
WANDSWORTH COUNCIL,NGF CS,ENVIRONMENT & COMMUNITY,PRIVATE,GENERAL CONTRACT WORK,20283639,111245370,30-May-14,2.51,Revenue,QUADRON SERVICES LIMITED,2016712
WANDSWORTH COUNCIL,NGF CS,ENVIRONMENT & COMMUNITY,PRIVATE,GENERAL CONTRACT WORK,20283639,111345370,30-May-14,0.52,Revenue,QUADRON SERVICES LIMITED,2016712
WANDSWORTH COUNCIL,NGF CS,ADMINISTRATION,PRIVATE,REFUSE COLLECTN & PEST CONTROL,20281920,111545500,15-May-14,683.53,Revenue,SITA UK LTD,2003271
WANDSWORTH COUNCIL,NGF CS,FINANCE,"REPAIRS, ALTERATIONS & MTCE","REPS, ALTS & MTCE-BUILDINGS",407016,11181000L08301,19-May-14,550.40,Revenue,D H CROFTS LTD,SP0000076
WANDSWORTH COUNCIL,NGF CS,FINANCE,"REPAIRS, ALTERATIONS & MTCE","REPS, ALTS & MTCE-BUILDINGS",407093,11181000L08301,19-May-14,"1,127.20",Revenue,D H CROFTS LTD,SP0000076
WANDSWORTH COUNCIL,NGF CS,FINANCE,"REPAIRS, ALTERATIONS & MTCE","REPS, ALTS & MTCE-BUILDINGS",407107,11181000L08301,19-May-14,547.78,Revenue,D H CROFTS LTD,SP0000076
WANDSWORTH COUNCIL,NGF CS,FINANCE,"REPAIRS, ALTERATIONS & MTCE","REPS, ALTS & MTCE-BUILDINGS",403410,11181000L08301,13-May-14,"1,583.00",Revenue,PIGGOTTS CO LTD,SP0000293
WANDSWORTH COUNCIL,NGF CS,FINANCE,"REPAIRS, ALTERATIONS & MTCE","REPS, ALTS & MTCE-BUILDINGS",397383,11181000L0830A,01-May-14,758.94,Revenue,ACRE LIFTS LTD,SP0000610
WANDSWORTH COUNCIL,NGF CS,FINANCE,"REPAIRS, ALTERATIONS & MTCE","REPS, ALTS & MTCE-BUILDINGS",407125,11181000L0830A,19-May-14,80.00,Revenue,DOWNS FLOORING SPECIALIST,SP0000833
WANDSWORTH COUNCIL,NGF CS,FINANCE,"REPAIRS, ALTERATIONS & MTCE","REPS, ALTS & MTCE-BUILDINGS",407125,11181000L0830A,19-May-14,400.00,Revenue,DOWNS FLOORING SPECIALIST,SP0000833
WANDSWORTH COUNCIL,NGF CS,FINANCE,"REPAIRS, ALTERATIONS & MTCE","REPS, ALTS & MTCE-BUILDINGS",412315,11181000L0830A,27-May-14,624.00,Revenue,SMS ENVIRONMENTAL LIMITED,SP0001007
WANDSWORTH COUNCIL,NGF CS,FINANCE,"REPAIRS, ALTERATIONS & MTCE","REPS, ALTS & MTCE-BUILDINGS",413927,11181000L0830A,30-May-14,906.25,Revenue,PHOENIX ECS LTD,SP0001284
WANDSWORTH COUNCIL,NGF CS,FINANCE,"REPAIRS, ALTERATIONS & MTCE","REPS, ALTS & MTCE-BUILDINGS",413928,11181000L0830A,30-May-14,"1,076.17",Revenue,PHOENIX ECS LTD,SP0001284
WANDSWORTH COUNCIL,NGF CS,FINANCE,"REPAIRS, ALTERATIONS & MTCE","REPS, ALTS & MTCE-BUILDINGS",413929,11181000L0830A,30-May-14,"1,402.50",Revenue,PHOENIX ECS LTD,SP0001284
WANDSWORTH COUNCIL,NGF CS,FINANCE,"REPAIRS, ALTERATIONS & MTCE","REPS, ALTS & MTCE-BUILDINGS",413930,11181000L0830A,30-May-14,"1,398.85",Revenue,PHOENIX ECS LTD,SP0001284
WANDSWORTH COUNCIL,NGF CS,FINANCE,"REPAIRS, ALTERATIONS & MTCE","REPS, ALTS & MTCE-BUILDINGS",413932,11181000L0830A,30-May-14,"1,267.60",Revenue,PHOENIX ECS LTD,SP0001284
WANDSWORTH COUNCIL,NGF CS,FINANCE,"REPAIRS, ALTERATIONS & MTCE","REPS, ALTS & MTCE-BUILDINGS",404498,11181000L0830D,14-May-14,"1,185.15",Revenue,D H CROFTS LTD,SP0000076
WANDSWORTH COUNCIL,NGF CS,FINANCE,"REPAIRS, ALTERATIONS & MTCE","REPS, ALTS & MTCE-BUILDINGS",397560,11181000L0830E,01-May-14,945.76,Revenue,T BROWN GROUP LTD,SP0001050
WANDSWORTH COUNCIL,NGF CS,FINANCE,"REPAIRS, ALTERATIONS & MTCE","REPS, ALTS & MTCE-BUILDINGS",397526,11181000L0830F,01-May-14,"1,084.89",Revenue,DAVID BALL RESTORATION (LONDON) LIMITED,SP0001030
WANDSWORTH COUNCIL,NGF CS,FINANCE,"REPAIRS, ALTERATIONS & MTCE","REPS, ALTS & MTCE-BUILDINGS",407076,11181000L0830K,19-May-14,498.24,Revenue,D H CROFTS LTD,SP0000076
WANDSWORTH COUNCIL,NGF CS,FINANCE,"REPAIRS, ALTERATIONS & MTCE","REPS, ALTS & MTCE-BUILDINGS",397556,11181000L0830V,01-May-14,960.84,Revenue,T BROWN GROUP LTD,SP0001050
WANDSWORTH COUNCIL,NGF CS,FINANCE,"REPAIRS, ALTERATIONS & MTCE","REPS, ALTS & MTCE-BUILDINGS",399574,11181000L0830V,07-May-14,425.50,Revenue,COMMERCIAL KITCHEN SERVICES(LONDON) LTD,SP0001075
WANDSWORTH COUNCIL,NGF CS,FINANCE,"REPAIRS, ALTERATIONS & MTCE","REPS, ALTS & MTCE-BUILDINGS",407072,11181000L08331,19-May-14,"2,211.50",Revenue,D H CROFTS LTD,SP0000076
WANDSWORTH COUNCIL,NGF CS,FINANCE,"REPAIRS, ALTERATIONS & MTCE","REPS, ALTS & MTCE-BUILDINGS",413839,11181000L08331,30-May-14,"1,299.00",Revenue,NATIONAL CRADLE MAINTENANCE LTD,SP0000407
WANDSWORTH COUNCIL,NGF CS,FINANCE,"REPAIRS, ALTERATIONS & MTCE","REPS, ALTS & MTCE-BUILDINGS",413831,11181000L08331,30-May-14,"6,484.00",Revenue,ELECTROLOK COMPANY (SECURITY) LTD,SP0000966
WANDSWORTH COUNCIL,NGF CS,FINANCE,"REPAIRS, ALTERATIONS & MTCE","REPS, ALTS & MTCE-BUILDINGS",397410,11181000L08331,01-May-14,496.00,Revenue,SMS ENVIRONMENTAL LIMITED,SP0001007
WANDSWORTH COUNCIL,NGF CS,FINANCE,"REPAIRS, ALTERATIONS & MTCE","REPS, ALTS & MTCE-BUILDINGS",413849,11181000L08331,30-May-14,496.00,Revenue,SMS ENVIRONMENTAL LIMITED,SP0001007
WANDSWORTH COUNCIL,NGF CS,FINANCE,"REPAIRS, ALTERATIONS & MTCE","REPS, ALTS & MTCE-BUILDINGS",404487,11181000L08331,14-May-14,"1,995.00",Revenue,SESAME ACCESS SYSTEMS LTD,SP0001654
WANDSWORTH COUNCIL,NGF CS,FINANCE,"REPAIRS, ALTERATIONS & MTCE","REPS, ALTS & MTCE-BUILDINGS",407121,11181000L08335,19-May-14,594.80,Revenue,D H CROFTS LTD,SP0000076
WANDSWORTH COUNCIL,NGF CS,FINANCE,"REPAIRS, ALTERATIONS & MTCE","REPS, ALTS & MTCE-BUILDINGS",413830,11181000L08335,30-May-14,430.00,Revenue,ELECTROLOK COMPANY (SECURITY) LTD,SP0000966
WANDSWORTH COUNCIL,NGF CS,FINANCE,"REPAIRS, ALTERATIONS & MTCE","REPS, ALTS & MTCE-BUILDINGS",413833,11181000L08337,30-May-14,"2,503.00",Revenue,ELECTROLOK COMPANY (SECURITY) LTD,SP0000966
WANDSWORTH COUNCIL,NGF CS,FINANCE,"REPAIRS, ALTERATIONS & MTCE","REPS, ALTS & MTCE-BUILDINGS",397533,11181000L0833A,01-May-14,"2,678.17",Revenue,D H CROFTS LTD,SP0000076
WANDSWORTH COUNCIL,NGF CS,FINANCE,"REPAIRS, ALTERATIONS & MTCE","REPS, ALTS & MTCE-BUILDINGS",402540,11181000L0833A,12-May-14,"2,000.00",Revenue,D H CROFTS LTD,SP0000076
WANDSWORTH COUNCIL,NGF CS,FINANCE,"REPAIRS, ALTERATIONS & MTCE","REPS, ALTS & MTCE-BUILDINGS",402541,11181000L0833A,12-May-14,"2,000.00",Revenue,D H CROFTS LTD,SP0000076
WANDSWORTH COUNCIL,NGF CS,FINANCE,"REPAIRS, ALTERATIONS & MTCE","REPS, ALTS & MTCE-BUILDINGS",402542,11181000L0833A,12-May-14,"2,000.00",Revenue,D H CROFTS LTD,SP0000076
WANDSWORTH COUNCIL,NGF CS,FINANCE,"REPAIRS, ALTERATIONS & MTCE","REPS, ALTS & MTCE-BUILDINGS",413840,11181000L0833A,30-May-14,"1,064.00",Revenue,NATIONAL CRADLE MAINTENANCE LTD,SP0000407
WANDSWORTH COUNCIL,NGF CS,FINANCE,"REPAIRS, ALTERATIONS & MTCE","REPS, ALTS & MTCE-BUILDINGS",412241,11181000L0833A,27-May-14,509.00,Revenue,GREENFLOW,SP0000895
WANDSWORTH COUNCIL,NGF CS,FINANCE,"REPAIRS, ALTERATIONS & MTCE","REPS, ALTS & MTCE-BUILDINGS",413832,11181000L0833A,30-May-14,"5,618.00",Revenue,ELECTROLOK COMPANY (SECURITY) LTD,SP0000966
WANDSWORTH COUNCIL,NGF CS,FINANCE,"REPAIRS, ALTERATIONS & MTCE","REPS, ALTS & MTCE-BUILDINGS",397411,11181000L0833A,01-May-14,496.00,Revenue,SMS ENVIRONMENTAL LIMITED,SP0001007
WANDSWORTH COUNCIL,NGF CS,FINANCE,"REPAIRS, ALTERATIONS & MTCE","REPS, ALTS & MTCE-BUILDINGS",413851,11181000L0833A,30-May-14,496.00,Revenue,SMS ENVIRONMENTAL LIMITED,SP0001007
WANDSWORTH COUNCIL,NGF CS,FINANCE,"REPAIRS, ALTERATIONS & MTCE","REPS, ALTS & MTCE-BUILDINGS",413838,11181000L0833B,30-May-14,"1,432.00",Revenue,ELECTROLOK COMPANY (SECURITY) LTD,SP0000966
WANDSWORTH COUNCIL,NGF CS,FINANCE,"REPAIRS, ALTERATIONS & MTCE","REPS, ALTS & MTCE-BUILDINGS",413828,11181000L0833C,30-May-14,"1,432.00",Revenue,ELECTROLOK COMPANY (SECURITY) LTD,SP0000966
WANDSWORTH COUNCIL,NGF CS,FINANCE,"REPAIRS, ALTERATIONS & MTCE","REPS, ALTS & MTCE-BUILDINGS",413827,11181000L0833D,30-May-14,"1,289.00",Revenue,ELECTROLOK COMPANY (SECURITY) LTD,SP0000966
WANDSWORTH COUNCIL,NGF CS,FINANCE,"REPAIRS, ALTERATIONS & MTCE","REPS, ALTS & MTCE-BUILDINGS",413829,11181000L0833E,30-May-14,"1,146.00",Revenue,ELECTROLOK COMPANY (SECURITY) LTD,SP0000966
WANDSWORTH COUNCIL,NGF CS,FINANCE,"REPAIRS, ALTERATIONS & MTCE","REPS, ALTS & MTCE-BUILDINGS",413836,11181000L0833F,30-May-14,"1,003.00",Revenue,ELECTROLOK COMPANY (SECURITY) LTD,SP0000966
WANDSWORTH COUNCIL,NGF CS,FINANCE,"REPAIRS, ALTERATIONS & MTCE","REPS, ALTS & MTCE-BUILDINGS",413837,11181000L0833K,30-May-14,"1,289.00",Revenue,ELECTROLOK COMPANY (SECURITY) LTD,SP0000966
WANDSWORTH COUNCIL,NGF CS,FINANCE,"REPAIRS, ALTERATIONS & MTCE","REPS, ALTS & MTCE-BUILDINGS",413835,11181000L0833V,30-May-14,"2,292.00",Revenue,ELECTROLOK COMPANY (SECURITY) LTD,SP0000966
WANDSWORTH COUNCIL,NGF CS,FINANCE,"REPAIRS, ALTERATIONS & MTCE","REPS, ALTS & MTCE-BUILDINGS",397625,11181000L0833V,01-May-14,"1,336.24",Revenue,T BROWN GROUP LTD,SP0001050
WANDSWORTH COUNCIL,NGF CS,ADMINISTRATION,MISC,MISCELLANEOUS EXPENSES,20283233,111938500,30-May-14,"1,677.00",Revenue,OASIS PRODUCTS VENDING SERVICES LIMITED,2003259
WANDSWORTH COUNCIL,NGF CS,ADMINISTRATION,GROUNDS MAINTENANCE,OCS-P&OS LITTER,20281918,112011210,15-May-14,169.57,Revenue,SITA UK LTD,2003271
WANDSWORTH COUNCIL,NGF CS,ADMINISTRATION,GROUNDS MAINTENANCE,OCS-P&OS SPTS PREM CLEAN,20281918,112011220,15-May-14,169.57,Revenue,SITA UK LTD,2003271
WANDSWORTH COUNCIL,NGF CS,ADMINISTRATION,GROUNDS MAINTENANCE,OCS-P&OS SPORTS PROV,20281918,112011230,15-May-14,169.60,Revenue,SITA UK LTD,2003271
WANDSWORTH COUNCIL,NGF CS,ADMINISTRATION,PRIVATE,REFUSE COLLECTN & PEST CONTROL,20281918,112045500,15-May-14,169.57,Revenue,SITA UK LTD,2003271
WANDSWORTH COUNCIL,NGF CS,ENVIRONMENT & COMMUNITY,GROUNDS MAINTENANCE,OCS-P&OS EVENTS,20283639,112111180,30-May-14,3.76,Revenue,QUADRON SERVICES LIMITED,2016712
WANDSWORTH COUNCIL,NGF CS,ADMINISTRATION,PRIVATE,REFUSE COLLECTN & PEST CONTROL,20281915,112945500,15-May-14,678.31,Revenue,SITA UK LTD,2003271
WANDSWORTH COUNCIL,NGF CS,ADMINISTRATION,PRIVATE,GENERAL CONTRACT WORK,20283210,113045370,28-May-14,"3,420.00",Revenue,CAMELOT PROPERTY MANAGEMENT LTD,2009040
WANDSWORTH COUNCIL,NGF CS,ENVIRONMENT & COMMUNITY,PRIVATE,GENERAL CONTRACT WORK,20283639,113445370,30-May-14,13.53,Revenue,QUADRON SERVICES LIMITED,2016712
WANDSWORTH COUNCIL,NGF CS,ADMINISTRATION,CLEANING & DOMESTIC SUPPLIES,CLEANING CONTRACT,20281830,113813020,15-May-14,"41,854.79",Revenue,OCEAN INTEGRATED SERVICES LTD,2009026
WANDSWORTH COUNCIL,NGF CS,ADMINISTRATION,CLEANING & DOMESTIC SUPPLIES,CLEANING CONTRACT,20281932,113813020,15-May-14,"2,095.15",Revenue,PHS GROUP PLC,2009031
WANDSWORTH COUNCIL,NGF CS,ADMINISTRATION,CLEANING & DOMESTIC SUPPLIES,WINDOW CLEANING,20281651,113813060,15-May-14,"5,920.00",Revenue,PARKERS CLEANING CONTRACTORS LTD,2004677
WANDSWORTH COUNCIL,NGF CS,ADMINISTRATION,CLEANING & DOMESTIC SUPPLIES,WINDOW CLEANING,20283238,113813060,30-May-14,"1,130.00",Revenue,PARKERS CLEANING CONTRACTORS LTD,2004677
WANDSWORTH COUNCIL,NGF CS,ADMINISTRATION,COMMUNICATIONS & COMP,MOBILE PHONES,20282774,114136380,22-May-14,50.00,Revenue,VODAFONE CORPORATE,2009219
WANDSWORTH COUNCIL,NGF CDC,ADMINISTRATION,"REPAIRS, ALTERATIONS & MTCE",REMOVALS & REORGANISATIONS,20282060,11421014K07077,15-May-14,780.00,Revenue,JT & SONS RELOCATIONS,2018113
WANDSWORTH COUNCIL,NGF CDC,ADMINISTRATION,"REPAIRS, ALTERATIONS & MTCE",REMOVALS & REORGANISATIONS,20282060,11421014K07077,15-May-14,78.00,Revenue,JT & SONS RELOCATIONS,2018113
WANDSWORTH COUNCIL,NGF CDC,ADMINISTRATION,"REPAIRS, ALTERATIONS & MTCE",REMOVALS & REORGANISATIONS,20283235,11421014K07117,30-May-14,"1,580.76",Revenue,OFFICE DEPOT UK LTD,2000101
WANDSWORTH COUNCIL,NGF CDC,ADMINISTRATION,"REPAIRS, ALTERATIONS & MTCE",REMOVALS & REORGANISATIONS,20281824,11421014K07187,15-May-14,"7,292.12",Revenue,WAGSTAFF INTERIORS GROUP,2004128
WANDSWORTH COUNCIL,NGF CDC,ADMINISTRATION,"REPAIRS, ALTERATIONS & MTCE",REMOVALS & REORGANISATIONS,20282061,11421014K07187,15-May-14,480.00,Revenue,JT & SONS RELOCATIONS,2018113
WANDSWORTH COUNCIL,NGF CDC,ADMINISTRATION,"REPAIRS, ALTERATIONS & MTCE",REMOVALS & REORGANISATIONS,20282061,11421014K07187,15-May-14,48.00,Revenue,JT & SONS RELOCATIONS,2018113
WANDSWORTH COUNCIL,NGF CDC,ADMINISTRATION,"REPAIRS, ALTERATIONS & MTCE",REMOVALS & REORGANISATIONS,20281926,11421014K07197,15-May-14,540.00,Revenue,JT & SONS RELOCATIONS,2018113
WANDSWORTH COUNCIL,NGF CDC,ADMINISTRATION,"REPAIRS, ALTERATIONS & MTCE",REMOVALS & REORGANISATIONS,20281649,11421014K07207,15-May-14,840.00,Revenue,JT & SONS RELOCATIONS,2018113
WANDSWORTH COUNCIL,NGF CDC,ADMINISTRATION,"REPAIRS, ALTERATIONS & MTCE",REMOVALS & REORGANISATIONS,20281927,11421014K07207,15-May-14,"1,170.00",Revenue,JT & SONS RELOCATIONS,2018113
WANDSWORTH COUNCIL,NGF CDC,ADMINISTRATION,"REPAIRS, ALTERATIONS & MTCE",REMOVALS & REORGANISATIONS,20282059,11421014K07237,15-May-14,405.00,Revenue,JT & SONS RELOCATIONS,2018113
WANDSWORTH COUNCIL,NGF CDC,ADMINISTRATION,"REPAIRS, ALTERATIONS & MTCE",REMOVALS & REORGANISATIONS,20282059,11421014K07237,15-May-14,40.50,Revenue,JT & SONS RELOCATIONS,2018113
WANDSWORTH COUNCIL,NGF CDC,ADMINISTRATION,"REPAIRS, ALTERATIONS & MTCE",REMOVALS & REORGANISATIONS,20281925,11421014K07287,15-May-14,"2,872.50",Revenue,JT ENTERPRISES,2002022
WANDSWORTH COUNCIL,NGF CDC,ADMINISTRATION,"REPAIRS, ALTERATIONS & MTCE",REMOVALS & REORGANISATIONS,20281823,11421014K07287,15-May-14,"6,873.90",Revenue,WAGSTAFF INTERIORS GROUP,2004128
WANDSWORTH COUNCIL,NGF CDC,ADMINISTRATION,"REPAIRS, ALTERATIONS & MTCE",REMOVALS & REORGANISATIONS,20282057,11421014K07287,15-May-14,"1,497.08",Revenue,JT & SONS RELOCATIONS,2018113
WANDSWORTH COUNCIL,NGF CDC,ADMINISTRATION,"REPAIRS, ALTERATIONS & MTCE",REMOVALS & REORGANISATIONS,20282057,11421014K07287,15-May-14,135.00,Revenue,JT & SONS RELOCATIONS,2018113
WANDSWORTH COUNCIL,NGF CDC,ADMINISTRATION,"REPAIRS, ALTERATIONS & MTCE",REMOVALS & REORGANISATIONS,20282057,11421014K07287,15-May-14,-27.71,Revenue,JT & SONS RELOCATIONS,2018113
WANDSWORTH COUNCIL,NGF CDC,ADMINISTRATION,"REPAIRS, ALTERATIONS & MTCE",REMOVALS & REORGANISATIONS,20282058,11421014K07287,15-May-14,76.50,Revenue,JT & SONS RELOCATIONS,2018113
WANDSWORTH COUNCIL,NGF CDC,ADMINISTRATION,"REPAIRS, ALTERATIONS & MTCE",REMOVALS & REORGANISATIONS,20282058,11421014K07287,15-May-14,765.00,Revenue,JT & SONS RELOCATIONS,2018113
WANDSWORTH COUNCIL,NGF CDC,ADMINISTRATION,"REPAIRS, ALTERATIONS & MTCE",REMOVALS & REORGANISATIONS,20282062,11421014K07287,15-May-14,40.50,Revenue,JT & SONS RELOCATIONS,2018113
WANDSWORTH COUNCIL,NGF CDC,ADMINISTRATION,"REPAIRS, ALTERATIONS & MTCE",REMOVALS & REORGANISATIONS,20282062,11421014K07287,15-May-14,405.00,Revenue,JT & SONS RELOCATIONS,2018113
WANDSWORTH COUNCIL,NGF CDC,FINANCE,PRIVATE,GENERAL CONTRACT WORK,404451,11424537K07071,14-May-14,"8,346.79",Revenue,D H CROFTS LTD,SP0000076
WANDSWORTH COUNCIL,NGF CDC,FINANCE,PRIVATE,GENERAL CONTRACT WORK,406929,11424537K07071,19-May-14,"7,487.76",Revenue,D H CROFTS LTD,SP0000076
WANDSWORTH COUNCIL,NGF CDC,FINANCE,PRIVATE,GENERAL CONTRACT WORK,406931,11424537K07071,19-May-14,"4,117.75",Revenue,D H CROFTS LTD,SP0000076
WANDSWORTH COUNCIL,NGF CDC,FINANCE,PRIVATE,GENERAL CONTRACT WORK,406932,11424537K07071,19-May-14,"2,111.50",Revenue,D H CROFTS LTD,SP0000076
WANDSWORTH COUNCIL,NGF CDC,FINANCE,PRIVATE,GENERAL CONTRACT WORK,406964,11424537K07071,19-May-14,"1,266.47",Revenue,D H CROFTS LTD,SP0000076
WANDSWORTH COUNCIL,NGF CDC,FINANCE,PRIVATE,GENERAL CONTRACT WORK,407127,11424537K07071,19-May-14,616.00,Revenue,DOWNS FLOORING SPECIALIST,SP0000833
WANDSWORTH COUNCIL,NGF CDC,FINANCE,PRIVATE,GENERAL CONTRACT WORK,407127,11424537K07071,19-May-14,200.00,Revenue,DOWNS FLOORING SPECIALIST,SP0000833
WANDSWORTH COUNCIL,NGF CDC,FINANCE,PRIVATE,GENERAL CONTRACT WORK,407128,11424537K07071,19-May-14,150.00,Revenue,DOWNS FLOORING SPECIALIST,SP0000833
WANDSWORTH COUNCIL,NGF CDC,FINANCE,PRIVATE,GENERAL CONTRACT WORK,407128,11424537K07071,19-May-14,438.00,Revenue,DOWNS FLOORING SPECIALIST,SP0000833
WANDSWORTH COUNCIL,NGF CDC,FINANCE,PRIVATE,GENERAL CONTRACT WORK,407129,11424537K07071,19-May-14,890.00,Revenue,DOWNS FLOORING SPECIALIST,SP0000833
WANDSWORTH COUNCIL,NGF CDC,FINANCE,PRIVATE,GENERAL CONTRACT WORK,407129,11424537K07071,19-May-14,300.00,Revenue,DOWNS FLOORING SPECIALIST,SP0000833
WANDSWORTH COUNCIL,NGF CDC,FINANCE,PRIVATE,GENERAL CONTRACT WORK,407130,11424537K07071,19-May-14,300.00,Revenue,DOWNS FLOORING SPECIALIST,SP0000833
WANDSWORTH COUNCIL,NGF CDC,FINANCE,PRIVATE,GENERAL CONTRACT WORK,407130,11424537K07071,19-May-14,"1,026.00",Revenue,DOWNS FLOORING SPECIALIST,SP0000833
WANDSWORTH COUNCIL,NGF CDC,FINANCE,PRIVATE,GENERAL CONTRACT WORK,407131,11424537K07071,19-May-14,300.00,Revenue,DOWNS FLOORING SPECIALIST,SP0000833
WANDSWORTH COUNCIL,NGF CDC,FINANCE,PRIVATE,GENERAL CONTRACT WORK,407131,11424537K07071,19-May-14,"1,170.00",Revenue,DOWNS FLOORING SPECIALIST,SP0000833
WANDSWORTH COUNCIL,NGF CDC,FINANCE,PRIVATE,GENERAL CONTRACT WORK,404454,11424537K07191,14-May-14,"2,880.88",Revenue,D H CROFTS LTD,SP0000076
WANDSWORTH COUNCIL,NGF CDC,ENVIRONMENT & COMMUNITY,PRIVATE,GENERAL CONTRACT WORK,408889,11424537K07191,21-May-14,"113,241.26",Revenue,D H CROFTS LTD,SP0000076
WANDSWORTH COUNCIL,NGF CDC,FINANCE,PRIVATE,GENERAL CONTRACT WORK,413931,11424537K07191,30-May-14,"1,140.00",Revenue,PHOENIX ECS LTD,SP0001284
WANDSWORTH COUNCIL,NGF CDC,FINANCE,PRIVATE,GENERAL CONTRACT WORK,404442,11424537K07201,14-May-14,484.92,Revenue,D H CROFTS LTD,SP0000076
WANDSWORTH COUNCIL,NGF CDC,FINANCE,PRIVATE,GENERAL CONTRACT WORK,406926,11424537K07201,19-May-14,"6,535.69",Revenue,D H CROFTS LTD,SP0000076
WANDSWORTH COUNCIL,NGF CDC,FINANCE,PRIVATE,GENERAL CONTRACT WORK,406933,11424537K07201,19-May-14,"3,803.09",Revenue,D H CROFTS LTD,SP0000076
WANDSWORTH COUNCIL,NGF CDC,FINANCE,PRIVATE,GENERAL CONTRACT WORK,407105,11424537K07201,19-May-14,"2,293.73",Revenue,D H CROFTS LTD,SP0000076
WANDSWORTH COUNCIL,NGF CDC,FINANCE,PRIVATE,GENERAL CONTRACT WORK,406928,11424537K07221,19-May-14,"3,013.15",Revenue,D H CROFTS LTD,SP0000076
WANDSWORTH COUNCIL,NGF CDC,FINANCE,PRIVATE,GENERAL CONTRACT WORK,406930,11424537K07221,19-May-14,"5,018.55",Revenue,D H CROFTS LTD,SP0000076
WANDSWORTH COUNCIL,NGF CDC,FINANCE,PRIVATE,GENERAL CONTRACT WORK,406937,11424537K07221,19-May-14,"3,229.80",Revenue,D H CROFTS LTD,SP0000076
WANDSWORTH COUNCIL,NGF CDC,FINANCE,PRIVATE,GENERAL CONTRACT WORK,406938,11424537K07221,19-May-14,423.55,Revenue,D H CROFTS LTD,SP0000076
WANDSWORTH COUNCIL,NGF CDC,FINANCE,PRIVATE,GENERAL CONTRACT WORK,406966,11424537K07221,19-May-14,"4,816.28",Revenue,D H CROFTS LTD,SP0000076
WANDSWORTH COUNCIL,NGF CDC,FINANCE,PRIVATE,GENERAL CONTRACT WORK,406967,11424537K07221,19-May-14,"3,777.76",Revenue,D H CROFTS LTD,SP0000076
WANDSWORTH COUNCIL,NGF CDC,FINANCE,PRIVATE,GENERAL CONTRACT WORK,407104,11424537K07221,19-May-14,"1,025.61",Revenue,D H CROFTS LTD,SP0000076
WANDSWORTH COUNCIL,NGF CDC,FINANCE,PRIVATE,GENERAL CONTRACT WORK,404450,11424537K07231,14-May-14,"5,674.44",Revenue,D H CROFTS LTD,SP0000076
WANDSWORTH COUNCIL,NGF CDC,FINANCE,PRIVATE,GENERAL CONTRACT WORK,404452,11424537K07231,14-May-14,"3,797.66",Revenue,D H CROFTS LTD,SP0000076
WANDSWORTH COUNCIL,NGF CDC,FINANCE,PRIVATE,GENERAL CONTRACT WORK,404453,11424537K07231,14-May-14,698.50,Revenue,D H CROFTS LTD,SP0000076
WANDSWORTH COUNCIL,NGF CDC,FINANCE,PRIVATE,GENERAL CONTRACT WORK,406923,11424537K07231,19-May-14,"2,563.90",Revenue,D H CROFTS LTD,SP0000076
WANDSWORTH COUNCIL,NGF CDC,FINANCE,PRIVATE,GENERAL CONTRACT WORK,406924,11424537K07231,19-May-14,"8,997.36",Revenue,D H CROFTS LTD,SP0000076
WANDSWORTH COUNCIL,NGF CDC,FINANCE,PRIVATE,GENERAL CONTRACT WORK,406925,11424537K07231,19-May-14,820.89,Revenue,D H CROFTS LTD,SP0000076
WANDSWORTH COUNCIL,NGF CDC,FINANCE,PRIVATE,GENERAL CONTRACT WORK,406927,11424537K07231,19-May-14,"5,152.20",Revenue,D H CROFTS LTD,SP0000076
WANDSWORTH COUNCIL,NGF CDC,FINANCE,PRIVATE,GENERAL CONTRACT WORK,406936,11424537K07231,19-May-14,"6,062.09",Revenue,D H CROFTS LTD,SP0000076
WANDSWORTH COUNCIL,NGF CDC,FINANCE,PRIVATE,GENERAL CONTRACT WORK,406965,11424537K07231,19-May-14,"3,685.83",Revenue,D H CROFTS LTD,SP0000076
WANDSWORTH COUNCIL,NGF CDC,FINANCE,PRIVATE,GENERAL CONTRACT WORK,404478,11424537K07231,14-May-14,250.00,Revenue,DOWNS FLOORING SPECIALIST,SP0000833
WANDSWORTH COUNCIL,NGF CDC,FINANCE,PRIVATE,GENERAL CONTRACT WORK,404478,11424537K07231,14-May-14,250.00,Revenue,DOWNS FLOORING SPECIALIST,SP0000833
WANDSWORTH COUNCIL,NGF CDC,FINANCE,PRIVATE,GENERAL CONTRACT WORK,407126,11424537K07231,19-May-14,300.00,Revenue,DOWNS FLOORING SPECIALIST,SP0000833
WANDSWORTH COUNCIL,NGF CDC,FINANCE,PRIVATE,GENERAL CONTRACT WORK,407126,11424537K07231,19-May-14,555.00,Revenue,DOWNS FLOORING SPECIALIST,SP0000833
WANDSWORTH COUNCIL,NGF CS,ADMINISTRATION,DIRECT2,AGENCY STAFF,20281058,120100510,12-May-14,"1,273.85",Revenue,MATRIX SCM LIMITED,2014926
WANDSWORTH COUNCIL,NGF CS,ADMINISTRATION,DIRECT2,AGENCY STAFF,20281539,120100510,12-May-14,"1,586.95",Revenue,MATRIX SCM LIMITED,2014926
WANDSWORTH COUNCIL,NGF CS,ADMINISTRATION,DIRECT2,AGENCY STAFF,20282644,120100510,20-May-14,"1,260.13",Revenue,MATRIX SCM LIMITED,2014926
WANDSWORTH COUNCIL,NGF CS,ADMINISTRATION,GRANTS & SUBSCRIPTIONS,SUBSCRIPTIONS,20282506,120137640,20-May-14,500.00,Revenue,LAWYERS IN LOCAL GOVERNMENT,2017291
WANDSWORTH COUNCIL,NGF CS,ADMINISTRATION,DIRECT2,AGENCY STAFF,20281058,120400510,12-May-14,332.12,Revenue,MATRIX SCM LIMITED,2014926
WANDSWORTH COUNCIL,NGF CS,ADMINISTRATION,DIRECT2,AGENCY STAFF,20281539,120400510,12-May-14,699.27,Revenue,MATRIX SCM LIMITED,2014926
WANDSWORTH COUNCIL,NGF CS,ADMINISTRATION,DIRECT2,AGENCY STAFF,20282644,120400510,20-May-14,321.04,Revenue,MATRIX SCM LIMITED,2014926
WANDSWORTH COUNCIL,NGF CS,ADMINISTRATION,PRIVATE,CONTRACT 7 - VNEB LEGAL,20282785,120645540,23-May-14,"-3,527.02",Revenue,WINCKWORTH SHERWOOD LLP,2009504
WANDSWORTH COUNCIL,NGF CS,ADMINISTRATION,PRIVATE,CONTRACT 7 - VNEB LEGAL,20282785,120645540,23-May-14,"3,527.02",Revenue,WINCKWORTH SHERWOOD LLP,2009504
WANDSWORTH COUNCIL,NGF CS,ADMINISTRATION,PRIVATE,"CONTRACT 6- HWYS, PLAN ETC",20281819,120646170,13-May-14,"1,727.50",Revenue,A S B LAW,2008363
WANDSWORTH COUNCIL,NGF CS,ADMINISTRATION,PRIVATE,"CONTRACT 6- HWYS, PLAN ETC",20281821,120646170,13-May-14,560.00,Revenue,A S B LAW,2008363
WANDSWORTH COUNCIL,NGF CS,ADMINISTRATION,PRINTING STAT & GEN OFFICE EXP,OUTWORK - LITHO,20281716,121333590,15-May-14,705.00,Revenue,FINANCIAL DATA MANAGEMENT LTD,2003241
WANDSWORTH COUNCIL,NGF CS,ADMINISTRATION,PRINTING STAT & GEN OFFICE EXP,OUTWORK - LITHO,20281724,121333590,15-May-14,"1,305.15",Revenue,KALL KWIK,2007566
WANDSWORTH COUNCIL,NGF CS,ADMINISTRATION,PRINTING STAT & GEN OFFICE EXP,OUTWORK - LITHO,20281725,121333590,15-May-14,"1,189.17",Revenue,KALL KWIK,2007566
WANDSWORTH COUNCIL,NGF CS,ADMINISTRATION,PRINTING STAT & GEN OFFICE EXP,OUTWORK - LITHO,20281726,121333590,15-May-14,"5,300.00",Revenue,KALL KWIK,2007566
WANDSWORTH COUNCIL,NGF CS,ADMINISTRATION,PRINTING STAT & GEN OFFICE EXP,OUTWORK - LITHO,20281745,121333590,15-May-14,798.00,Revenue,IMPRESS PRINT SERVICES LTD,2008443
WANDSWORTH COUNCIL,NGF CS,ADMINISTRATION,PRINTING STAT & GEN OFFICE EXP,OUTWORK - LITHO,20281739,121333590,15-May-14,"9,968.00",Revenue,GLOBAL MEDIA PRODUCTION,2008737
WANDSWORTH COUNCIL,NGF CS,ADMINISTRATION,PRINTING STAT & GEN OFFICE EXP,OUTWORK - LITHO,20281731,121333590,15-May-14,695.00,Revenue,DELTOR COMMUNICATIONS LTD,2017410
WANDSWORTH COUNCIL,NGF CS,ADMINISTRATION,PRINTING STAT & GEN OFFICE EXP,OUTWORK - EXTERN NON FRAMEWORK,20281718,121333600,15-May-14,788.00,Revenue,TIMESIGNS LTD,2001154
WANDSWORTH COUNCIL,NGF CS,ENVIRONMENT & COMMUNITY,"EQUIPMENT, FURNITURE & MATS",OP COSTS - QUICKPRINT MACHINE,410142,121430230,28-May-14,"1,769.50",Revenue,RICOH UK LTD,SP0002316
WANDSWORTH COUNCIL,NGF CS,ADMINISTRATION,COMMUNICATIONS & COMP,COMMUNICATIONS - POSTAGE,20281834,122136000,15-May-14,"1,189.23",Revenue,ROYAL MAIL,2009044
WANDSWORTH COUNCIL,NGF CS,ADMINISTRATION,COMMUNICATIONS & COMP,COMMUNICATIONS - POSTAGE,20281835,122136000,15-May-14,"2,382.87",Revenue,ROYAL MAIL,2009044
WANDSWORTH COUNCIL,NGF CS,ADMINISTRATION,COMMUNICATIONS & COMP,COMMUNICATIONS - POSTAGE,20282478,122136000,21-May-14,"2,140.72",Revenue,ROYAL MAIL,2009044
WANDSWORTH COUNCIL,NGF CS,ADMINISTRATION,COMMUNICATIONS & COMP,COMMUNICATIONS - POSTAGE,20282479,122136000,21-May-14,"1,239.86",Revenue,ROYAL MAIL,2009044
WANDSWORTH COUNCIL,NGF CS,ADMINISTRATION,COMMUNICATIONS & COMP,COMMUNICATIONS - POSTAGE,20282480,122136000,21-May-14,"1,045.18",Revenue,ROYAL MAIL,2009044
WANDSWORTH COUNCIL,NGF CS,ADMINISTRATION,COMMUNICATIONS & COMP,COMMUNICATIONS - POSTAGE,20283240,122136000,30-May-14,"1,005.95",Revenue,ROYAL MAIL,2009044
WANDSWORTH COUNCIL,NGF CS,ADMINISTRATION,COMMUNICATIONS & COMP,COMMUNICATIONS - POSTAGE,20281836,122136000,15-May-14,"6,519.96",Revenue,TNT POST LONDON LTD,2011033
WANDSWORTH COUNCIL,NGF CS,ADMINISTRATION,COMMUNICATIONS & COMP,COMMUNICATIONS - POSTAGE,20281838,122136000,15-May-14,"5,596.98",Revenue,TNT POST LONDON LTD,2011033
WANDSWORTH COUNCIL,NGF CS,ADMINISTRATION,COMMUNICATIONS & COMP,COMMUNICATIONS - POSTAGE,20281840,122136000,15-May-14,"1,179.05",Revenue,TNT POST LONDON LTD,2011033
WANDSWORTH COUNCIL,NGF CS,ADMINISTRATION,COMMUNICATIONS & COMP,COMMUNICATIONS - POSTAGE,20282495,122136000,21-May-14,"1,383.07",Revenue,TNT POST LONDON LTD,2011033
WANDSWORTH COUNCIL,NGF CS,ADMINISTRATION,COMMUNICATIONS & COMP,COMMUNICATIONS - POSTAGE,20282498,122136000,21-May-14,"1,984.65",Revenue,TNT POST LONDON LTD,2011033
WANDSWORTH COUNCIL,NGF CS,ADMINISTRATION,COMMUNICATIONS & COMP,COMMUNICATIONS - POSTAGE,20283241,122136000,30-May-14,"4,259.67",Revenue,TNT POST LONDON LTD,2011033
WANDSWORTH COUNCIL,NGF CS,ENVIRONMENT & COMMUNITY,INDIRECT,IN-SERVICE TRAINING-SLA,408705,123000740,22-May-14,"1,050.00",Revenue,EMMA HAMMETT RE FIRST AID FOR LIFE,SP0006366
WANDSWORTH COUNCIL,NGF CS,ENVIRONMENT & COMMUNITY,INDIRECT,IN-SERVICE TRAINING-SLA,408706,123000740,22-May-14,996.00,Revenue,EMMA HAMMETT RE FIRST AID FOR LIFE,SP0006366
WANDSWORTH COUNCIL,NGF CS,ADMINISTRATION,DIRECT2,AGENCY STAFF,20281539,123200510,12-May-14,755.70,Revenue,MATRIX SCM LIMITED,2014926
WANDSWORTH COUNCIL,NGF CS,ADMINISTRATION,DIRECT2,AGENCY STAFF,20282644,123200510,20-May-14,700.74,Revenue,MATRIX SCM LIMITED,2014926
WANDSWORTH COUNCIL,NGF CS,ADMINISTRATION,INDIRECT,CHILDCARE VOUCHERS,20282326,123200650,16-May-14,105.66,Revenue,COMPUTERSHARE VOUCHER SERVICES,2007281
WANDSWORTH COUNCIL,NGF CS,ADMINISTRATION,INDIRECT,CHILDCARE VOUCHERS,20282327,123200650,16-May-14,659.51,Revenue,COMPUTERSHARE VOUCHER SERVICES,2007281
WANDSWORTH COUNCIL,NGF CS,ADMINISTRATION,INDIRECT,CHILDCARE VOUCHERS,20283370,123200650,29-May-14,109.68,Revenue,COMPUTERSHARE VOUCHER SERVICES,2007281
WANDSWORTH COUNCIL,NGF CS,ADMINISTRATION,INDIRECT,CHILDCARE VOUCHERS,20283602,123200650,30-May-14,"1,211.07",Revenue,COMPUTERSHARE VOUCHER SERVICES,2007281
WANDSWORTH COUNCIL,NGF CS,ADMINISTRATION,INDIRECT,TRAINING - EXTERNAL COURSES,20283373,123200770,29-May-14,850.00,Revenue,C I P D,2003481
WANDSWORTH COUNCIL,NGF CS,ENVIRONMENT & COMMUNITY,"EQUIPMENT, FURNITURE & MATS","EQUIPMENT, FURNITURE & MATS",413168,123230000,29-May-14,"1,243.00",Revenue,WAGSTAFF INTERIORS GROUP,SP0005775
WANDSWORTH COUNCIL,NGF CS,ADMINISTRATION,SERVICES,OHS SESSIONAL DOCTOR,20282330,123234690,16-May-14,"8,488.26",Revenue,HJM ASSOCIATES,2011293
WANDSWORTH COUNCIL,NGF CS,ADMINISTRATION,MISC,MISCELLANEOUS EXPENSES,20283609,123238500,30-May-14,"2,377.25",Revenue,EDENRED UK GROUP LTD,2001234
WANDSWORTH COUNCIL,NGF CS,ADMINISTRATION,MISC,MISCELLANEOUS EXPENSES,20282415,123238500,16-May-14,659.30,Revenue,DORSET SOFTWARE SERVICES LIMITED,2009062
WANDSWORTH COUNCIL,NGF CDC,ADMINISTRATION,MISC,MISCELLANEOUS EXPENSES,20283230,124038500,30-May-14,747.00,Revenue,DOWNS FLOORING SPECIALIST,2006584
WANDSWORTH COUNCIL,NGF CDC,ADMINISTRATION,MISC,MISCELLANEOUS EXPENSES,20283407,124038500,29-May-14,"1,312.50",Revenue,TOYE KENNING & SPENCER LTD,2012497
WANDSWORTH COUNCIL,NGF CDC,ADMINISTRATION,MISC,MISCELLANEOUS EXPENSES,20282458,124038500,20-May-14,"2,188.00",Revenue,Gillie Rowland-Clark,2991000
WANDSWORTH COUNCIL,NGF CDC,ADMINISTRATION,MISC,MISCELLANEOUS EXPENSES,20282459,124038500,20-May-14,"1,098.00",Revenue,The Royal Regiment of Fusiliers,2991000
WANDSWORTH COUNCIL,NGF CDC,ADMINISTRATION,"EQUIPMENT, FURNITURE & MATS",EQUIP.FURN & MATS-REPS & MTCE,20282647,12413001K0184X,20-May-14,"2,070.00",Revenue,SHAW & SONS LTD,2004546
WANDSWORTH COUNCIL,NGF CDC,ADMINISTRATION,PRINTING STAT & GEN OFFICE EXP,PRINTING AND STATIONERY,20283413,12413342K01858,29-May-14,300.00,Revenue,S G BAKER LTD,2004284
WANDSWORTH COUNCIL,NGF CDC,ADMINISTRATION,PRINTING STAT & GEN OFFICE EXP,PRINTING AND STATIONERY,20282700,12413342K01859,20-May-14,375.54,Revenue,SUPPLIES FOR SCHOOLS LTD,2012200
WANDSWORTH COUNCIL,NGF CDC,ADMINISTRATION,DIRECT2,AGENCY STAFF,20281058,124200510,12-May-14,567.45,Revenue,MATRIX SCM LIMITED,2014926
WANDSWORTH COUNCIL,NGF CDC,ADMINISTRATION,DIRECT2,AGENCY STAFF,20281539,124200510,12-May-14,662.84,Revenue,MATRIX SCM LIMITED,2014926
WANDSWORTH COUNCIL,NGF CDC,ADMINISTRATION,DIRECT2,AGENCY STAFF,20282644,124200510,20-May-14,523.80,Revenue,MATRIX SCM LIMITED,2014926
WANDSWORTH COUNCIL,NGF CDC,FINANCE,"EQUIPMENT, FURNITURE & MATS",EQUIP.FURN & MATS-REPS & MTCE,404479,124230010,14-May-14,400.00,Revenue,DOWNS FLOORING SPECIALIST,SP0000833
WANDSWORTH COUNCIL,NGF CDC,FINANCE,"EQUIPMENT, FURNITURE & MATS",EQUIP.FURN & MATS-REPS & MTCE,404479,124230010,14-May-14,200.00,Revenue,DOWNS FLOORING SPECIALIST,SP0000833
WANDSWORTH COUNCIL,NGF CDC,FINANCE,"EQUIPMENT, FURNITURE & MATS",EQUIP.FURN & MATS-REPS & MTCE,404480,124230010,14-May-14,350.00,Revenue,DOWNS FLOORING SPECIALIST,SP0000833
WANDSWORTH COUNCIL,NGF CDC,FINANCE,"EQUIPMENT, FURNITURE & MATS",EQUIP.FURN & MATS-REPS & MTCE,404480,124230010,14-May-14,"1,150.00",Revenue,DOWNS FLOORING SPECIALIST,SP0000833
WANDSWORTH COUNCIL,NGF CDC,ADMINISTRATION,"OTHER GRANTS, REIMBS & CONTRIB",WPCC INCOME,20282215,124293430,15-May-14,"11,216.16",Revenue,METROPOLITAN POLICE,2012713
WANDSWORTH COUNCIL,NGF CDC,ADMINISTRATION,"EQUIPMENT, FURNITURE & MATS",FLOWERS,20283399,124430170,29-May-14,90.00,Revenue,PATRICIA WONG,2001370
WANDSWORTH COUNCIL,NGF CDC,ADMINISTRATION,"EQUIPMENT, FURNITURE & MATS",FLOWERS,20283400,124430170,29-May-14,90.00,Revenue,PATRICIA WONG,2001370
WANDSWORTH COUNCIL,NGF CDC,ADMINISTRATION,"EQUIPMENT, FURNITURE & MATS",FLOWERS,20283401,124430170,29-May-14,90.00,Revenue,PATRICIA WONG,2001370
WANDSWORTH COUNCIL,NGF CS,ADMINISTRATION,DIRECT2,AGENCY STAFF,20281539,124700510,12-May-14,755.65,Revenue,MATRIX SCM LIMITED,2014926
WANDSWORTH COUNCIL,NGF CS,ADMINISTRATION,DIRECT2,AGENCY STAFF,20282644,124700510,20-May-14,626.78,Revenue,MATRIX SCM LIMITED,2014926
WANDSWORTH COUNCIL,ASC,ADMINISTRATION,DIRECT2,AGENCY STAFF,20281058,125000510,12-May-14,"2,884.11",Revenue,MATRIX SCM LIMITED,2014926
WANDSWORTH COUNCIL,ASC,ADMINISTRATION,DIRECT2,AGENCY STAFF,20281539,125000510,12-May-14,"2,502.36",Revenue,MATRIX SCM LIMITED,2014926
WANDSWORTH COUNCIL,ASC,ADMINISTRATION,DIRECT2,AGENCY STAFF,20282644,125000510,20-May-14,"2,543.60",Revenue,MATRIX SCM LIMITED,2014926
WANDSWORTH COUNCIL,ASC,SOCIAL SERVICES,DIRECT2,AGENCY STAFF,20283183,125000510,27-May-14,512.96,Revenue,MATRIX SCM LIMITED,2014926
WANDSWORTH COUNCIL,ASC,SOCIAL SERVICES,DIRECT2,AGENCY STAFF,20283184,125000510,27-May-14,"5,471.92",Revenue,MATRIX SCM LIMITED,2014926
WANDSWORTH COUNCIL,ASC,SOCIAL SERVICES,DIRECT2,AGENCY STAFF,20283600,125000510,30-May-14,778.05,Revenue,MATRIX SCM LIMITED,2014926
WANDSWORTH COUNCIL,NGF CS,FINANCE,DIRECT2,AGENCY STAFF,20282227,126000510,15-May-14,746.48,Revenue,MATRIX SCM LIMITED,2014926
WANDSWORTH COUNCIL,NGF CS,FINANCE,DIRECT2,AGENCY STAFF,20282227,126000510,15-May-14,"1,207.69",Revenue,MATRIX SCM LIMITED,2014926
WANDSWORTH COUNCIL,NGF CS,FINANCE,DIRECT2,AGENCY STAFF,20282227,126000510,15-May-14,"1,474.80",Revenue,MATRIX SCM LIMITED,2014926
WANDSWORTH COUNCIL,NGF CS,FINANCE,DIRECT2,AGENCY STAFF,20282227,126000510,15-May-14,"2,129.28",Revenue,MATRIX SCM LIMITED,2014926
WANDSWORTH COUNCIL,NGF CS,FINANCE,DIRECT2,AGENCY STAFF,20282227,126000510,15-May-14,"2,726.46",Revenue,MATRIX SCM LIMITED,2014926
WANDSWORTH COUNCIL,NGF CS,FINANCE,DIRECT2,AGENCY STAFF,20283011,126000510,23-May-14,"1,474.80",Revenue,MATRIX SCM LIMITED,2014926
WANDSWORTH COUNCIL,NGF CS,FINANCE,DIRECT2,AGENCY STAFF,20283011,126000510,23-May-14,"1,871.85",Revenue,MATRIX SCM LIMITED,2014926
WANDSWORTH COUNCIL,NGF CS,FINANCE,DIRECT2,AGENCY STAFF,20283011,126000510,23-May-14,"2,313.14",Revenue,MATRIX SCM LIMITED,2014926
WANDSWORTH COUNCIL,NGF CS,FINANCE,DIRECT2,AGENCY STAFF,20283011,126000510,23-May-14,933.09,Revenue,MATRIX SCM LIMITED,2014926
WANDSWORTH COUNCIL,NGF CS,FINANCE,DIRECT2,AGENCY STAFF,20283523,126000510,30-May-14,"2,993.76",Revenue,MATRIX SCM LIMITED,2014926
WANDSWORTH COUNCIL,NGF CS,FINANCE,DIRECT2,AGENCY STAFF,20283523,126000510,30-May-14,"1,474.80",Revenue,MATRIX SCM LIMITED,2014926
WANDSWORTH COUNCIL,NGF CS,FINANCE,DIRECT2,AGENCY STAFF,20283523,126000510,30-May-14,"3,287.79",Revenue,MATRIX SCM LIMITED,2014926
WANDSWORTH COUNCIL,NGF CS,FINANCE,DIRECT2,AGENCY STAFF,20283523,126000510,30-May-14,"2,092.49",Revenue,MATRIX SCM LIMITED,2014926
WANDSWORTH COUNCIL,NGF CS,FINANCE,DIRECT2,AGENCY STAFF,20283523,126000510,30-May-14,"2,087.07",Revenue,MATRIX SCM LIMITED,2014926
WANDSWORTH COUNCIL,NGF CS,ADMINISTRATION,COMMUNICATIONS & COMP,MOBILE PHONES,20282774,126036380,22-May-14,50.00,Revenue,VODAFONE CORPORATE,2009219
WANDSWORTH COUNCIL,NGF CS,ADMINISTRATION,COMMUNICATIONS & COMP,TELECOMMUNICATIONS SLA,20282774,126036520,22-May-14,100.00,Revenue,VODAFONE CORPORATE,2009219
WANDSWORTH COUNCIL,NGF CS,ENVIRONMENT & COMMUNITY,GRANTS & SUBSCRIPTIONS,SUBSCRIPTIONS,410170,126037640,27-May-14,"6,575.00",Revenue,SOCITM LTD,SP0003143
WANDSWORTH COUNCIL,NGF CS,ADMINISTRATION,COMMUNICATIONS & COMP,CALLS USAGE,20282765,126236050,22-May-14,"2,214.47",Revenue,VIRGIN MEDIA BUSINESS,2011718
WANDSWORTH COUNCIL,NGF CS,ADMINISTRATION,"EQUIPMENT, FURNITURE & MATS","EQUIPMENT, FURNITURE & MATS",20282761,126330000,22-May-14,990.00,Revenue,INCOM TELECOMMUNICATIONS,2003864
WANDSWORTH COUNCIL,NGF CS,ADMINISTRATION,"EQUIPMENT, FURNITURE & MATS","EQUIPMENT, FURNITURE & MATS",20282765,126330000,22-May-14,"1,714.00",Revenue,VIRGIN MEDIA BUSINESS,2011718
WANDSWORTH COUNCIL,NGF CS,FINANCE,"EQUIPMENT, FURNITURE & MATS",EQUIP.FURN & MATS-REPS & MTCE,397387,126330010,01-May-14,945.04,Revenue,ACR LONDON LTD,SP0000193
WANDSWORTH COUNCIL,NGF CS,ADMINISTRATION,"EQUIPMENT, FURNITURE & MATS","EQUIPMENT, FURNITURE & MATS",20282606,126530000,20-May-14,950.00,Revenue,RISUAL LIMITED,2017331
WANDSWORTH COUNCIL,NGF CS,ENVIRONMENT & COMMUNITY,"EQUIPMENT, FURNITURE & MATS","EQUIPMENT, FURNITURE & MATS",410157,126530000,27-May-14,"2,050.00",Revenue,MEDIA RESOURCES,SP0003374
WANDSWORTH COUNCIL,NGF CS,ENVIRONMENT & COMMUNITY,COMMUNICATIONS & COMP,I.T. - SYSTEMS DEVELOPMENT,403862,126836270,15-May-14,"2,130.00",Revenue,CIVICA UK LTD,SP0000394
WANDSWORTH COUNCIL,NGF CS,ENVIRONMENT & COMMUNITY,COMMUNICATIONS & COMP,I.T. - SYSTEMS DEVELOPMENT,403863,126836270,15-May-14,710.00,Revenue,CIVICA UK LTD,SP0000394
WANDSWORTH COUNCIL,NGF CS,ADMINISTRATION,SERVICES,PROJECT WORK,20281544,127034800,12-May-14,"1,453.00",Revenue,STORM FAMILY CENTRE LTD,2004295
WANDSWORTH COUNCIL,NGF CS,ADMINISTRATION,COMMUNICATIONS & COMP,TELECOMMUNICATIONS SLA,20282774,127036520,22-May-14,50.00,Revenue,VODAFONE CORPORATE,2009219
WANDSWORTH COUNCIL,ASC,SOCIAL SERVICES,DIRECT2,AGENCY STAFF,20281988,130000510,14-May-14,"4,356.95",Revenue,MATRIX SCM LIMITED,2014926
WANDSWORTH COUNCIL,ASC,SOCIAL SERVICES,DIRECT2,AGENCY STAFF,20283183,130000510,27-May-14,"10,814.28",Revenue,MATRIX SCM LIMITED,2014926
WANDSWORTH COUNCIL,ASC,SOCIAL SERVICES,DIRECT2,AGENCY STAFF,20283184,130000510,27-May-14,"7,691.06",Revenue,MATRIX SCM LIMITED,2014926
WANDSWORTH COUNCIL,ASC,SOCIAL SERVICES,DIRECT2,AGENCY STAFF,20283600,130000510,30-May-14,"6,144.32",Revenue,MATRIX SCM LIMITED,2014926
WANDSWORTH COUNCIL,ASC,SOCIAL SERVICES,HIRE,HIRE - TRANSPORT,405599,130020410,15-May-14,870.00,Revenue,BECKETT CORPORATION LTD T/A TINAS CARS,SP0000729
WANDSWORTH COUNCIL,ASC,SOCIAL SERVICES,HIRE,HIRE - TRANSPORT,20282367,130220410,19-May-14,"35,698.44",Revenue,A STAR TRANSPORT LTD,2007011
WANDSWORTH COUNCIL,ASC,SOCIAL SERVICES,HIRE,HIRE - TRANSPORT,406649,130220410,16-May-14,434.70,Revenue,HEALTHCARE & TRANSPORT SERVICES (HATS),SP0000012
WANDSWORTH COUNCIL,ASC,SOCIAL SERVICES,HIRE,HIRE - TRANSPORT,406657,130220410,16-May-14,504.00,Revenue,HEALTHCARE & TRANSPORT SERVICES (HATS),SP0000012
WANDSWORTH COUNCIL,ASC,SOCIAL SERVICES,HIRE,HIRE - TRANSPORT,411052,130220410,23-May-14,630.00,Revenue,HEALTHCARE & TRANSPORT SERVICES (HATS),SP0000012
WANDSWORTH COUNCIL,ASC,SOCIAL SERVICES,HIRE,HIRE - TRANSPORT,397935,130220410,01-May-14,548.64,Revenue,BECKETT CORPORATION LTD T/A TINAS CARS,SP0000729
WANDSWORTH COUNCIL,ASC,SOCIAL SERVICES,HIRE,HIRE - TRANSPORT,397936,130220410,01-May-14,548.64,Revenue,BECKETT CORPORATION LTD T/A TINAS CARS,SP0000729
WANDSWORTH COUNCIL,ASC,SOCIAL SERVICES,HIRE,HIRE - TRANSPORT,397939,130220410,01-May-14,579.12,Revenue,BECKETT CORPORATION LTD T/A TINAS CARS,SP0000729
WANDSWORTH COUNCIL,ASC,SOCIAL SERVICES,HIRE,HIRE - TRANSPORT,397945,130220410,01-May-14,820.20,Revenue,BECKETT CORPORATION LTD T/A TINAS CARS,SP0000729
WANDSWORTH COUNCIL,ASC,SOCIAL SERVICES,HIRE,HIRE - TRANSPORT,397946,130220410,01-May-14,528.04,Revenue,BECKETT CORPORATION LTD T/A TINAS CARS,SP0000729
WANDSWORTH COUNCIL,ASC,SOCIAL SERVICES,HIRE,HIRE - TRANSPORT,405600,130220410,15-May-14,"1,866.00",Revenue,BECKETT CORPORATION LTD T/A TINAS CARS,SP0000729
WANDSWORTH COUNCIL,ASC,SOCIAL SERVICES,HIRE,HIRE - TRANSPORT,405602,130220410,15-May-14,"1,866.00",Revenue,BECKETT CORPORATION LTD T/A TINAS CARS,SP0000729
WANDSWORTH COUNCIL,ASC,SOCIAL SERVICES,HIRE,HIRE - TRANSPORT,397910,130220410,01-May-14,440.00,Revenue,A STAR TRANSPORT LTD,SP0000866
WANDSWORTH COUNCIL,ASC,SOCIAL SERVICES,HIRE,HIRE - TRANSPORT,397912,130220410,01-May-14,500.00,Revenue,A STAR TRANSPORT LTD,SP0000866
WANDSWORTH COUNCIL,ASC,SOCIAL SERVICES,HIRE,HIRE - TRANSPORT,397915,130220410,01-May-14,500.00,Revenue,A STAR TRANSPORT LTD,SP0000866
WANDSWORTH COUNCIL,ASC,SOCIAL SERVICES,HIRE,HIRE - TRANSPORT,397916,130220410,01-May-14,500.00,Revenue,A STAR TRANSPORT LTD,SP0000866
WANDSWORTH COUNCIL,ASC,SOCIAL SERVICES,HIRE,HIRE - TRANSPORT,408382,130220410,20-May-14,564.00,Revenue,A STAR TRANSPORT LTD,SP0000866
WANDSWORTH COUNCIL,ASC,SOCIAL SERVICES,HIRE,HIRE - TRANSPORT,411058,130220410,23-May-14,588.00,Revenue,A STAR TRANSPORT LTD,SP0000866
WANDSWORTH COUNCIL,ASC,SOCIAL SERVICES,HIRE,HIRE - TRANSPORT,406459,130220410,16-May-14,472.00,Revenue,WEST ONE CARS,SP0005818
WANDSWORTH COUNCIL,ASC,SOCIAL SERVICES,HIRE,HIRE - TRANSPORT,401387,130220410,09-May-14,"1,500.00",Revenue,PARKER CARS LIMITED,SP0005826
WANDSWORTH COUNCIL,ASC,SOCIAL SERVICES,HIRE,HIRE - TRANSPORT,406685,130220410,16-May-14,600.00,Revenue,PARKER CARS LIMITED,SP0005826
WANDSWORTH COUNCIL,ASC,SOCIAL SERVICES,HIRE,HIRE - TRANSPORT,411035,130220410,23-May-14,762.85,Revenue,PARKER CARS LIMITED,SP0005826
WANDSWORTH COUNCIL,ASC,SOCIAL SERVICES,"CLOTHING, UNIFORM & LAUNDRY",EXTERNAL LAUNDRY,398385,130231520,02-May-14,84.00,Revenue,G S LAUNDRIES LTD,SP0000995
WANDSWORTH COUNCIL,ASC,SOCIAL SERVICES,SERVICES,TRAVEL BUDDY SCHEME,414489,130234970,30-May-14,522.39,Revenue,HARINGEY ASSOCIATION FOR INDEPENDENT LIV,SP0000222
WANDSWORTH COUNCIL,ASC,SOCIAL SERVICES,SERVICES,TRAVEL BUDDY SCHEME,414490,130234970,30-May-14,605.50,Revenue,HARINGEY ASSOCIATION FOR INDEPENDENT LIV,SP0000222
WANDSWORTH COUNCIL,ASC,SOCIAL SERVICES,SERVICES,TRAVEL BUDDY SCHEME,414501,130234970,30-May-14,506.56,Revenue,HARINGEY ASSOCIATION FOR INDEPENDENT LIV,SP0000222
WANDSWORTH COUNCIL,ASC,SOCIAL SERVICES,SERVICES,TRAVEL BUDDY SCHEME,414503,130234970,30-May-14,510.52,Revenue,HARINGEY ASSOCIATION FOR INDEPENDENT LIV,SP0000222
WANDSWORTH COUNCIL,ASC,SOCIAL SERVICES,SERVICES,TRAVEL BUDDY SCHEME,414506,130234970,30-May-14,696.52,Revenue,HARINGEY ASSOCIATION FOR INDEPENDENT LIV,SP0000222
WANDSWORTH COUNCIL,ASC,SOCIAL SERVICES,SERVICES,TRAVEL BUDDY SCHEME,398348,130234970,02-May-14,619.40,Revenue,SOUTHSIDE PARTNERSHIP,SP0000692
WANDSWORTH COUNCIL,ASC,SOCIAL SERVICES,SERVICES,TRAVEL BUDDY SCHEME,401453,130234970,09-May-14,815.00,Revenue,SOUTHSIDE PARTNERSHIP,SP0000692
WANDSWORTH COUNCIL,ASC,SOCIAL SERVICES,SERVICES,TRAVEL BUDDY SCHEME,401455,130234970,09-May-14,514.81,Revenue,SOUTHSIDE PARTNERSHIP,SP0000692
WANDSWORTH COUNCIL,ASC,SOCIAL SERVICES,HEALTH,EXT RES S28A 100% OLD LONGSTAY,398339,130241010,02-May-14,"2,939.05",Revenue,PARKGATE MANOR,SP0000521
WANDSWORTH COUNCIL,ASC,SOCIAL SERVICES,HEALTH,EXT RES S28A 100% OLD LONGSTAY,410585,130241010,23-May-14,"3,037.02",Revenue,PARKGATE MANOR,SP0000521
WANDSWORTH COUNCIL,ASC,SOCIAL SERVICES,HEALTH,EXTERNAL RESIDENTIAL CARE S28A,408902,130241080,21-May-14,"4,909.16",Revenue,MACINTYRE CARE,SP0000473
WANDSWORTH COUNCIL,ASC,SOCIAL SERVICES,HEALTH,EXTERNAL RESIDENTIAL CARE S28A,410654,130241080,23-May-14,"7,215.87",Revenue,PROGRESS HOUSING LULWORTH,SP0000921
WANDSWORTH COUNCIL,ASC,SOCIAL SERVICES,HEALTH,EXT RES S28A OLD LONG STAY,410635,130241110,23-May-14,"4,760.10",Revenue,THE COMMUNITY CARE COMPANY UK LTD,SP0000576
WANDSWORTH COUNCIL,ASC,SOCIAL SERVICES,HEALTH,EXT RES S28A OLD LONG STAY,406202,130241110,16-May-14,"3,659.52",Revenue,METROPOLITAN HOUSING TRUST,SP0000626
WANDSWORTH COUNCIL,ASC,SOCIAL SERVICES,HEALTH,EXT RES S28A OLD LONG STAY,406212,130241110,16-May-14,"4,713.59",Revenue,METROPOLITAN HOUSING TRUST,SP0000626
WANDSWORTH COUNCIL,ASC,SOCIAL SERVICES,HEALTH,EXT RES S28A OLD LONG STAY,399147,130241110,06-May-14,"2,690.16",Revenue,ASHTON CARE,SP0000695
WANDSWORTH COUNCIL,ASC,SOCIAL SERVICES,HEALTH,EXT RES S28A OLD LONG STAY,403485,130241110,13-May-14,"4,351.72",Revenue,ANTHONY TOBY HOMES TRUST,SP0000755
WANDSWORTH COUNCIL,ASC,SOCIAL SERVICES,OTHER AGENCIES,ENABLERS/EDUCATION FEES,413967,130243280,30-May-14,"16,446.67",Revenue,ST  JOHN'S SCHOOL & COLLEGE,SP0001374
WANDSWORTH COUNCIL,ASC,SOCIAL SERVICES,OTHER AGENCIES,ENABLERS/EDUCATION FEES,413968,130243280,30-May-14,"16,466.67",Revenue,ST  JOHN'S SCHOOL & COLLEGE,SP0001374
WANDSWORTH COUNCIL,ASC,SOCIAL SERVICES,OTHER AGENCIES,ENABLERS/EDUCATION FEES,399133,130243280,06-May-14,"27,117.34",Revenue,THE WEST OF ENGLAND SCHOOL & COLLEGE,SP0001486
WANDSWORTH COUNCIL,ASC,SOCIAL SERVICES,OTHER AGENCIES,ENABLERS/EDUCATION FEES,399134,130243280,06-May-14,"13,908.31",Revenue,THE WEST OF ENGLAND SCHOOL & COLLEGE,SP0001486
WANDSWORTH COUNCIL,ASC,SOCIAL SERVICES,OTHER AGENCIES,ENABLERS/EDUCATION FEES,399135,130243280,06-May-14,"15,115.32",Revenue,THE WEST OF ENGLAND SCHOOL & COLLEGE,SP0001486
WANDSWORTH COUNCIL,ASC,SOCIAL SERVICES,OTHER AGENCIES,ENABLERS/EDUCATION FEES,399136,130243280,06-May-14,"11,325.65",Revenue,THE WEST OF ENGLAND SCHOOL & COLLEGE,SP0001486
WANDSWORTH COUNCIL,ASC,SOCIAL SERVICES,OTHER AGENCIES,ENABLERS/EDUCATION FEES,399137,130243280,06-May-14,"13,558.67",Revenue,THE WEST OF ENGLAND SCHOOL & COLLEGE,SP0001486
WANDSWORTH COUNCIL,ASC,SOCIAL SERVICES,OTHER AGENCIES,EXTERNAL OUTREACH,406432,130243330,16-May-14,570.40,Revenue,RAINBOW MEDICAL SERVICES,SP0000037
WANDSWORTH COUNCIL,ASC,SOCIAL SERVICES,OTHER AGENCIES,EXTERNAL OUTREACH,406434,130243330,16-May-14,848.64,Revenue,RAINBOW MEDICAL SERVICES,SP0000037
WANDSWORTH COUNCIL,ASC,SOCIAL SERVICES,OTHER AGENCIES,EXTERNAL OUTREACH,401385,130243330,09-May-14,850.00,Revenue,PROTOCOL EDUCATION  LTD,SP0000171
WANDSWORTH COUNCIL,ASC,SOCIAL SERVICES,OTHER AGENCIES,EXTERNAL OUTREACH,411024,130243330,23-May-14,850.00,Revenue,PROTOCOL EDUCATION  LTD,SP0000171
WANDSWORTH COUNCIL,ASC,SOCIAL SERVICES,OTHER AGENCIES,EXTERNAL OUTREACH,411034,130243330,23-May-14,850.00,Revenue,PROTOCOL EDUCATION  LTD,SP0000171
WANDSWORTH COUNCIL,ASC,SOCIAL SERVICES,OTHER AGENCIES,EXTERNAL OUTREACH,411042,130243330,23-May-14,425.00,Revenue,PROTOCOL EDUCATION  LTD,SP0000171
WANDSWORTH COUNCIL,ASC,SOCIAL SERVICES,OTHER AGENCIES,EXTERNAL OUTREACH,403661,130243330,13-May-14,628.00,Revenue,HARINGEY ASSOCIATION FOR INDEPENDENT LIV,SP0000222
WANDSWORTH COUNCIL,ASC,SOCIAL SERVICES,OTHER AGENCIES,EXTERNAL OUTREACH,403667,130243330,13-May-14,"2,185.32",Revenue,C M CARE LTD,SP0000455
WANDSWORTH COUNCIL,ASC,SOCIAL SERVICES,OTHER AGENCIES,EXTERNAL OUTREACH,403669,130243330,13-May-14,936.00,Revenue,C M CARE LTD,SP0000455
WANDSWORTH COUNCIL,ASC,SOCIAL SERVICES,OTHER AGENCIES,EXTERNAL OUTREACH,403670,130243330,13-May-14,"1,188.00",Revenue,C M CARE LTD,SP0000455
WANDSWORTH COUNCIL,ASC,SOCIAL SERVICES,OTHER AGENCIES,EXTERNAL OUTREACH,403671,130243330,13-May-14,"1,287.20",Revenue,C M CARE LTD,SP0000455
WANDSWORTH COUNCIL,ASC,SOCIAL SERVICES,OTHER AGENCIES,EXTERNAL OUTREACH,403673,130243330,13-May-14,576.00,Revenue,C M CARE LTD,SP0000455
WANDSWORTH COUNCIL,ASC,SOCIAL SERVICES,OTHER AGENCIES,EXTERNAL OUTREACH,403674,130243330,13-May-14,"1,540.00",Revenue,C M CARE LTD,SP0000455
WANDSWORTH COUNCIL,ASC,SOCIAL SERVICES,OTHER AGENCIES,EXTERNAL OUTREACH,405496,130243330,15-May-14,598.20,Revenue,GENERATE OPPORTUNITIES LTD,SP0000503
WANDSWORTH COUNCIL,ASC,SOCIAL SERVICES,OTHER AGENCIES,EXTERNAL OUTREACH,405502,130243330,15-May-14,797.60,Revenue,GENERATE OPPORTUNITIES LTD,SP0000503
WANDSWORTH COUNCIL,ASC,SOCIAL SERVICES,OTHER AGENCIES,EXTERNAL OUTREACH,405503,130243330,15-May-14,398.80,Revenue,GENERATE OPPORTUNITIES LTD,SP0000503
WANDSWORTH COUNCIL,ASC,SOCIAL SERVICES,OTHER AGENCIES,EXTERNAL OUTREACH,405504,130243330,15-May-14,919.40,Revenue,GENERATE OPPORTUNITIES LTD,SP0000503
WANDSWORTH COUNCIL,ASC,SOCIAL SERVICES,OTHER AGENCIES,EXTERNAL OUTREACH,405513,130243330,15-May-14,548.80,Revenue,GENERATE OPPORTUNITIES LTD,SP0000503
WANDSWORTH COUNCIL,ASC,SOCIAL SERVICES,OTHER AGENCIES,EXTERNAL OUTREACH,405558,130243330,15-May-14,897.30,Revenue,GENERATE OPPORTUNITIES LTD,SP0000503
WANDSWORTH COUNCIL,ASC,SOCIAL SERVICES,OTHER AGENCIES,EXTERNAL OUTREACH,405559,130243330,15-May-14,-0.60,Revenue,GENERATE OPPORTUNITIES LTD,SP0000503
WANDSWORTH COUNCIL,ASC,SOCIAL SERVICES,OTHER AGENCIES,EXTERNAL OUTREACH,405562,130243330,15-May-14,299.10,Revenue,GENERATE OPPORTUNITIES LTD,SP0000503
WANDSWORTH COUNCIL,ASC,SOCIAL SERVICES,OTHER AGENCIES,EXTERNAL OUTREACH,405563,130243330,15-May-14,997.00,Revenue,GENERATE OPPORTUNITIES LTD,SP0000503
WANDSWORTH COUNCIL,ASC,SOCIAL SERVICES,OTHER AGENCIES,EXTERNAL OUTREACH,405568,130243330,15-May-14,797.60,Revenue,GENERATE OPPORTUNITIES LTD,SP0000503
WANDSWORTH COUNCIL,ASC,SOCIAL SERVICES,OTHER AGENCIES,EXTERNAL OUTREACH,405569,130243330,15-May-14,997.00,Revenue,GENERATE OPPORTUNITIES LTD,SP0000503
WANDSWORTH COUNCIL,ASC,SOCIAL SERVICES,OTHER AGENCIES,EXTERNAL OUTREACH,405575,130243330,15-May-14,598.20,Revenue,GENERATE OPPORTUNITIES LTD,SP0000503
WANDSWORTH COUNCIL,ASC,SOCIAL SERVICES,OTHER AGENCIES,EXTERNAL OUTREACH,405578,130243330,15-May-14,598.20,Revenue,GENERATE OPPORTUNITIES LTD,SP0000503
WANDSWORTH COUNCIL,ASC,SOCIAL SERVICES,OTHER AGENCIES,EXTERNAL OUTREACH,405580,130243330,15-May-14,598.20,Revenue,GENERATE OPPORTUNITIES LTD,SP0000503
WANDSWORTH COUNCIL,ASC,SOCIAL SERVICES,OTHER AGENCIES,EXTERNAL OUTREACH,405581,130243330,15-May-14,"2,791.60",Revenue,GENERATE OPPORTUNITIES LTD,SP0000503
WANDSWORTH COUNCIL,ASC,SOCIAL SERVICES,OTHER AGENCIES,EXTERNAL OUTREACH,406614,130243330,16-May-14,997.00,Revenue,GENERATE OPPORTUNITIES LTD,SP0000503
WANDSWORTH COUNCIL,ASC,SOCIAL SERVICES,OTHER AGENCIES,EXTERNAL OUTREACH,406615,130243330,16-May-14,398.80,Revenue,GENERATE OPPORTUNITIES LTD,SP0000503
WANDSWORTH COUNCIL,ASC,SOCIAL SERVICES,OTHER AGENCIES,EXTERNAL OUTREACH,406616,130243330,16-May-14,"3,125.65",Revenue,GENERATE OPPORTUNITIES LTD,SP0000503
WANDSWORTH COUNCIL,ASC,SOCIAL SERVICES,OTHER AGENCIES,EXTERNAL OUTREACH,406619,130243330,16-May-14,810.93,Revenue,METROPOLITAN HOUSING TRUST,SP0000626
WANDSWORTH COUNCIL,ASC,SOCIAL SERVICES,OTHER AGENCIES,EXTERNAL OUTREACH,406633,130243330,16-May-14,991.13,Revenue,METROPOLITAN HOUSING TRUST,SP0000626
WANDSWORTH COUNCIL,ASC,SOCIAL SERVICES,OTHER AGENCIES,EXTERNAL OUTREACH,406636,130243330,16-May-14,810.93,Revenue,METROPOLITAN HOUSING TRUST,SP0000626
WANDSWORTH COUNCIL,ASC,SOCIAL SERVICES,OTHER AGENCIES,EXTERNAL OUTREACH,406640,130243330,16-May-14,630.72,Revenue,METROPOLITAN HOUSING TRUST,SP0000626
WANDSWORTH COUNCIL,ASC,SOCIAL SERVICES,OTHER AGENCIES,EXTERNAL OUTREACH,406642,130243330,16-May-14,630.72,Revenue,METROPOLITAN HOUSING TRUST,SP0000626
WANDSWORTH COUNCIL,ASC,SOCIAL SERVICES,OTHER AGENCIES,EXTERNAL OUTREACH,401591,130243330,09-May-14,"1,053.44",Revenue,SOUTHSIDE PARTNERSHIP,SP0000692
WANDSWORTH COUNCIL,ASC,SOCIAL SERVICES,OTHER AGENCIES,EXTERNAL OUTREACH,406439,130243330,16-May-14,630.00,Revenue,ACT TOO LTD,SP0000855
WANDSWORTH COUNCIL,ASC,SOCIAL SERVICES,OTHER AGENCIES,EXTERNAL OUTREACH,406447,130243330,16-May-14,600.00,Revenue,ACT TOO LTD,SP0000855
WANDSWORTH COUNCIL,ASC,SOCIAL SERVICES,OTHER AGENCIES,EXTERNAL OUTREACH,408352,130243330,20-May-14,630.00,Revenue,ACT TOO LTD,SP0000855
WANDSWORTH COUNCIL,ASC,SOCIAL SERVICES,OTHER AGENCIES,EXTERNAL OUTREACH,408360,130243330,20-May-14,600.00,Revenue,ACT TOO LTD,SP0000855
WANDSWORTH COUNCIL,ASC,SOCIAL SERVICES,OTHER AGENCIES,EXTERNAL OUTREACH,406693,130243330,16-May-14,570.00,Revenue,ROYAL ASSOCIATION FOR DEAF PEOPLE,SP0001251
WANDSWORTH COUNCIL,ASC,SOCIAL SERVICES,OTHER AGENCIES,EXTERNAL OUTREACH,406694,130243330,16-May-14,"1,500.00",Revenue,ROYAL ASSOCIATION FOR DEAF PEOPLE,SP0001251
WANDSWORTH COUNCIL,ASC,SOCIAL SERVICES,OTHER AGENCIES,EXTERNAL OUTREACH,401556,130243330,09-May-14,331.24,Revenue,THE BRANDON TRUST,SP0005337
WANDSWORTH COUNCIL,ASC,SOCIAL SERVICES,OTHER AGENCIES,EXTERNAL OUTREACH,401574,130243330,09-May-14,227.00,Revenue,THE BRANDON TRUST,SP0005337
WANDSWORTH COUNCIL,ASC,SOCIAL SERVICES,OTHER AGENCIES,EXTERNAL OUTREACH,401578,130243330,09-May-14,536.86,Revenue,THE BRANDON TRUST,SP0005337
WANDSWORTH COUNCIL,ASC,SOCIAL SERVICES,OTHER AGENCIES,EXTERNAL OUTREACH,401581,130243330,09-May-14,843.64,Revenue,THE BRANDON TRUST,SP0005337
WANDSWORTH COUNCIL,ASC,SOCIAL SERVICES,OTHER AGENCIES,EXTERNAL OUTREACH,401602,130243330,09-May-14,631.60,Revenue,THE BRANDON TRUST,SP0005337
WANDSWORTH COUNCIL,ASC,SOCIAL SERVICES,OTHER AGENCIES,EXTERNAL OUTREACH,401616,130243330,09-May-14,568.44,Revenue,THE BRANDON TRUST,SP0005337
WANDSWORTH COUNCIL,ASC,SOCIAL SERVICES,OTHER AGENCIES,EXTERNAL OUTREACH,401617,130243330,09-May-14,757.92,Revenue,THE BRANDON TRUST,SP0005337
WANDSWORTH COUNCIL,ASC,SOCIAL SERVICES,OTHER AGENCIES,EXTERNAL OUTREACH,401618,130243330,09-May-14,252.64,Revenue,THE BRANDON TRUST,SP0005337
WANDSWORTH COUNCIL,ASC,SOCIAL SERVICES,OTHER AGENCIES,EXTERNAL OUTREACH,401625,130243330,09-May-14,947.40,Revenue,THE BRANDON TRUST,SP0005337
WANDSWORTH COUNCIL,ASC,SOCIAL SERVICES,OTHER AGENCIES,EXTERNAL OUTREACH,401630,130243330,09-May-14,"1,170.80",Revenue,THE BRANDON TRUST,SP0005337
WANDSWORTH COUNCIL,ASC,SOCIAL SERVICES,OTHER AGENCIES,EXTERNAL OUTREACH,406692,130243330,16-May-14,"3,360.00",Revenue,RELIABLE PERSONNEL LTD,SP0005657
WANDSWORTH COUNCIL,ASC,SOCIAL SERVICES,OTHER AGENCIES,APS SHARED LIVES SCHEME,20282917,130243820,21-May-14,"6,668.26",Revenue,SOUTHSIDE PARTNERSHIP,2005209
WANDSWORTH COUNCIL,ASC,SOCIAL SERVICES,OTHER AGENCIES,APS SHARED LIVES SCHEME,20282918,130243820,21-May-14,"71,325.87",Revenue,SOUTHSIDE PARTNERSHIP,2005209
WANDSWORTH COUNCIL,ASC,SOCIAL SERVICES,OTHER AGENCIES,APS SHARED LIVES SCHEME,20282921,130243820,21-May-14,845.58,Revenue,SOUTHSIDE PARTNERSHIP,2005209
WANDSWORTH COUNCIL,ASC,SOCIAL SERVICES,OTHER AGENCIES,APS SHARED LIVES SCHEME,20282922,130243820,21-May-14,"9,955.90",Revenue,SOUTHSIDE PARTNERSHIP,2005209
WANDSWORTH COUNCIL,ASC,SOCIAL SERVICES,OTHER AGENCIES,APS SHARED LIVES SCHEME,20282944,130243820,22-May-14,"15,619.00",Revenue,SOUTHSIDE PARTNERSHIP,2005209
WANDSWORTH COUNCIL,ASC,SOCIAL SERVICES,OTHER AGENCIES,APS SHARED LIVES SCHEME,20282945,130243820,22-May-14,"72,374.84",Revenue,SOUTHSIDE PARTNERSHIP,2005209
WANDSWORTH COUNCIL,ASC,SOCIAL SERVICES,OTHER AGENCIES,APS SHARED LIVES SCHEME,20282946,130243820,22-May-14,"2,855.59",Revenue,SOUTHSIDE PARTNERSHIP,2005209
WANDSWORTH COUNCIL,ASC,SOCIAL SERVICES,OTHER AGENCIES,APS SHARED LIVES SCHEME,20282947,130243820,22-May-14,"5,220.89",Revenue,SOUTHSIDE PARTNERSHIP,2005209
WANDSWORTH COUNCIL,ASC,SOCIAL SERVICES,PRIVATE,EXTERNAL DAYCARE,20282797,130245290,21-May-14,"2,759.38",Revenue,LEONARD CHESHIRE,2008417
WANDSWORTH COUNCIL,ASC,SOCIAL SERVICES,PRIVATE,EXTERNAL DAYCARE,20282799,130245290,21-May-14,"2,759.38",Revenue,LEONARD CHESHIRE,2008417
WANDSWORTH COUNCIL,ASC,SOCIAL SERVICES,PRIVATE,EXTERNAL DAYCARE,20282800,130245290,21-May-14,"4,297.21",Revenue,LEONARD CHESHIRE,2008417
WANDSWORTH COUNCIL,ASC,SOCIAL SERVICES,PRIVATE,EXTERNAL DAYCARE,20282930,130245290,21-May-14,"3,344.80",Revenue,LEONARD CHESHIRE,2008417
WANDSWORTH COUNCIL,ASC,SOCIAL SERVICES,PRIVATE,EXTERNAL DAYCARE,20282931,130245290,21-May-14,"4,762.20",Revenue,LEONARD CHESHIRE,2008417
WANDSWORTH COUNCIL,ASC,SOCIAL SERVICES,PRIVATE,EXTERNAL DAYCARE,20283363,130245290,29-May-14,"4,762.21",Revenue,LEONARD CHESHIRE,2008417
WANDSWORTH COUNCIL,ASC,SOCIAL SERVICES,PRIVATE,EXTERNAL DAYCARE,397858,130245290,01-May-14,"2,094.62",Revenue,CMG HOMES LTD,SP0000075
WANDSWORTH COUNCIL,ASC,SOCIAL SERVICES,PRIVATE,EXTERNAL DAYCARE,397859,130245290,01-May-14,931.04,Revenue,CMG HOMES LTD,SP0000075
WANDSWORTH COUNCIL,ASC,SOCIAL SERVICES,PRIVATE,EXTERNAL DAYCARE,401547,130245290,09-May-14,"2,094.62",Revenue,CMG HOMES LTD,SP0000075
WANDSWORTH COUNCIL,ASC,SOCIAL SERVICES,PRIVATE,EXTERNAL DAYCARE,401548,130245290,09-May-14,931.04,Revenue,CMG HOMES LTD,SP0000075
WANDSWORTH COUNCIL,ASC,SOCIAL SERVICES,PRIVATE,EXTERNAL DAYCARE,411003,130245290,23-May-14,"1,107.68",Revenue,COUNTRY CARE,SP0000090
WANDSWORTH COUNCIL,ASC,SOCIAL SERVICES,PRIVATE,EXTERNAL DAYCARE,411004,130245290,23-May-14,"1,059.52",Revenue,COUNTRY CARE,SP0000090
WANDSWORTH COUNCIL,ASC,SOCIAL SERVICES,PRIVATE,EXTERNAL DAYCARE,405593,130245290,15-May-14,"1,213.76",Revenue,RESIDENTIAL CARE SERVICES T/A FRANKLYN L,SP0000147
WANDSWORTH COUNCIL,ASC,SOCIAL SERVICES,PRIVATE,EXTERNAL DAYCARE,399226,130245290,06-May-14,644.00,Revenue,THE CHESTNUTS,SP0000182
WANDSWORTH COUNCIL,ASC,SOCIAL SERVICES,PRIVATE,EXTERNAL DAYCARE,410545,130245290,23-May-14,125.80,Revenue,THE CHESTNUTS,SP0000182
WANDSWORTH COUNCIL,ASC,SOCIAL SERVICES,PRIVATE,EXTERNAL DAYCARE,408351,130245290,20-May-14,878.48,Revenue,ORCHARD VALE TRUST,SP0000214
WANDSWORTH COUNCIL,ASC,SOCIAL SERVICES,PRIVATE,EXTERNAL DAYCARE,401374,130245290,09-May-14,"1,575.80",Revenue,NAS SERVICES LIMITED,SP0000217
WANDSWORTH COUNCIL,ASC,SOCIAL SERVICES,PRIVATE,EXTERNAL DAYCARE,401375,130245290,09-May-14,"3,700.40",Revenue,NAS SERVICES LIMITED,SP0000217
WANDSWORTH COUNCIL,ASC,SOCIAL SERVICES,PRIVATE,EXTERNAL DAYCARE,401376,130245290,09-May-14,"3,762.60",Revenue,NAS SERVICES LIMITED,SP0000217
WANDSWORTH COUNCIL,ASC,SOCIAL SERVICES,PRIVATE,EXTERNAL DAYCARE,401377,130245290,09-May-14,"3,017.00",Revenue,NAS SERVICES LIMITED,SP0000217
WANDSWORTH COUNCIL,ASC,SOCIAL SERVICES,PRIVATE,EXTERNAL DAYCARE,401378,130245290,09-May-14,"2,303.20",Revenue,NAS SERVICES LIMITED,SP0000217
WANDSWORTH COUNCIL,ASC,SOCIAL SERVICES,PRIVATE,EXTERNAL DAYCARE,403632,130245290,13-May-14,"2,194.40",Revenue,NAS SERVICES LIMITED,SP0000217
WANDSWORTH COUNCIL,ASC,SOCIAL SERVICES,PRIVATE,EXTERNAL DAYCARE,403664,130245290,13-May-14,864.80,Revenue,NAS SERVICES LIMITED,SP0000217
WANDSWORTH COUNCIL,ASC,SOCIAL SERVICES,PRIVATE,EXTERNAL DAYCARE,405592,130245290,15-May-14,"9,614.39",Revenue,NAS SERVICES LIMITED,SP0000217
WANDSWORTH COUNCIL,ASC,SOCIAL SERVICES,PRIVATE,EXTERNAL DAYCARE,414480,130245290,30-May-14,"2,303.20",Revenue,NAS SERVICES LIMITED,SP0000217
WANDSWORTH COUNCIL,ASC,SOCIAL SERVICES,PRIVATE,EXTERNAL DAYCARE,410938,130245290,23-May-14,806.04,Revenue,CRAEGMOOR FACILITIES CO LTD,SP0000306
WANDSWORTH COUNCIL,ASC,SOCIAL SERVICES,PRIVATE,EXTERNAL DAYCARE,399207,130245290,06-May-14,706.08,Revenue,SHARE COMMUNITY,SP0000329
WANDSWORTH COUNCIL,ASC,SOCIAL SERVICES,PRIVATE,EXTERNAL DAYCARE,399208,130245290,06-May-14,941.44,Revenue,SHARE COMMUNITY,SP0000329
WANDSWORTH COUNCIL,ASC,SOCIAL SERVICES,PRIVATE,EXTERNAL DAYCARE,399209,130245290,06-May-14,"1,129.60",Revenue,SHARE COMMUNITY,SP0000329
WANDSWORTH COUNCIL,ASC,SOCIAL SERVICES,PRIVATE,EXTERNAL DAYCARE,399210,130245290,06-May-14,"1,129.60",Revenue,SHARE COMMUNITY,SP0000329
WANDSWORTH COUNCIL,ASC,SOCIAL SERVICES,PRIVATE,EXTERNAL DAYCARE,399211,130245290,06-May-14,677.84,Revenue,SHARE COMMUNITY,SP0000329
WANDSWORTH COUNCIL,ASC,SOCIAL SERVICES,PRIVATE,EXTERNAL DAYCARE,399212,130245290,06-May-14,588.40,Revenue,SHARE COMMUNITY,SP0000329
WANDSWORTH COUNCIL,ASC,SOCIAL SERVICES,PRIVATE,EXTERNAL DAYCARE,399213,130245290,06-May-14,706.08,Revenue,SHARE COMMUNITY,SP0000329
WANDSWORTH COUNCIL,ASC,SOCIAL SERVICES,PRIVATE,EXTERNAL DAYCARE,399214,130245290,06-May-14,941.44,Revenue,SHARE COMMUNITY,SP0000329
WANDSWORTH COUNCIL,ASC,SOCIAL SERVICES,PRIVATE,EXTERNAL DAYCARE,399218,130245290,06-May-14,706.08,Revenue,SHARE COMMUNITY,SP0000329
WANDSWORTH COUNCIL,ASC,SOCIAL SERVICES,PRIVATE,EXTERNAL DAYCARE,399220,130245290,06-May-14,588.40,Revenue,SHARE COMMUNITY,SP0000329
WANDSWORTH COUNCIL,ASC,SOCIAL SERVICES,PRIVATE,EXTERNAL DAYCARE,399221,130245290,06-May-14,706.08,Revenue,SHARE COMMUNITY,SP0000329
WANDSWORTH COUNCIL,ASC,SOCIAL SERVICES,PRIVATE,EXTERNAL DAYCARE,399228,130245290,06-May-14,706.08,Revenue,SHARE COMMUNITY,SP0000329
WANDSWORTH COUNCIL,ASC,SOCIAL SERVICES,PRIVATE,EXTERNAL DAYCARE,399230,130245290,06-May-14,941.44,Revenue,SHARE COMMUNITY,SP0000329
WANDSWORTH COUNCIL,ASC,SOCIAL SERVICES,PRIVATE,EXTERNAL DAYCARE,399231,130245290,06-May-14,706.08,Revenue,SHARE COMMUNITY,SP0000329
WANDSWORTH COUNCIL,ASC,SOCIAL SERVICES,PRIVATE,EXTERNAL DAYCARE,399232,130245290,06-May-14,677.84,Revenue,SHARE COMMUNITY,SP0000329
WANDSWORTH COUNCIL,ASC,SOCIAL SERVICES,PRIVATE,EXTERNAL DAYCARE,399233,130245290,06-May-14,706.08,Revenue,SHARE COMMUNITY,SP0000329
WANDSWORTH COUNCIL,ASC,SOCIAL SERVICES,PRIVATE,EXTERNAL DAYCARE,399234,130245290,06-May-14,677.84,Revenue,SHARE COMMUNITY,SP0000329
WANDSWORTH COUNCIL,ASC,SOCIAL SERVICES,PRIVATE,EXTERNAL DAYCARE,399235,130245290,06-May-14,677.84,Revenue,SHARE COMMUNITY,SP0000329
WANDSWORTH COUNCIL,ASC,SOCIAL SERVICES,PRIVATE,EXTERNAL DAYCARE,399239,130245290,06-May-14,677.84,Revenue,SHARE COMMUNITY,SP0000329
WANDSWORTH COUNCIL,ASC,SOCIAL SERVICES,PRIVATE,EXTERNAL DAYCARE,399240,130245290,06-May-14,"1,176.80",Revenue,SHARE COMMUNITY,SP0000329
WANDSWORTH COUNCIL,ASC,SOCIAL SERVICES,PRIVATE,EXTERNAL DAYCARE,399246,130245290,06-May-14,677.84,Revenue,SHARE COMMUNITY,SP0000329
WANDSWORTH COUNCIL,ASC,SOCIAL SERVICES,PRIVATE,EXTERNAL DAYCARE,399247,130245290,06-May-14,677.84,Revenue,SHARE COMMUNITY,SP0000329
WANDSWORTH COUNCIL,ASC,SOCIAL SERVICES,PRIVATE,EXTERNAL DAYCARE,399251,130245290,06-May-14,706.08,Revenue,SHARE COMMUNITY,SP0000329
WANDSWORTH COUNCIL,ASC,SOCIAL SERVICES,PRIVATE,EXTERNAL DAYCARE,399253,130245290,06-May-14,706.08,Revenue,SHARE COMMUNITY,SP0000329
WANDSWORTH COUNCIL,ASC,SOCIAL SERVICES,PRIVATE,EXTERNAL DAYCARE,399255,130245290,06-May-14,941.44,Revenue,SHARE COMMUNITY,SP0000329
WANDSWORTH COUNCIL,ASC,SOCIAL SERVICES,PRIVATE,EXTERNAL DAYCARE,399256,130245290,06-May-14,706.08,Revenue,SHARE COMMUNITY,SP0000329
WANDSWORTH COUNCIL,ASC,SOCIAL SERVICES,PRIVATE,EXTERNAL DAYCARE,399258,130245290,06-May-14,706.08,Revenue,SHARE COMMUNITY,SP0000329
WANDSWORTH COUNCIL,ASC,SOCIAL SERVICES,PRIVATE,EXTERNAL DAYCARE,399260,130245290,06-May-14,706.08,Revenue,SHARE COMMUNITY,SP0000329
WANDSWORTH COUNCIL,ASC,SOCIAL SERVICES,PRIVATE,EXTERNAL DAYCARE,399262,130245290,06-May-14,706.08,Revenue,SHARE COMMUNITY,SP0000329
WANDSWORTH COUNCIL,ASC,SOCIAL SERVICES,PRIVATE,EXTERNAL DAYCARE,397876,130245290,01-May-14,"1,070.96",Revenue,DOLPHIN HOMES LTD,SP0000331
WANDSWORTH COUNCIL,ASC,SOCIAL SERVICES,PRIVATE,EXTERNAL DAYCARE,410920,130245290,23-May-14,"2,000.16",Revenue,NORWOOD SCHOOLS LTD,SP0000332
WANDSWORTH COUNCIL,ASC,SOCIAL SERVICES,PRIVATE,EXTERNAL DAYCARE,410921,130245290,23-May-14,"2,055.64",Revenue,NORWOOD SCHOOLS LTD,SP0000332
WANDSWORTH COUNCIL,ASC,SOCIAL SERVICES,PRIVATE,EXTERNAL DAYCARE,403634,130245290,13-May-14,"1,057.00",Revenue,ST DAVIDS CARE IN THE COMMUNITY,SP0000379
WANDSWORTH COUNCIL,ASC,SOCIAL SERVICES,PRIVATE,EXTERNAL DAYCARE,403635,130245290,13-May-14,"1,057.00",Revenue,ST DAVIDS CARE IN THE COMMUNITY,SP0000379
WANDSWORTH COUNCIL,ASC,SOCIAL SERVICES,PRIVATE,EXTERNAL DAYCARE,403636,130245290,13-May-14,"1,057.00",Revenue,ST DAVIDS CARE IN THE COMMUNITY,SP0000379
WANDSWORTH COUNCIL,ASC,SOCIAL SERVICES,PRIVATE,EXTERNAL DAYCARE,401542,130245290,09-May-14,525.70,Revenue,O A ROWE,SP0000431
WANDSWORTH COUNCIL,ASC,SOCIAL SERVICES,PRIVATE,EXTERNAL DAYCARE,401544,130245290,09-May-14,525.70,Revenue,O A ROWE,SP0000431
WANDSWORTH COUNCIL,ASC,SOCIAL SERVICES,PRIVATE,EXTERNAL DAYCARE,401444,130245290,09-May-14,"1,105.50",Revenue,MACINTYRE CARE,SP0000473
WANDSWORTH COUNCIL,ASC,SOCIAL SERVICES,PRIVATE,EXTERNAL DAYCARE,403640,130245290,13-May-14,760.00,Revenue,WANDSWORTH BENGALI WELFARE ASSOCIATION,SP0000479
WANDSWORTH COUNCIL,ASC,SOCIAL SERVICES,PRIVATE,EXTERNAL DAYCARE,410946,130245290,23-May-14,683.36,Revenue,CHOICES,SP0000486
WANDSWORTH COUNCIL,ASC,SOCIAL SERVICES,PRIVATE,EXTERNAL DAYCARE,405500,130245290,15-May-14,700.00,Revenue,GENERATE OPPORTUNITIES LTD,SP0000503
WANDSWORTH COUNCIL,ASC,SOCIAL SERVICES,PRIVATE,EXTERNAL DAYCARE,405501,130245290,15-May-14,720.00,Revenue,GENERATE OPPORTUNITIES LTD,SP0000503
WANDSWORTH COUNCIL,ASC,SOCIAL SERVICES,PRIVATE,EXTERNAL DAYCARE,405503,130245290,15-May-14,200.00,Revenue,GENERATE OPPORTUNITIES LTD,SP0000503
WANDSWORTH COUNCIL,ASC,SOCIAL SERVICES,PRIVATE,EXTERNAL DAYCARE,405505,130245290,15-May-14,"1,375.00",Revenue,GENERATE OPPORTUNITIES LTD,SP0000503
WANDSWORTH COUNCIL,ASC,SOCIAL SERVICES,PRIVATE,EXTERNAL DAYCARE,405554,130245290,15-May-14,720.00,Revenue,GENERATE OPPORTUNITIES LTD,SP0000503
WANDSWORTH COUNCIL,ASC,SOCIAL SERVICES,PRIVATE,EXTERNAL DAYCARE,405556,130245290,15-May-14,800.00,Revenue,GENERATE OPPORTUNITIES LTD,SP0000503
WANDSWORTH COUNCIL,ASC,SOCIAL SERVICES,PRIVATE,EXTERNAL DAYCARE,405559,130245290,15-May-14,600.00,Revenue,GENERATE OPPORTUNITIES LTD,SP0000503
WANDSWORTH COUNCIL,ASC,SOCIAL SERVICES,PRIVATE,EXTERNAL DAYCARE,405562,130245290,15-May-14,700.00,Revenue,GENERATE OPPORTUNITIES LTD,SP0000503
WANDSWORTH COUNCIL,ASC,SOCIAL SERVICES,PRIVATE,EXTERNAL DAYCARE,405563,130245290,15-May-14,400.00,Revenue,GENERATE OPPORTUNITIES LTD,SP0000503
WANDSWORTH COUNCIL,ASC,SOCIAL SERVICES,PRIVATE,EXTERNAL DAYCARE,405564,130245290,15-May-14,720.00,Revenue,GENERATE OPPORTUNITIES LTD,SP0000503
WANDSWORTH COUNCIL,ASC,SOCIAL SERVICES,PRIVATE,EXTERNAL DAYCARE,405566,130245290,15-May-14,"1,000.00",Revenue,GENERATE OPPORTUNITIES LTD,SP0000503
WANDSWORTH COUNCIL,ASC,SOCIAL SERVICES,PRIVATE,EXTERNAL DAYCARE,405567,130245290,15-May-14,600.00,Revenue,GENERATE OPPORTUNITIES LTD,SP0000503
WANDSWORTH COUNCIL,ASC,SOCIAL SERVICES,PRIVATE,EXTERNAL DAYCARE,405574,130245290,15-May-14,720.00,Revenue,GENERATE OPPORTUNITIES LTD,SP0000503
WANDSWORTH COUNCIL,ASC,SOCIAL SERVICES,PRIVATE,EXTERNAL DAYCARE,405586,130245290,15-May-14,720.00,Revenue,GENERATE OPPORTUNITIES LTD,SP0000503
WANDSWORTH COUNCIL,ASC,SOCIAL SERVICES,PRIVATE,EXTERNAL DAYCARE,406613,130245290,16-May-14,600.00,Revenue,GENERATE OPPORTUNITIES LTD,SP0000503
WANDSWORTH COUNCIL,ASC,SOCIAL SERVICES,PRIVATE,EXTERNAL DAYCARE,406615,130245290,16-May-14,350.00,Revenue,GENERATE OPPORTUNITIES LTD,SP0000503
WANDSWORTH COUNCIL,ASC,SOCIAL SERVICES,PRIVATE,EXTERNAL DAYCARE,403633,130245290,13-May-14,"1,749.24",Revenue,THE REGARD PARTNERSHIP,SP0000588
WANDSWORTH COUNCIL,ASC,SOCIAL SERVICES,PRIVATE,EXTERNAL DAYCARE,403654,130245290,13-May-14,"1,226.20",Revenue,THE REGARD PARTNERSHIP,SP0000588
WANDSWORTH COUNCIL,ASC,SOCIAL SERVICES,PRIVATE,EXTERNAL DAYCARE,401546,130245290,09-May-14,"1,305.90",Revenue,ASHFIELD CARE HOMES LTD,SP0000590
WANDSWORTH COUNCIL,ASC,SOCIAL SERVICES,PRIVATE,EXTERNAL DAYCARE,410944,130245290,23-May-14,914.13,Revenue,ASHFIELD CARE HOMES LTD,SP0000590
WANDSWORTH COUNCIL,ASC,SOCIAL SERVICES,PRIVATE,EXTERNAL DAYCARE,410945,130245290,23-May-14,957.66,Revenue,ASHFIELD CARE HOMES LTD,SP0000590
WANDSWORTH COUNCIL,ASC,SOCIAL SERVICES,PRIVATE,EXTERNAL DAYCARE,410927,130245290,23-May-14,616.00,Revenue,THRIVE,SP0000601
WANDSWORTH COUNCIL,ASC,SOCIAL SERVICES,PRIVATE,EXTERNAL DAYCARE,397867,130245290,01-May-14,602.56,Revenue,HIGH HURLANDS HOMES,SP0000668
WANDSWORTH COUNCIL,ASC,SOCIAL SERVICES,PRIVATE,EXTERNAL DAYCARE,410919,130245290,23-May-14,602.56,Revenue,HIGH HURLANDS HOMES,SP0000668
WANDSWORTH COUNCIL,ASC,SOCIAL SERVICES,PRIVATE,EXTERNAL DAYCARE,410939,130245290,23-May-14,626.56,Revenue,CREST COOPERATIVE LTD,SP0000683
WANDSWORTH COUNCIL,ASC,SOCIAL SERVICES,PRIVATE,EXTERNAL DAYCARE,401541,130245290,09-May-14,"1,057.00",Revenue,THE MANOR HOUSE,SP0000728
WANDSWORTH COUNCIL,ASC,SOCIAL SERVICES,PRIVATE,EXTERNAL DAYCARE,403637,130245290,13-May-14,"1,204.06",Revenue,ANTHONY TOBY HOMES TRUST,SP0000755
WANDSWORTH COUNCIL,ASC,SOCIAL SERVICES,PRIVATE,EXTERNAL DAYCARE,397873,130245290,01-May-14,578.57,Revenue,PROSPECTS,SP0000800
WANDSWORTH COUNCIL,ASC,SOCIAL SERVICES,PRIVATE,EXTERNAL DAYCARE,406606,130245290,16-May-14,540.00,Revenue,PROSPECTS,SP0000800
WANDSWORTH COUNCIL,ASC,SOCIAL SERVICES,PRIVATE,EXTERNAL DAYCARE,406607,130245290,16-May-14,771.43,Revenue,PROSPECTS,SP0000800
WANDSWORTH COUNCIL,ASC,SOCIAL SERVICES,PRIVATE,EXTERNAL DAYCARE,406608,130245290,16-May-14,540.00,Revenue,PROSPECTS,SP0000800
WANDSWORTH COUNCIL,ASC,SOCIAL SERVICES,PRIVATE,EXTERNAL DAYCARE,406609,130245290,16-May-14,597.86,Revenue,PROSPECTS,SP0000800
WANDSWORTH COUNCIL,ASC,SOCIAL SERVICES,PRIVATE,EXTERNAL DAYCARE,408349,130245290,20-May-14,765.00,Revenue,PROSPECTS,SP0000800
WANDSWORTH COUNCIL,ASC,SOCIAL SERVICES,PRIVATE,EXTERNAL DAYCARE,408350,130245290,20-May-14,720.00,Revenue,PROSPECTS,SP0000800
WANDSWORTH COUNCIL,ASC,SOCIAL SERVICES,PRIVATE,EXTERNAL DAYCARE,397871,130245290,01-May-14,505.44,Revenue,MENCAP OPEN DOOR,SP0000832
WANDSWORTH COUNCIL,ASC,SOCIAL SERVICES,PRIVATE,EXTERNAL DAYCARE,397894,130245290,01-May-14,519.60,Revenue,MENCAP OPEN DOOR,SP0000832
WANDSWORTH COUNCIL,ASC,SOCIAL SERVICES,PRIVATE,EXTERNAL DAYCARE,406612,130245290,16-May-14,"1,586.84",Revenue,STALLCOMBE HOUSE,SP0000843
WANDSWORTH COUNCIL,ASC,SOCIAL SERVICES,PRIVATE,EXTERNAL DAYCARE,398377,130245290,02-May-14,814.03,Revenue,SCOPE,SP0000852
WANDSWORTH COUNCIL,ASC,SOCIAL SERVICES,PRIVATE,EXTERNAL DAYCARE,401380,130245290,09-May-14,833.52,Revenue,SCOPE,SP0000852
WANDSWORTH COUNCIL,ASC,SOCIAL SERVICES,PRIVATE,EXTERNAL DAYCARE,401545,130245290,09-May-14,814.03,Revenue,SCOPE,SP0000852
WANDSWORTH COUNCIL,ASC,SOCIAL SERVICES,PRIVATE,EXTERNAL DAYCARE,401585,130245290,09-May-14,833.52,Revenue,SCOPE,SP0000852
WANDSWORTH COUNCIL,ASC,SOCIAL SERVICES,PRIVATE,EXTERNAL DAYCARE,411068,130245290,23-May-14,833.52,Revenue,SCOPE,SP0000852
WANDSWORTH COUNCIL,ASC,SOCIAL SERVICES,PRIVATE,EXTERNAL DAYCARE,405517,130245290,15-May-14,738.72,Revenue,ACT TOO LTD,SP0000855
WANDSWORTH COUNCIL,ASC,SOCIAL SERVICES,PRIVATE,EXTERNAL DAYCARE,405521,130245290,15-May-14,738.12,Revenue,ACT TOO LTD,SP0000855
WANDSWORTH COUNCIL,ASC,SOCIAL SERVICES,PRIVATE,EXTERNAL DAYCARE,405527,130245290,15-May-14,923.40,Revenue,ACT TOO LTD,SP0000855
WANDSWORTH COUNCIL,ASC,SOCIAL SERVICES,PRIVATE,EXTERNAL DAYCARE,405530,130245290,15-May-14,738.72,Revenue,ACT TOO LTD,SP0000855
WANDSWORTH COUNCIL,ASC,SOCIAL SERVICES,PRIVATE,EXTERNAL DAYCARE,405534,130245290,15-May-14,554.04,Revenue,ACT TOO LTD,SP0000855
WANDSWORTH COUNCIL,ASC,SOCIAL SERVICES,PRIVATE,EXTERNAL DAYCARE,405535,130245290,15-May-14,554.04,Revenue,ACT TOO LTD,SP0000855
WANDSWORTH COUNCIL,ASC,SOCIAL SERVICES,PRIVATE,EXTERNAL DAYCARE,405536,130245290,15-May-14,554.04,Revenue,ACT TOO LTD,SP0000855
WANDSWORTH COUNCIL,ASC,SOCIAL SERVICES,PRIVATE,EXTERNAL DAYCARE,405537,130245290,15-May-14,554.04,Revenue,ACT TOO LTD,SP0000855
WANDSWORTH COUNCIL,ASC,SOCIAL SERVICES,PRIVATE,EXTERNAL DAYCARE,405538,130245290,15-May-14,"1,108.08",Revenue,ACT TOO LTD,SP0000855
WANDSWORTH COUNCIL,ASC,SOCIAL SERVICES,PRIVATE,EXTERNAL DAYCARE,405540,130245290,15-May-14,738.72,Revenue,ACT TOO LTD,SP0000855
WANDSWORTH COUNCIL,ASC,SOCIAL SERVICES,PRIVATE,EXTERNAL DAYCARE,405545,130245290,15-May-14,554.04,Revenue,ACT TOO LTD,SP0000855
WANDSWORTH COUNCIL,ASC,SOCIAL SERVICES,PRIVATE,EXTERNAL DAYCARE,406377,130245290,16-May-14,554.04,Revenue,ACT TOO LTD,SP0000855
WANDSWORTH COUNCIL,ASC,SOCIAL SERVICES,PRIVATE,EXTERNAL DAYCARE,406378,130245290,16-May-14,554.04,Revenue,ACT TOO LTD,SP0000855
WANDSWORTH COUNCIL,ASC,SOCIAL SERVICES,PRIVATE,EXTERNAL DAYCARE,406382,130245290,16-May-14,738.72,Revenue,ACT TOO LTD,SP0000855
WANDSWORTH COUNCIL,ASC,SOCIAL SERVICES,PRIVATE,EXTERNAL DAYCARE,406383,130245290,16-May-14,554.04,Revenue,ACT TOO LTD,SP0000855
WANDSWORTH COUNCIL,ASC,SOCIAL SERVICES,PRIVATE,EXTERNAL DAYCARE,406386,130245290,16-May-14,554.04,Revenue,ACT TOO LTD,SP0000855
WANDSWORTH COUNCIL,ASC,SOCIAL SERVICES,PRIVATE,EXTERNAL DAYCARE,406389,130245290,16-May-14,923.40,Revenue,ACT TOO LTD,SP0000855
WANDSWORTH COUNCIL,ASC,SOCIAL SERVICES,PRIVATE,EXTERNAL DAYCARE,406390,130245290,16-May-14,554.04,Revenue,ACT TOO LTD,SP0000855
WANDSWORTH COUNCIL,ASC,SOCIAL SERVICES,PRIVATE,EXTERNAL DAYCARE,406391,130245290,16-May-14,554.04,Revenue,ACT TOO LTD,SP0000855
WANDSWORTH COUNCIL,ASC,SOCIAL SERVICES,PRIVATE,EXTERNAL DAYCARE,406393,130245290,16-May-14,923.40,Revenue,ACT TOO LTD,SP0000855
WANDSWORTH COUNCIL,ASC,SOCIAL SERVICES,PRIVATE,EXTERNAL DAYCARE,406394,130245290,16-May-14,554.04,Revenue,ACT TOO LTD,SP0000855
WANDSWORTH COUNCIL,ASC,SOCIAL SERVICES,PRIVATE,EXTERNAL DAYCARE,406395,130245290,16-May-14,"1,108.08",Revenue,ACT TOO LTD,SP0000855
WANDSWORTH COUNCIL,ASC,SOCIAL SERVICES,PRIVATE,EXTERNAL DAYCARE,406396,130245290,16-May-14,738.72,Revenue,ACT TOO LTD,SP0000855
WANDSWORTH COUNCIL,ASC,SOCIAL SERVICES,PRIVATE,EXTERNAL DAYCARE,406398,130245290,16-May-14,554.04,Revenue,ACT TOO LTD,SP0000855
WANDSWORTH COUNCIL,ASC,SOCIAL SERVICES,PRIVATE,EXTERNAL DAYCARE,406400,130245290,16-May-14,554.04,Revenue,ACT TOO LTD,SP0000855
WANDSWORTH COUNCIL,ASC,SOCIAL SERVICES,PRIVATE,EXTERNAL DAYCARE,406401,130245290,16-May-14,554.04,Revenue,ACT TOO LTD,SP0000855
WANDSWORTH COUNCIL,ASC,SOCIAL SERVICES,PRIVATE,EXTERNAL DAYCARE,406404,130245290,16-May-14,554.04,Revenue,ACT TOO LTD,SP0000855
WANDSWORTH COUNCIL,ASC,SOCIAL SERVICES,PRIVATE,EXTERNAL DAYCARE,406410,130245290,16-May-14,554.04,Revenue,ACT TOO LTD,SP0000855
WANDSWORTH COUNCIL,ASC,SOCIAL SERVICES,PRIVATE,EXTERNAL DAYCARE,406412,130245290,16-May-14,738.72,Revenue,ACT TOO LTD,SP0000855
WANDSWORTH COUNCIL,ASC,SOCIAL SERVICES,PRIVATE,EXTERNAL DAYCARE,406415,130245290,16-May-14,554.04,Revenue,ACT TOO LTD,SP0000855
WANDSWORTH COUNCIL,ASC,SOCIAL SERVICES,PRIVATE,EXTERNAL DAYCARE,406610,130245290,16-May-14,"1,416.24",Revenue,WINSLOW COURT,SP0000886
WANDSWORTH COUNCIL,ASC,SOCIAL SERVICES,PRIVATE,EXTERNAL DAYCARE,406611,130245290,16-May-14,"1,416.24",Revenue,WINSLOW COURT,SP0000886
WANDSWORTH COUNCIL,ASC,SOCIAL SERVICES,PRIVATE,EXTERNAL DAYCARE,406193,130245290,16-May-14,"1,000.00",Revenue,PURBECK CARE LTD,SP0000913
WANDSWORTH COUNCIL,ASC,SOCIAL SERVICES,PRIVATE,EXTERNAL DAYCARE,406194,130245290,16-May-14,"1,000.00",Revenue,PURBECK CARE LTD,SP0000913
WANDSWORTH COUNCIL,ASC,SOCIAL SERVICES,PRIVATE,EXTERNAL DAYCARE,406196,130245290,16-May-14,"1,000.00",Revenue,PURBECK CARE LTD,SP0000913
WANDSWORTH COUNCIL,ASC,SOCIAL SERVICES,PRIVATE,EXTERNAL DAYCARE,397874,130245290,01-May-14,895.20,Revenue,SCOPE,SP0000991
WANDSWORTH COUNCIL,ASC,SOCIAL SERVICES,PRIVATE,EXTERNAL DAYCARE,397875,130245290,01-May-14,596.80,Revenue,SCOPE,SP0000991
WANDSWORTH COUNCIL,ASC,SOCIAL SERVICES,PRIVATE,EXTERNAL DAYCARE,397868,130245290,01-May-14,880.00,Revenue,THE HOME FARM TRUST LTD,SP0001048
WANDSWORTH COUNCIL,ASC,SOCIAL SERVICES,PRIVATE,EXTERNAL DAYCARE,399148,130245290,06-May-14,"1,474.00",Revenue,SUSSEX HEALTH CARE,SP0001115
WANDSWORTH COUNCIL,ASC,SOCIAL SERVICES,PRIVATE,EXTERNAL DAYCARE,398334,130245290,02-May-14,"1,501.20",Revenue,LONDON CARE PARTNERSHIP LTD,SP0001138
WANDSWORTH COUNCIL,ASC,SOCIAL SERVICES,PRIVATE,EXTERNAL DAYCARE,410577,130245290,23-May-14,"1,551.24",Revenue,LONDON CARE PARTNERSHIP LTD,SP0001138
WANDSWORTH COUNCIL,ASC,SOCIAL SERVICES,PRIVATE,EXTERNAL DAYCARE,406341,130245290,16-May-14,828.00,Revenue,WORKSHOP 305,SP0001403
WANDSWORTH COUNCIL,ASC,SOCIAL SERVICES,PRIVATE,EXTERNAL DAYCARE,406347,130245290,16-May-14,552.00,Revenue,WORKSHOP 305,SP0001403
WANDSWORTH COUNCIL,ASC,SOCIAL SERVICES,PRIVATE,EXTERNAL DAYCARE,406349,130245290,16-May-14,708.00,Revenue,WORKSHOP 305,SP0001403
WANDSWORTH COUNCIL,ASC,SOCIAL SERVICES,PRIVATE,EXTERNAL DAYCARE,406352,130245290,16-May-14,552.00,Revenue,WORKSHOP 305,SP0001403
WANDSWORTH COUNCIL,ASC,SOCIAL SERVICES,PRIVATE,EXTERNAL DAYCARE,406358,130245290,16-May-14,944.00,Revenue,WORKSHOP 305,SP0001403
WANDSWORTH COUNCIL,ASC,SOCIAL SERVICES,PRIVATE,EXTERNAL DAYCARE,410951,130245290,23-May-14,632.00,Revenue,WORKSHOP 305,SP0001403
WANDSWORTH COUNCIL,ASC,SOCIAL SERVICES,PRIVATE,EXTERNAL DAYCARE,410954,130245290,23-May-14,552.00,Revenue,WORKSHOP 305,SP0001403
WANDSWORTH COUNCIL,ASC,SOCIAL SERVICES,PRIVATE,EXTERNAL DAYCARE,410955,130245290,23-May-14,828.00,Revenue,WORKSHOP 305,SP0001403
WANDSWORTH COUNCIL,ASC,SOCIAL SERVICES,PRIVATE,EXTERNAL DAYCARE,410963,130245290,23-May-14,944.00,Revenue,WORKSHOP 305,SP0001403
WANDSWORTH COUNCIL,ASC,SOCIAL SERVICES,PRIVATE,EXTERNAL DAYCARE,410967,130245290,23-May-14,708.00,Revenue,WORKSHOP 305,SP0001403
WANDSWORTH COUNCIL,ASC,SOCIAL SERVICES,PRIVATE,EXTERNAL DAYCARE,410975,130245290,23-May-14,828.00,Revenue,WORKSHOP 305,SP0001403
WANDSWORTH COUNCIL,ASC,SOCIAL SERVICES,PRIVATE,EXTERNAL DAYCARE,410982,130245290,23-May-14,552.00,Revenue,WORKSHOP 305,SP0001403
WANDSWORTH COUNCIL,ASC,SOCIAL SERVICES,PRIVATE,EXTERNAL DAYCARE,410984,130245290,23-May-14,708.00,Revenue,WORKSHOP 305,SP0001403
WANDSWORTH COUNCIL,ASC,SOCIAL SERVICES,PRIVATE,EXTERNAL DAYCARE,410987,130245290,23-May-14,552.00,Revenue,WORKSHOP 305,SP0001403
WANDSWORTH COUNCIL,ASC,SOCIAL SERVICES,PRIVATE,EXTERNAL DAYCARE,410993,130245290,23-May-14,944.00,Revenue,WORKSHOP 305,SP0001403
WANDSWORTH COUNCIL,ASC,SOCIAL SERVICES,PRIVATE,EXTERNAL DAYCARE,410655,130245290,23-May-14,81.54,Revenue,CRAEGMOOR OLD RECTORY BREDE PRIORY,SP0001621
WANDSWORTH COUNCIL,ASC,SOCIAL SERVICES,PRIVATE,EXTERNAL DAYCARE,406361,130245290,16-May-14,520.00,Revenue,THE CAMDEN SOCIETY,SP0001674
WANDSWORTH COUNCIL,ASC,SOCIAL SERVICES,PRIVATE,EXTERNAL DAYCARE,406362,130245290,16-May-14,650.00,Revenue,THE CAMDEN SOCIETY,SP0001674
WANDSWORTH COUNCIL,ASC,SOCIAL SERVICES,PRIVATE,EXTERNAL DAYCARE,406363,130245290,16-May-14,520.00,Revenue,THE CAMDEN SOCIETY,SP0001674
WANDSWORTH COUNCIL,ASC,SOCIAL SERVICES,PRIVATE,EXTERNAL DAYCARE,406364,130245290,16-May-14,650.00,Revenue,THE CAMDEN SOCIETY,SP0001674
WANDSWORTH COUNCIL,ASC,SOCIAL SERVICES,PRIVATE,EXTERNAL DAYCARE,406365,130245290,16-May-14,650.00,Revenue,THE CAMDEN SOCIETY,SP0001674
WANDSWORTH COUNCIL,ASC,SOCIAL SERVICES,PRIVATE,EXTERNAL DAYCARE,406366,130245290,16-May-14,650.00,Revenue,THE CAMDEN SOCIETY,SP0001674
WANDSWORTH COUNCIL,ASC,SOCIAL SERVICES,PRIVATE,EXTERNAL DAYCARE,406368,130245290,16-May-14,650.00,Revenue,THE CAMDEN SOCIETY,SP0001674
WANDSWORTH COUNCIL,ASC,SOCIAL SERVICES,PRIVATE,EXTERNAL DAYCARE,406369,130245290,16-May-14,650.00,Revenue,THE CAMDEN SOCIETY,SP0001674
WANDSWORTH COUNCIL,ASC,SOCIAL SERVICES,PRIVATE,EXTERNAL DAYCARE,406370,130245290,16-May-14,650.00,Revenue,THE CAMDEN SOCIETY,SP0001674
WANDSWORTH COUNCIL,ASC,SOCIAL SERVICES,PRIVATE,EXTERNAL HOMECARE,20283091,130245300,27-May-14,"1,423.50",Revenue,PAUL EYLES,2018124
WANDSWORTH COUNCIL,ASC,SOCIAL SERVICES,PRIVATE,EXTERNAL HOMECARE,406229,130245300,16-May-14,"1,221.80",Revenue,RAINBOW MEDICAL SERVICES,SP0000037
WANDSWORTH COUNCIL,ASC,SOCIAL SERVICES,PRIVATE,EXTERNAL HOMECARE,403612,130245300,13-May-14,780.00,Revenue,MUSHKIL AASAAN LTD,SP0000978
WANDSWORTH COUNCIL,ASC,SOCIAL SERVICES,PRIVATE,EXTERNAL HOMECARE,406228,130245300,16-May-14,627.44,Revenue,MUSHKIL AASAAN LTD,SP0000978
WANDSWORTH COUNCIL,ASC,SOCIAL SERVICES,PRIVATE,EXTERNAL HOMECARE,401297,130245300,09-May-14,621.89,Revenue,LONDON CARE PLC,SP0001035
WANDSWORTH COUNCIL,ASC,SOCIAL SERVICES,PRIVATE,EXTERNAL HOMECARE,403525,130245300,13-May-14,619.60,Revenue,LONDON CARE PLC,SP0001035
WANDSWORTH COUNCIL,ASC,SOCIAL SERVICES,PRIVATE,EXTERNAL HOMECARE,414016,130245300,30-May-14,625.41,Revenue,LONDON CARE PLC,SP0001035
WANDSWORTH COUNCIL,ASC,SOCIAL SERVICES,PRIVATE,EXTERNAL HOMECARE,414110,130245300,30-May-14,618.19,Revenue,LONDON CARE PLC,SP0001035
WANDSWORTH COUNCIL,ASC,SOCIAL SERVICES,PRIVATE,EXTERNAL HOMECARE,408266,130245300,20-May-14,"1,485.60",Revenue,HFH HOMECARE,SP0001058
WANDSWORTH COUNCIL,ASC,SOCIAL SERVICES,PRIVATE,EXTERNAL HOMECARE,405486,130245300,15-May-14,"3,502.08",Revenue,SOMA HEALTHCARE LTD,SP0001116
WANDSWORTH COUNCIL,ASC,SOCIAL SERVICES,PRIVATE,EXTERNAL HOMECARE,406574,130245300,16-May-14,"3,654.90",Revenue,SOMA HEALTHCARE LTD,SP0001116
WANDSWORTH COUNCIL,ASC,SOCIAL SERVICES,PRIVATE,EXTERNAL HOMECARE,397844,130245300,01-May-14,"2,302.17",Revenue,MEARS CARE LTD,SP0001491
WANDSWORTH COUNCIL,ASC,SOCIAL SERVICES,PRIVATE,EXTERNAL HOMECARE,398351,130245300,02-May-14,"5,451.00",Revenue,INDEPENDENCE HOMES LTD,SP0004378
WANDSWORTH COUNCIL,ASC,SOCIAL SERVICES,PRIVATE,EXTERNAL HOMECARE,410686,130245300,23-May-14,"5,632.70",Revenue,INDEPENDENCE HOMES LTD,SP0004378
WANDSWORTH COUNCIL,ASC,SOCIAL SERVICES,PRIVATE,EXTERNAL HOMECARE,405598,130245300,15-May-14,"4,480.00",Revenue,HFH HEALTHCARE,SP0005937
WANDSWORTH COUNCIL,ASC,SOCIAL SERVICES,PRIVATE,EXTERNAL NURSING CARE,398466,130245310,02-May-14,"2,737.40",Revenue,GEORGE POTTER CARE HOME LTD,SP0000276
WANDSWORTH COUNCIL,ASC,SOCIAL SERVICES,PRIVATE,EXTERNAL NURSING CARE,397817,130245310,01-May-14,"4,756.80",Revenue,RONALD GIBSON HOUSE,SP0000302
WANDSWORTH COUNCIL,ASC,SOCIAL SERVICES,PRIVATE,EXTERNAL NURSING CARE,410627,130245310,23-May-14,"4,915.41",Revenue,RONALD GIBSON HOUSE,SP0000302
WANDSWORTH COUNCIL,ASC,SOCIAL SERVICES,PRIVATE,EXTERNAL NURSING CARE,403477,130245310,13-May-14,"3,136.02",Revenue,ROSEDENE NURSING HOME,SP0000316
WANDSWORTH COUNCIL,ASC,SOCIAL SERVICES,PRIVATE,EXTERNAL NURSING CARE,398645,130245310,02-May-14,"2,675.12",Revenue,FOUR SEASONS HEALTH CARE LTD,SP0000422
WANDSWORTH COUNCIL,ASC,SOCIAL SERVICES,PRIVATE,EXTERNAL NURSING CARE,413971,130245310,30-May-14,"3,065.87",Revenue,YEW TREE NURSING HOME,SP0000454
WANDSWORTH COUNCIL,ASC,SOCIAL SERVICES,PRIVATE,EXTERNAL NURSING CARE,413972,130245310,30-May-14,"3,065.88",Revenue,YEW TREE NURSING HOME,SP0000454
WANDSWORTH COUNCIL,ASC,SOCIAL SERVICES,PRIVATE,EXTERNAL NURSING CARE,410574,130245310,23-May-14,"5,403.87",Revenue,HIGH HURLANDS HOMES,SP0000668
WANDSWORTH COUNCIL,ASC,SOCIAL SERVICES,PRIVATE,EXTERNAL NURSING CARE,398700,130245310,02-May-14,"2,787.60",Revenue,TRINITY COURT NURSING HOME,SP0001001
WANDSWORTH COUNCIL,ASC,SOCIAL SERVICES,PRIVATE,EXTERNAL NURSING CARE,408142,130245310,20-May-14,"8,182.15",Revenue,SUSSEX HEALTH CARE,SP0001115
WANDSWORTH COUNCIL,ASC,SOCIAL SERVICES,PRIVATE,EXTERNAL NURSING CARE,408143,130245310,20-May-14,"8,454.89",Revenue,SUSSEX HEALTH CARE,SP0001115
WANDSWORTH COUNCIL,ASC,SOCIAL SERVICES,PRIVATE,EXTERNAL RESIDENTIAL CARE,398553,130245330,02-May-14,"2,671.60",Revenue,THE LYLE PARK TRUST,SP0000070
WANDSWORTH COUNCIL,ASC,SOCIAL SERVICES,PRIVATE,EXTERNAL RESIDENTIAL CARE,397789,130245330,01-May-14,"5,632.12",Revenue,CMG HOMES LTD,SP0000075
WANDSWORTH COUNCIL,ASC,SOCIAL SERVICES,PRIVATE,EXTERNAL RESIDENTIAL CARE,397790,130245330,01-May-14,"3,911.48",Revenue,CMG HOMES LTD,SP0000075
WANDSWORTH COUNCIL,ASC,SOCIAL SERVICES,PRIVATE,EXTERNAL RESIDENTIAL CARE,397791,130245330,01-May-14,"6,007.12",Revenue,CMG HOMES LTD,SP0000075
WANDSWORTH COUNCIL,ASC,SOCIAL SERVICES,PRIVATE,EXTERNAL RESIDENTIAL CARE,397792,130245330,01-May-14,"5,553.00",Revenue,CMG HOMES LTD,SP0000075
WANDSWORTH COUNCIL,ASC,SOCIAL SERVICES,PRIVATE,EXTERNAL RESIDENTIAL CARE,397793,130245330,01-May-14,"3,862.12",Revenue,CMG HOMES LTD,SP0000075
WANDSWORTH COUNCIL,ASC,SOCIAL SERVICES,PRIVATE,EXTERNAL RESIDENTIAL CARE,397794,130245330,01-May-14,"8,061.00",Revenue,CMG HOMES LTD,SP0000075
WANDSWORTH COUNCIL,ASC,SOCIAL SERVICES,PRIVATE,EXTERNAL RESIDENTIAL CARE,397795,130245330,01-May-14,"4,866.36",Revenue,CMG HOMES LTD,SP0000075
WANDSWORTH COUNCIL,ASC,SOCIAL SERVICES,PRIVATE,EXTERNAL RESIDENTIAL CARE,397796,130245330,01-May-14,"4,646.00",Revenue,CMG HOMES LTD,SP0000075
WANDSWORTH COUNCIL,ASC,SOCIAL SERVICES,PRIVATE,EXTERNAL RESIDENTIAL CARE,397798,130245330,01-May-14,"7,123.64",Revenue,CMG HOMES LTD,SP0000075
WANDSWORTH COUNCIL,ASC,SOCIAL SERVICES,PRIVATE,EXTERNAL RESIDENTIAL CARE,397799,130245330,01-May-14,"4,415.60",Revenue,CMG HOMES LTD,SP0000075
WANDSWORTH COUNCIL,ASC,SOCIAL SERVICES,PRIVATE,EXTERNAL RESIDENTIAL CARE,397800,130245330,01-May-14,"4,082.28",Revenue,CMG HOMES LTD,SP0000075
WANDSWORTH COUNCIL,ASC,SOCIAL SERVICES,PRIVATE,EXTERNAL RESIDENTIAL CARE,401415,130245330,09-May-14,"5,632.12",Revenue,CMG HOMES LTD,SP0000075
WANDSWORTH COUNCIL,ASC,SOCIAL SERVICES,PRIVATE,EXTERNAL RESIDENTIAL CARE,401418,130245330,09-May-14,"3,911.48",Revenue,CMG HOMES LTD,SP0000075
WANDSWORTH COUNCIL,ASC,SOCIAL SERVICES,PRIVATE,EXTERNAL RESIDENTIAL CARE,401419,130245330,09-May-14,"6,007.12",Revenue,CMG HOMES LTD,SP0000075
WANDSWORTH COUNCIL,ASC,SOCIAL SERVICES,PRIVATE,EXTERNAL RESIDENTIAL CARE,401420,130245330,09-May-14,"5,553.00",Revenue,CMG HOMES LTD,SP0000075
WANDSWORTH COUNCIL,ASC,SOCIAL SERVICES,PRIVATE,EXTERNAL RESIDENTIAL CARE,401421,130245330,09-May-14,"3,862.12",Revenue,CMG HOMES LTD,SP0000075
WANDSWORTH COUNCIL,ASC,SOCIAL SERVICES,PRIVATE,EXTERNAL RESIDENTIAL CARE,401422,130245330,09-May-14,"8,061.00",Revenue,CMG HOMES LTD,SP0000075
WANDSWORTH COUNCIL,ASC,SOCIAL SERVICES,PRIVATE,EXTERNAL RESIDENTIAL CARE,401423,130245330,09-May-14,"4,866.36",Revenue,CMG HOMES LTD,SP0000075
WANDSWORTH COUNCIL,ASC,SOCIAL SERVICES,PRIVATE,EXTERNAL RESIDENTIAL CARE,401424,130245330,09-May-14,"4,646.00",Revenue,CMG HOMES LTD,SP0000075
WANDSWORTH COUNCIL,ASC,SOCIAL SERVICES,PRIVATE,EXTERNAL RESIDENTIAL CARE,401426,130245330,09-May-14,"7,123.64",Revenue,CMG HOMES LTD,SP0000075
WANDSWORTH COUNCIL,ASC,SOCIAL SERVICES,PRIVATE,EXTERNAL RESIDENTIAL CARE,401434,130245330,09-May-14,"4,082.28",Revenue,CMG HOMES LTD,SP0000075
WANDSWORTH COUNCIL,ASC,SOCIAL SERVICES,PRIVATE,EXTERNAL RESIDENTIAL CARE,401435,130245330,09-May-14,"4,415.60",Revenue,CMG HOMES LTD,SP0000075
WANDSWORTH COUNCIL,ASC,SOCIAL SERVICES,PRIVATE,EXTERNAL RESIDENTIAL CARE,410536,130245330,23-May-14,"3,338.08",Revenue,COUNTRY CARE,SP0000090
WANDSWORTH COUNCIL,ASC,SOCIAL SERVICES,PRIVATE,EXTERNAL RESIDENTIAL CARE,410537,130245330,23-May-14,"3,449.59",Revenue,COUNTRY CARE,SP0000090
WANDSWORTH COUNCIL,ASC,SOCIAL SERVICES,PRIVATE,EXTERNAL RESIDENTIAL CARE,398412,130245330,02-May-14,"2,162.32",Revenue,SANCTUARY CARE LTD,SP0000121
WANDSWORTH COUNCIL,ASC,SOCIAL SERVICES,PRIVATE,EXTERNAL RESIDENTIAL CARE,397812,130245330,01-May-14,"4,861.58",Revenue,IN CHORUS LTD,SP0000129
WANDSWORTH COUNCIL,ASC,SOCIAL SERVICES,PRIVATE,EXTERNAL RESIDENTIAL CARE,410558,130245330,23-May-14,"5,025.36",Revenue,IN CHORUS LTD,SP0000129
WANDSWORTH COUNCIL,ASC,SOCIAL SERVICES,PRIVATE,EXTERNAL RESIDENTIAL CARE,401442,130245330,09-May-14,769.37,Revenue,CENTRUST CARE HOMES LTD,SP0000141
WANDSWORTH COUNCIL,ASC,SOCIAL SERVICES,PRIVATE,EXTERNAL RESIDENTIAL CARE,401443,130245330,09-May-14,"3,077.49",Revenue,CENTRUST CARE HOMES LTD,SP0000141
WANDSWORTH COUNCIL,ASC,SOCIAL SERVICES,PRIVATE,EXTERNAL RESIDENTIAL CARE,410549,130245330,23-May-14,"4,199.74",Revenue,FRANCES TAYLOR FOUNDATION,SP0000142
WANDSWORTH COUNCIL,ASC,SOCIAL SERVICES,PRIVATE,EXTERNAL RESIDENTIAL CARE,410550,130245330,23-May-14,"4,055.95",Revenue,FRANCES TAYLOR FOUNDATION,SP0000142
WANDSWORTH COUNCIL,ASC,SOCIAL SERVICES,PRIVATE,EXTERNAL RESIDENTIAL CARE,410551,130245330,23-May-14,"4,121.74",Revenue,FRANCES TAYLOR FOUNDATION,SP0000142
WANDSWORTH COUNCIL,ASC,SOCIAL SERVICES,PRIVATE,EXTERNAL RESIDENTIAL CARE,410552,130245330,23-May-14,"4,679.91",Revenue,FRANCES TAYLOR FOUNDATION,SP0000142
WANDSWORTH COUNCIL,ASC,SOCIAL SERVICES,PRIVATE,EXTERNAL RESIDENTIAL CARE,410553,130245330,23-May-14,"4,338.80",Revenue,FRANCES TAYLOR FOUNDATION,SP0000142
WANDSWORTH COUNCIL,ASC,SOCIAL SERVICES,PRIVATE,EXTERNAL RESIDENTIAL CARE,410554,130245330,23-May-14,"4,835.91",Revenue,FRANCES TAYLOR FOUNDATION,SP0000142
WANDSWORTH COUNCIL,ASC,SOCIAL SERVICES,PRIVATE,EXTERNAL RESIDENTIAL CARE,410555,130245330,23-May-14,"4,191.14",Revenue,FRANCES TAYLOR FOUNDATION,SP0000142
WANDSWORTH COUNCIL,ASC,SOCIAL SERVICES,PRIVATE,EXTERNAL RESIDENTIAL CARE,410556,130245330,23-May-14,"4,259.13",Revenue,FRANCES TAYLOR FOUNDATION,SP0000142
WANDSWORTH COUNCIL,ASC,SOCIAL SERVICES,PRIVATE,EXTERNAL RESIDENTIAL CARE,408896,130245330,21-May-14,"4,309.50",Revenue,RESIDENTIAL CARE SERVICES T/A FRANKLYN L,SP0000147
WANDSWORTH COUNCIL,ASC,SOCIAL SERVICES,PRIVATE,EXTERNAL RESIDENTIAL CARE,401205,130245330,09-May-14,"9,736.24",Revenue,THE MAPLES,SP0000154
WANDSWORTH COUNCIL,ASC,SOCIAL SERVICES,PRIVATE,EXTERNAL RESIDENTIAL CARE,410545,130245330,23-May-14,"4,593.96",Revenue,THE CHESTNUTS,SP0000182
WANDSWORTH COUNCIL,ASC,SOCIAL SERVICES,PRIVATE,EXTERNAL RESIDENTIAL CARE,410546,130245330,23-May-14,"5,555.16",Revenue,THE CHESTNUTS,SP0000182
WANDSWORTH COUNCIL,ASC,SOCIAL SERVICES,PRIVATE,EXTERNAL RESIDENTIAL CARE,410547,130245330,23-May-14,"4,292.56",Revenue,THE CHESTNUTS,SP0000182
WANDSWORTH COUNCIL,ASC,SOCIAL SERVICES,PRIVATE,EXTERNAL RESIDENTIAL CARE,401411,130245330,09-May-14,"19,311.20",Revenue,TRELOAR SCHOOL,SP0000200
WANDSWORTH COUNCIL,ASC,SOCIAL SERVICES,PRIVATE,EXTERNAL RESIDENTIAL CARE,408145,130245330,20-May-14,"1,647.40",Revenue,ORCHARD VALE TRUST,SP0000214
WANDSWORTH COUNCIL,ASC,SOCIAL SERVICES,PRIVATE,EXTERNAL RESIDENTIAL CARE,406174,130245330,16-May-14,"3,834.01",Revenue,ST MARYS RESIDENTIAL HOME,SP0000215
WANDSWORTH COUNCIL,ASC,SOCIAL SERVICES,PRIVATE,EXTERNAL RESIDENTIAL CARE,406175,130245330,16-May-14,"3,772.97",Revenue,ST MARYS RESIDENTIAL HOME,SP0000215
WANDSWORTH COUNCIL,ASC,SOCIAL SERVICES,PRIVATE,EXTERNAL RESIDENTIAL CARE,406176,130245330,16-May-14,"4,962.08",Revenue,ST MARYS RESIDENTIAL HOME,SP0000215
WANDSWORTH COUNCIL,ASC,SOCIAL SERVICES,PRIVATE,EXTERNAL RESIDENTIAL CARE,406177,130245330,16-May-14,"3,454.67",Revenue,ST MARYS RESIDENTIAL HOME,SP0000215
WANDSWORTH COUNCIL,ASC,SOCIAL SERVICES,PRIVATE,EXTERNAL RESIDENTIAL CARE,406178,130245330,16-May-14,"3,591.90",Revenue,ST MARYS RESIDENTIAL HOME,SP0000215
WANDSWORTH COUNCIL,ASC,SOCIAL SERVICES,PRIVATE,EXTERNAL RESIDENTIAL CARE,406179,130245330,16-May-14,"3,032.40",Revenue,ST MARYS RESIDENTIAL HOME,SP0000215
WANDSWORTH COUNCIL,ASC,SOCIAL SERVICES,PRIVATE,EXTERNAL RESIDENTIAL CARE,406180,130245330,16-May-14,"4,895.40",Revenue,ST MARYS RESIDENTIAL HOME,SP0000215
WANDSWORTH COUNCIL,ASC,SOCIAL SERVICES,PRIVATE,EXTERNAL RESIDENTIAL CARE,406181,130245330,16-May-14,"3,503.01",Revenue,ST MARYS RESIDENTIAL HOME,SP0000215
WANDSWORTH COUNCIL,ASC,SOCIAL SERVICES,PRIVATE,EXTERNAL RESIDENTIAL CARE,406182,130245330,16-May-14,"3,467.14",Revenue,ST MARYS RESIDENTIAL HOME,SP0000215
WANDSWORTH COUNCIL,ASC,SOCIAL SERVICES,PRIVATE,EXTERNAL RESIDENTIAL CARE,406183,130245330,16-May-14,"3,269.48",Revenue,ST MARYS RESIDENTIAL HOME,SP0000215
WANDSWORTH COUNCIL,ASC,SOCIAL SERVICES,PRIVATE,EXTERNAL RESIDENTIAL CARE,406184,130245330,16-May-14,"2,238.85",Revenue,ST MARYS RESIDENTIAL HOME,SP0000215
WANDSWORTH COUNCIL,ASC,SOCIAL SERVICES,PRIVATE,EXTERNAL RESIDENTIAL CARE,406185,130245330,16-May-14,"3,679.28",Revenue,ST MARYS RESIDENTIAL HOME,SP0000215
WANDSWORTH COUNCIL,ASC,SOCIAL SERVICES,PRIVATE,EXTERNAL RESIDENTIAL CARE,406186,130245330,16-May-14,"2,238.85",Revenue,ST MARYS RESIDENTIAL HOME,SP0000215
WANDSWORTH COUNCIL,ASC,SOCIAL SERVICES,PRIVATE,EXTERNAL RESIDENTIAL CARE,406187,130245330,16-May-14,"2,909.28",Revenue,ST MARYS RESIDENTIAL HOME,SP0000215
WANDSWORTH COUNCIL,ASC,SOCIAL SERVICES,PRIVATE,EXTERNAL RESIDENTIAL CARE,406188,130245330,16-May-14,"3,187.92",Revenue,ST MARYS RESIDENTIAL HOME,SP0000215
WANDSWORTH COUNCIL,ASC,SOCIAL SERVICES,PRIVATE,EXTERNAL RESIDENTIAL CARE,408154,130245330,20-May-14,535.20,Revenue,ST MARYS RESIDENTIAL HOME,SP0000215
WANDSWORTH COUNCIL,ASC,SOCIAL SERVICES,PRIVATE,EXTERNAL RESIDENTIAL CARE,401445,130245330,09-May-14,"5,487.72",Revenue,NAS SERVICES LIMITED,SP0000217
WANDSWORTH COUNCIL,ASC,SOCIAL SERVICES,PRIVATE,EXTERNAL RESIDENTIAL CARE,401446,130245330,09-May-14,"6,089.72",Revenue,NAS SERVICES LIMITED,SP0000217
WANDSWORTH COUNCIL,ASC,SOCIAL SERVICES,PRIVATE,EXTERNAL RESIDENTIAL CARE,401768,130245330,12-May-14,"2,237.16",Revenue,NAS SERVICES LIMITED,SP0000217
WANDSWORTH COUNCIL,ASC,SOCIAL SERVICES,PRIVATE,EXTERNAL RESIDENTIAL CARE,410557,130245330,23-May-14,"3,728.92",Revenue,HAYDON PARK LODGE LTD,SP0000231
WANDSWORTH COUNCIL,ASC,SOCIAL SERVICES,PRIVATE,EXTERNAL RESIDENTIAL CARE,397807,130245330,01-May-14,"7,350.00",Revenue,THE DISABILITIES TRUST,SP0000239
WANDSWORTH COUNCIL,ASC,SOCIAL SERVICES,PRIVATE,EXTERNAL RESIDENTIAL CARE,401417,130245330,09-May-14,"9,378.72",Revenue,CAMERON LODGE LIMITED,SP0000271
WANDSWORTH COUNCIL,ASC,SOCIAL SERVICES,PRIVATE,EXTERNAL RESIDENTIAL CARE,410539,130245330,23-May-14,"3,029.72",Revenue,CRAEGMOOR FACILITIES CO LTD,SP0000306
WANDSWORTH COUNCIL,ASC,SOCIAL SERVICES,PRIVATE,EXTERNAL RESIDENTIAL CARE,410565,130245330,23-May-14,"5,299.60",Revenue,DOLPHIN HOMES LTD,SP0000331
WANDSWORTH COUNCIL,ASC,SOCIAL SERVICES,PRIVATE,EXTERNAL RESIDENTIAL CARE,410566,130245330,23-May-14,"3,830.78",Revenue,DOLPHIN HOMES LTD,SP0000331
WANDSWORTH COUNCIL,ASC,SOCIAL SERVICES,PRIVATE,EXTERNAL RESIDENTIAL CARE,410664,130245330,23-May-14,"5,476.25",Revenue,DOLPHIN HOMES LTD,SP0000331
WANDSWORTH COUNCIL,ASC,SOCIAL SERVICES,PRIVATE,EXTERNAL RESIDENTIAL CARE,410665,130245330,23-May-14,"4,311.16",Revenue,DOLPHIN HOMES LTD,SP0000331
WANDSWORTH COUNCIL,ASC,SOCIAL SERVICES,PRIVATE,EXTERNAL RESIDENTIAL CARE,410562,130245330,23-May-14,"6,154.44",Revenue,NORWOOD SCHOOLS LTD,SP0000332
WANDSWORTH COUNCIL,ASC,SOCIAL SERVICES,PRIVATE,EXTERNAL RESIDENTIAL CARE,410563,130245330,23-May-14,"6,409.80",Revenue,NORWOOD SCHOOLS LTD,SP0000332
WANDSWORTH COUNCIL,ASC,SOCIAL SERVICES,PRIVATE,EXTERNAL RESIDENTIAL CARE,403891,130245330,14-May-14,"2,332.41",Revenue,THE MANOR,SP0000340
WANDSWORTH COUNCIL,ASC,SOCIAL SERVICES,PRIVATE,EXTERNAL RESIDENTIAL CARE,408150,130245330,20-May-14,"2,409.62",Revenue,THE MANOR,SP0000340
WANDSWORTH COUNCIL,ASC,SOCIAL SERVICES,PRIVATE,EXTERNAL RESIDENTIAL CARE,403501,130245330,13-May-14,"2,488.41",Revenue,HEYWOODS GRANGE LTD,SP0000361
WANDSWORTH COUNCIL,ASC,SOCIAL SERVICES,PRIVATE,EXTERNAL RESIDENTIAL CARE,410544,130245330,23-May-14,"3,107.14",Revenue,HEYWOODS GRANGE LTD,SP0000361
WANDSWORTH COUNCIL,ASC,SOCIAL SERVICES,PRIVATE,EXTERNAL RESIDENTIAL CARE,403523,130245330,13-May-14,"5,464.11",Revenue,ESSEX CARE CONSORTIUM,SP0000387
WANDSWORTH COUNCIL,ASC,SOCIAL SERVICES,PRIVATE,EXTERNAL RESIDENTIAL CARE,410543,130245330,23-May-14,"3,135.60",Revenue,POTENSIAL LTD,SP0000395
WANDSWORTH COUNCIL,ASC,SOCIAL SERVICES,PRIVATE,EXTERNAL RESIDENTIAL CARE,405437,130245330,15-May-14,"3,976.83",Revenue,KENILWORTH RESIDENTIAL HOME,SP0000432
WANDSWORTH COUNCIL,ASC,SOCIAL SERVICES,PRIVATE,EXTERNAL RESIDENTIAL CARE,405438,130245330,15-May-14,"4,150.04",Revenue,KENILWORTH RESIDENTIAL HOME,SP0000432
WANDSWORTH COUNCIL,ASC,SOCIAL SERVICES,PRIVATE,EXTERNAL RESIDENTIAL CARE,403488,130245330,13-May-14,"2,044.60",Revenue,THE WELL HOUSE,SP0000448
WANDSWORTH COUNCIL,ASC,SOCIAL SERVICES,PRIVATE,EXTERNAL RESIDENTIAL CARE,408191,130245330,20-May-14,"4,403.76",Revenue,THE WELL HOUSE,SP0000448
WANDSWORTH COUNCIL,ASC,SOCIAL SERVICES,PRIVATE,EXTERNAL RESIDENTIAL CARE,408192,130245330,20-May-14,"4,654.08",Revenue,THE WELL HOUSE,SP0000448
WANDSWORTH COUNCIL,ASC,SOCIAL SERVICES,PRIVATE,EXTERNAL RESIDENTIAL CARE,401441,130245330,09-May-14,"5,210.48",Revenue,MACINTYRE CARE,SP0000473
WANDSWORTH COUNCIL,ASC,SOCIAL SERVICES,PRIVATE,EXTERNAL RESIDENTIAL CARE,408903,130245330,21-May-14,"5,030.56",Revenue,MACINTYRE CARE,SP0000473
WANDSWORTH COUNCIL,ASC,SOCIAL SERVICES,PRIVATE,EXTERNAL RESIDENTIAL CARE,410504,130245330,23-May-14,"5,206.28",Revenue,MACINTYRE CARE,SP0000473
WANDSWORTH COUNCIL,ASC,SOCIAL SERVICES,PRIVATE,EXTERNAL RESIDENTIAL CARE,410505,130245330,23-May-14,"3,759.64",Revenue,MACINTYRE CARE,SP0000473
WANDSWORTH COUNCIL,ASC,SOCIAL SERVICES,PRIVATE,EXTERNAL RESIDENTIAL CARE,410507,130245330,23-May-14,"3,759.64",Revenue,MACINTYRE CARE,SP0000473
WANDSWORTH COUNCIL,ASC,SOCIAL SERVICES,PRIVATE,EXTERNAL RESIDENTIAL CARE,410508,130245330,23-May-14,"5,192.48",Revenue,MACINTYRE CARE,SP0000473
WANDSWORTH COUNCIL,ASC,SOCIAL SERVICES,PRIVATE,EXTERNAL RESIDENTIAL CARE,410509,130245330,23-May-14,"3,750.72",Revenue,MACINTYRE CARE,SP0000473
WANDSWORTH COUNCIL,ASC,SOCIAL SERVICES,PRIVATE,EXTERNAL RESIDENTIAL CARE,410510,130245330,23-May-14,"3,813.84",Revenue,MACINTYRE CARE,SP0000473
WANDSWORTH COUNCIL,ASC,SOCIAL SERVICES,PRIVATE,EXTERNAL RESIDENTIAL CARE,410511,130245330,23-May-14,"4,998.84",Revenue,MACINTYRE CARE,SP0000473
WANDSWORTH COUNCIL,ASC,SOCIAL SERVICES,PRIVATE,EXTERNAL RESIDENTIAL CARE,410512,130245330,23-May-14,"5,097.20",Revenue,MACINTYRE CARE,SP0000473
WANDSWORTH COUNCIL,ASC,SOCIAL SERVICES,PRIVATE,EXTERNAL RESIDENTIAL CARE,410513,130245330,23-May-14,"2,312.60",Revenue,MACINTYRE CARE,SP0000473
WANDSWORTH COUNCIL,ASC,SOCIAL SERVICES,PRIVATE,EXTERNAL RESIDENTIAL CARE,410516,130245330,23-May-14,"5,026.36",Revenue,MACINTYRE CARE,SP0000473
WANDSWORTH COUNCIL,ASC,SOCIAL SERVICES,PRIVATE,EXTERNAL RESIDENTIAL CARE,410522,130245330,23-May-14,"4,907.76",Revenue,MACINTYRE CARE,SP0000473
WANDSWORTH COUNCIL,ASC,SOCIAL SERVICES,PRIVATE,EXTERNAL RESIDENTIAL CARE,410523,130245330,23-May-14,"4,907.76",Revenue,MACINTYRE CARE,SP0000473
WANDSWORTH COUNCIL,ASC,SOCIAL SERVICES,PRIVATE,EXTERNAL RESIDENTIAL CARE,410524,130245330,23-May-14,"4,901.68",Revenue,MACINTYRE CARE,SP0000473
WANDSWORTH COUNCIL,ASC,SOCIAL SERVICES,PRIVATE,EXTERNAL RESIDENTIAL CARE,410525,130245330,23-May-14,"5,045.28",Revenue,MACINTYRE CARE,SP0000473
WANDSWORTH COUNCIL,ASC,SOCIAL SERVICES,PRIVATE,EXTERNAL RESIDENTIAL CARE,410526,130245330,23-May-14,"4,907.76",Revenue,MACINTYRE CARE,SP0000473
WANDSWORTH COUNCIL,ASC,SOCIAL SERVICES,PRIVATE,EXTERNAL RESIDENTIAL CARE,410548,130245330,23-May-14,"5,429.64",Revenue,MACINTYRE CARE,SP0000473
WANDSWORTH COUNCIL,ASC,SOCIAL SERVICES,PRIVATE,EXTERNAL RESIDENTIAL CARE,410560,130245330,23-May-14,"8,058.44",Revenue,MACINTYRE CARE,SP0000473
WANDSWORTH COUNCIL,ASC,SOCIAL SERVICES,PRIVATE,EXTERNAL RESIDENTIAL CARE,410561,130245330,23-May-14,"5,429.76",Revenue,MACINTYRE CARE,SP0000473
WANDSWORTH COUNCIL,ASC,SOCIAL SERVICES,PRIVATE,EXTERNAL RESIDENTIAL CARE,410564,130245330,23-May-14,"4,909.16",Revenue,MACINTYRE CARE,SP0000473
WANDSWORTH COUNCIL,ASC,SOCIAL SERVICES,PRIVATE,EXTERNAL RESIDENTIAL CARE,408183,130245330,20-May-14,"8,982.39",Revenue,SURREY & BORDERS PARTNERSHIP NHS TRUST,SP0000501
WANDSWORTH COUNCIL,ASC,SOCIAL SERVICES,PRIVATE,EXTERNAL RESIDENTIAL CARE,408184,130245330,20-May-14,"5,622.80",Revenue,SURREY & BORDERS PARTNERSHIP NHS TRUST,SP0000501
WANDSWORTH COUNCIL,ASC,SOCIAL SERVICES,PRIVATE,EXTERNAL RESIDENTIAL CARE,410559,130245330,23-May-14,"7,717.76",Revenue,LORING HALL LIMITED,SP0000511
WANDSWORTH COUNCIL,ASC,SOCIAL SERVICES,PRIVATE,EXTERNAL RESIDENTIAL CARE,403486,130245330,13-May-14,"16,471.65",Revenue,AIMS CARE PARTNERSHIP,SP0000561
WANDSWORTH COUNCIL,ASC,SOCIAL SERVICES,PRIVATE,EXTERNAL RESIDENTIAL CARE,408178,130245330,20-May-14,"7,287.04",Revenue,SEEABILITY,SP0000572
WANDSWORTH COUNCIL,ASC,SOCIAL SERVICES,PRIVATE,EXTERNAL RESIDENTIAL CARE,410636,130245330,23-May-14,"9,255.60",Revenue,THE COMMUNITY CARE COMPANY UK LTD,SP0000576
WANDSWORTH COUNCIL,ASC,SOCIAL SERVICES,PRIVATE,EXTERNAL RESIDENTIAL CARE,410637,130245330,23-May-14,"6,824.06",Revenue,THE COMMUNITY CARE COMPANY UK LTD,SP0000576
WANDSWORTH COUNCIL,ASC,SOCIAL SERVICES,PRIVATE,EXTERNAL RESIDENTIAL CARE,410638,130245330,23-May-14,"5,751.56",Revenue,THE COMMUNITY CARE COMPANY UK LTD,SP0000576
WANDSWORTH COUNCIL,ASC,SOCIAL SERVICES,PRIVATE,EXTERNAL RESIDENTIAL CARE,410639,130245330,23-May-14,"6,901.80",Revenue,THE COMMUNITY CARE COMPANY UK LTD,SP0000576
WANDSWORTH COUNCIL,ASC,SOCIAL SERVICES,PRIVATE,EXTERNAL RESIDENTIAL CARE,410640,130245330,23-May-14,"5,929.71",Revenue,THE COMMUNITY CARE COMPANY UK LTD,SP0000576
WANDSWORTH COUNCIL,ASC,SOCIAL SERVICES,PRIVATE,EXTERNAL RESIDENTIAL CARE,397810,130245330,01-May-14,"6,332.23",Revenue,BIRCC,SP0000584
WANDSWORTH COUNCIL,ASC,SOCIAL SERVICES,PRIVATE,EXTERNAL RESIDENTIAL CARE,403468,130245330,13-May-14,"6,626.44",Revenue,THE REGARD PARTNERSHIP,SP0000588
WANDSWORTH COUNCIL,ASC,SOCIAL SERVICES,PRIVATE,EXTERNAL RESIDENTIAL CARE,403469,130245330,13-May-14,"6,514.76",Revenue,THE REGARD PARTNERSHIP,SP0000588
WANDSWORTH COUNCIL,ASC,SOCIAL SERVICES,PRIVATE,EXTERNAL RESIDENTIAL CARE,403470,130245330,13-May-14,"5,982.36",Revenue,THE REGARD PARTNERSHIP,SP0000588
WANDSWORTH COUNCIL,ASC,SOCIAL SERVICES,PRIVATE,EXTERNAL RESIDENTIAL CARE,403471,130245330,13-May-14,"6,237.48",Revenue,THE REGARD PARTNERSHIP,SP0000588
WANDSWORTH COUNCIL,ASC,SOCIAL SERVICES,PRIVATE,EXTERNAL RESIDENTIAL CARE,403472,130245330,13-May-14,"6,320.72",Revenue,THE REGARD PARTNERSHIP,SP0000588
WANDSWORTH COUNCIL,ASC,SOCIAL SERVICES,PRIVATE,EXTERNAL RESIDENTIAL CARE,403489,130245330,13-May-14,"6,970.28",Revenue,THE REGARD PARTNERSHIP,SP0000588
WANDSWORTH COUNCIL,ASC,SOCIAL SERVICES,PRIVATE,EXTERNAL RESIDENTIAL CARE,403883,130245330,14-May-14,"4,792.20",Revenue,LAETUS LODGE,SP0000600
WANDSWORTH COUNCIL,ASC,SOCIAL SERVICES,PRIVATE,EXTERNAL RESIDENTIAL CARE,403884,130245330,14-May-14,"3,759.76",Revenue,LAETUS LODGE,SP0000600
WANDSWORTH COUNCIL,ASC,SOCIAL SERVICES,PRIVATE,EXTERNAL RESIDENTIAL CARE,403885,130245330,14-May-14,"6,193.48",Revenue,LAETUS LODGE,SP0000600
WANDSWORTH COUNCIL,ASC,SOCIAL SERVICES,PRIVATE,EXTERNAL RESIDENTIAL CARE,403886,130245330,14-May-14,"3,759.76",Revenue,LAETUS LODGE,SP0000600
WANDSWORTH COUNCIL,ASC,SOCIAL SERVICES,PRIVATE,EXTERNAL RESIDENTIAL CARE,403887,130245330,14-May-14,"3,669.12",Revenue,LAETUS LODGE,SP0000600
WANDSWORTH COUNCIL,ASC,SOCIAL SERVICES,PRIVATE,EXTERNAL RESIDENTIAL CARE,403888,130245330,14-May-14,"3,759.76",Revenue,LAETUS LODGE,SP0000600
WANDSWORTH COUNCIL,ASC,SOCIAL SERVICES,PRIVATE,EXTERNAL RESIDENTIAL CARE,403895,130245330,14-May-14,"1,851.74",Revenue,MENCAP,SP0000604
WANDSWORTH COUNCIL,ASC,SOCIAL SERVICES,PRIVATE,EXTERNAL RESIDENTIAL CARE,406198,130245330,16-May-14,"3,542.48",Revenue,METROPOLITAN HOUSING TRUST,SP0000626
WANDSWORTH COUNCIL,ASC,SOCIAL SERVICES,PRIVATE,EXTERNAL RESIDENTIAL CARE,406199,130245330,16-May-14,"3,659.52",Revenue,METROPOLITAN HOUSING TRUST,SP0000626
WANDSWORTH COUNCIL,ASC,SOCIAL SERVICES,PRIVATE,EXTERNAL RESIDENTIAL CARE,406200,130245330,16-May-14,"3,659.52",Revenue,METROPOLITAN HOUSING TRUST,SP0000626
WANDSWORTH COUNCIL,ASC,SOCIAL SERVICES,PRIVATE,EXTERNAL RESIDENTIAL CARE,406201,130245330,16-May-14,"3,659.68",Revenue,METROPOLITAN HOUSING TRUST,SP0000626
WANDSWORTH COUNCIL,ASC,SOCIAL SERVICES,PRIVATE,EXTERNAL RESIDENTIAL CARE,406203,130245330,16-May-14,"3,659.52",Revenue,METROPOLITAN HOUSING TRUST,SP0000626
WANDSWORTH COUNCIL,ASC,SOCIAL SERVICES,PRIVATE,EXTERNAL RESIDENTIAL CARE,406204,130245330,16-May-14,"3,659.52",Revenue,METROPOLITAN HOUSING TRUST,SP0000626
WANDSWORTH COUNCIL,ASC,SOCIAL SERVICES,PRIVATE,EXTERNAL RESIDENTIAL CARE,406205,130245330,16-May-14,"4,756.88",Revenue,METROPOLITAN HOUSING TRUST,SP0000626
WANDSWORTH COUNCIL,ASC,SOCIAL SERVICES,PRIVATE,EXTERNAL RESIDENTIAL CARE,406206,130245330,16-May-14,"4,756.88",Revenue,METROPOLITAN HOUSING TRUST,SP0000626
WANDSWORTH COUNCIL,ASC,SOCIAL SERVICES,PRIVATE,EXTERNAL RESIDENTIAL CARE,406207,130245330,16-May-14,"3,496.84",Revenue,METROPOLITAN HOUSING TRUST,SP0000626
WANDSWORTH COUNCIL,ASC,SOCIAL SERVICES,PRIVATE,EXTERNAL RESIDENTIAL CARE,406208,130245330,16-May-14,"4,430.84",Revenue,METROPOLITAN HOUSING TRUST,SP0000626
WANDSWORTH COUNCIL,ASC,SOCIAL SERVICES,PRIVATE,EXTERNAL RESIDENTIAL CARE,406209,130245330,16-May-14,"4,718.99",Revenue,METROPOLITAN HOUSING TRUST,SP0000626
WANDSWORTH COUNCIL,ASC,SOCIAL SERVICES,PRIVATE,EXTERNAL RESIDENTIAL CARE,406210,130245330,16-May-14,"4,709.79",Revenue,METROPOLITAN HOUSING TRUST,SP0000626
WANDSWORTH COUNCIL,ASC,SOCIAL SERVICES,PRIVATE,EXTERNAL RESIDENTIAL CARE,406211,130245330,16-May-14,"4,713.59",Revenue,METROPOLITAN HOUSING TRUST,SP0000626
WANDSWORTH COUNCIL,ASC,SOCIAL SERVICES,PRIVATE,EXTERNAL RESIDENTIAL CARE,406213,130245330,16-May-14,"4,713.59",Revenue,METROPOLITAN HOUSING TRUST,SP0000626
WANDSWORTH COUNCIL,ASC,SOCIAL SERVICES,PRIVATE,EXTERNAL RESIDENTIAL CARE,408904,130245330,21-May-14,"2,395.60",Revenue,LIVABILITY,SP0000669
WANDSWORTH COUNCIL,ASC,SOCIAL SERVICES,PRIVATE,EXTERNAL RESIDENTIAL CARE,408905,130245330,21-May-14,"2,395.60",Revenue,LIVABILITY,SP0000669
WANDSWORTH COUNCIL,ASC,SOCIAL SERVICES,PRIVATE,EXTERNAL RESIDENTIAL CARE,403889,130245330,14-May-14,"11,475.88",Revenue,LOVING CARE LTD,SP0000670
WANDSWORTH COUNCIL,ASC,SOCIAL SERVICES,PRIVATE,EXTERNAL RESIDENTIAL CARE,408146,130245330,20-May-14,"11,322.88",Revenue,LOVING CARE LTD,SP0000670
WANDSWORTH COUNCIL,ASC,SOCIAL SERVICES,PRIVATE,EXTERNAL RESIDENTIAL CARE,408147,130245330,20-May-14,"11,282.04",Revenue,LOVING CARE LTD,SP0000670
WANDSWORTH COUNCIL,ASC,SOCIAL SERVICES,PRIVATE,EXTERNAL RESIDENTIAL CARE,408148,130245330,20-May-14,"11,475.76",Revenue,LOVING CARE LTD,SP0000670
WANDSWORTH COUNCIL,ASC,SOCIAL SERVICES,PRIVATE,EXTERNAL RESIDENTIAL CARE,408149,130245330,20-May-14,"11,017.16",Revenue,LOVING CARE LTD,SP0000670
WANDSWORTH COUNCIL,ASC,SOCIAL SERVICES,PRIVATE,EXTERNAL RESIDENTIAL CARE,408155,130245330,20-May-14,"11,475.80",Revenue,LOVING CARE LTD,SP0000670
WANDSWORTH COUNCIL,ASC,SOCIAL SERVICES,PRIVATE,EXTERNAL RESIDENTIAL CARE,408156,130245330,20-May-14,"11,170.12",Revenue,LOVING CARE LTD,SP0000670
WANDSWORTH COUNCIL,ASC,SOCIAL SERVICES,PRIVATE,EXTERNAL RESIDENTIAL CARE,403890,130245330,14-May-14,"2,999.06",Revenue,THE MANOR HOUSE,SP0000728
WANDSWORTH COUNCIL,ASC,SOCIAL SERVICES,PRIVATE,EXTERNAL RESIDENTIAL CARE,403466,130245330,13-May-14,"8,297.95",Revenue,RALEIGH HOUSE LTD,SP0000760
WANDSWORTH COUNCIL,ASC,SOCIAL SERVICES,PRIVATE,EXTERNAL RESIDENTIAL CARE,403467,130245330,13-May-14,"7,436.40",Revenue,RALEIGH HOUSE LTD,SP0000760
WANDSWORTH COUNCIL,ASC,SOCIAL SERVICES,PRIVATE,EXTERNAL RESIDENTIAL CARE,399149,130245330,06-May-14,"3,140.56",Revenue,UNITED RESPONSE,SP0000797
WANDSWORTH COUNCIL,ASC,SOCIAL SERVICES,PRIVATE,EXTERNAL RESIDENTIAL CARE,397814,130245330,01-May-14,"3,376.29",Revenue,PROSPECTS,SP0000800
WANDSWORTH COUNCIL,ASC,SOCIAL SERVICES,PRIVATE,EXTERNAL RESIDENTIAL CARE,403897,130245330,14-May-14,"3,488.83",Revenue,PROSPECTS,SP0000800
WANDSWORTH COUNCIL,ASC,SOCIAL SERVICES,PRIVATE,EXTERNAL RESIDENTIAL CARE,406189,130245330,16-May-14,"3,488.83",Revenue,PROSPECTS,SP0000800
WANDSWORTH COUNCIL,ASC,SOCIAL SERVICES,PRIVATE,EXTERNAL RESIDENTIAL CARE,406190,130245330,16-May-14,"3,376.29",Revenue,PROSPECTS,SP0000800
WANDSWORTH COUNCIL,ASC,SOCIAL SERVICES,PRIVATE,EXTERNAL RESIDENTIAL CARE,406191,130245330,16-May-14,"3,376.29",Revenue,PROSPECTS,SP0000800
WANDSWORTH COUNCIL,ASC,SOCIAL SERVICES,PRIVATE,EXTERNAL RESIDENTIAL CARE,408900,130245330,21-May-14,"3,488.83",Revenue,PROSPECTS,SP0000800
WANDSWORTH COUNCIL,ASC,SOCIAL SERVICES,PRIVATE,EXTERNAL RESIDENTIAL CARE,410531,130245330,23-May-14,"3,842.31",Revenue,BEECH LODGE,SP0000807
WANDSWORTH COUNCIL,ASC,SOCIAL SERVICES,PRIVATE,EXTERNAL RESIDENTIAL CARE,410532,130245330,23-May-14,"3,842.31",Revenue,BEECH LODGE,SP0000807
WANDSWORTH COUNCIL,ASC,SOCIAL SERVICES,PRIVATE,EXTERNAL RESIDENTIAL CARE,410533,130245330,23-May-14,"3,842.31",Revenue,BEECH LODGE,SP0000807
WANDSWORTH COUNCIL,ASC,SOCIAL SERVICES,PRIVATE,EXTERNAL RESIDENTIAL CARE,398330,130245330,02-May-14,"7,791.43",Revenue,FIRCROFT,SP0000840
WANDSWORTH COUNCIL,ASC,SOCIAL SERVICES,PRIVATE,EXTERNAL RESIDENTIAL CARE,398328,130245330,02-May-14,"4,197.68",Revenue,ROYAL MENCAP SOCIETY,SP0000842
WANDSWORTH COUNCIL,ASC,SOCIAL SERVICES,PRIVATE,EXTERNAL RESIDENTIAL CARE,398345,130245330,02-May-14,"7,363.12",Revenue,ROYAL MENCAP SOCIETY,SP0000842
WANDSWORTH COUNCIL,ASC,SOCIAL SERVICES,PRIVATE,EXTERNAL RESIDENTIAL CARE,398346,130245330,02-May-14,"5,840.68",Revenue,ROYAL MENCAP SOCIETY,SP0000842
WANDSWORTH COUNCIL,ASC,SOCIAL SERVICES,PRIVATE,EXTERNAL RESIDENTIAL CARE,408181,130245330,20-May-14,"3,151.15",Revenue,STALLCOMBE HOUSE,SP0000843
WANDSWORTH COUNCIL,ASC,SOCIAL SERVICES,PRIVATE,EXTERNAL RESIDENTIAL CARE,410662,130245330,23-May-14,"2,592.44",Revenue,SCOPE,SP0000852
WANDSWORTH COUNCIL,ASC,SOCIAL SERVICES,PRIVATE,EXTERNAL RESIDENTIAL CARE,410663,130245330,23-May-14,"2,780.14",Revenue,SCOPE,SP0000852
WANDSWORTH COUNCIL,ASC,SOCIAL SERVICES,PRIVATE,EXTERNAL RESIDENTIAL CARE,410570,130245330,23-May-14,"4,472.68",Revenue,229 MITCHAM LANE LTD,SP0000884
WANDSWORTH COUNCIL,ASC,SOCIAL SERVICES,PRIVATE,EXTERNAL RESIDENTIAL CARE,410571,130245330,23-May-14,"5,237.67",Revenue,229 MITCHAM LANE LTD,SP0000884
WANDSWORTH COUNCIL,ASC,SOCIAL SERVICES,PRIVATE,EXTERNAL RESIDENTIAL CARE,410572,130245330,23-May-14,"5,560.07",Revenue,229 MITCHAM LANE LTD,SP0000884
WANDSWORTH COUNCIL,ASC,SOCIAL SERVICES,PRIVATE,EXTERNAL RESIDENTIAL CARE,410573,130245330,23-May-14,"5,237.67",Revenue,229 MITCHAM LANE LTD,SP0000884
WANDSWORTH COUNCIL,ASC,SOCIAL SERVICES,PRIVATE,EXTERNAL RESIDENTIAL CARE,408144,130245330,20-May-14,"5,761.68",Revenue,WINSLOW COURT,SP0000886
WANDSWORTH COUNCIL,ASC,SOCIAL SERVICES,PRIVATE,EXTERNAL RESIDENTIAL CARE,408193,130245330,20-May-14,"5,543.92",Revenue,WINSLOW COURT,SP0000886
WANDSWORTH COUNCIL,ASC,SOCIAL SERVICES,PRIVATE,EXTERNAL RESIDENTIAL CARE,398333,130245330,02-May-14,"3,957.32",Revenue,THE LEO TRUST,SP0000908
WANDSWORTH COUNCIL,ASC,SOCIAL SERVICES,PRIVATE,EXTERNAL RESIDENTIAL CARE,410515,130245330,23-May-14,"3,957.32",Revenue,THE LEO TRUST,SP0000908
WANDSWORTH COUNCIL,ASC,SOCIAL SERVICES,PRIVATE,EXTERNAL RESIDENTIAL CARE,406192,130245330,16-May-14,"2,528.00",Revenue,PURBECK CARE LTD,SP0000913
WANDSWORTH COUNCIL,ASC,SOCIAL SERVICES,PRIVATE,EXTERNAL RESIDENTIAL CARE,406195,130245330,16-May-14,"2,257.14",Revenue,PURBECK CARE LTD,SP0000913
WANDSWORTH COUNCIL,ASC,SOCIAL SERVICES,PRIVATE,EXTERNAL RESIDENTIAL CARE,406196,130245330,16-May-14,"2,528.00",Revenue,PURBECK CARE LTD,SP0000913
WANDSWORTH COUNCIL,ASC,SOCIAL SERVICES,PRIVATE,EXTERNAL RESIDENTIAL CARE,410660,130245330,23-May-14,"8,456.27",Revenue,PROGRESS HOUSING MARLOW,SP0000952
WANDSWORTH COUNCIL,ASC,SOCIAL SERVICES,PRIVATE,EXTERNAL RESIDENTIAL CARE,399152,130245330,06-May-14,"3,899.85",Revenue,DOWNING (CHERTSEY ROAD) LTD,SP0000959
WANDSWORTH COUNCIL,ASC,SOCIAL SERVICES,PRIVATE,EXTERNAL RESIDENTIAL CARE,410535,130245330,23-May-14,"3,861.81",Revenue,CHERRY LODGE,SP0000965
WANDSWORTH COUNCIL,ASC,SOCIAL SERVICES,PRIVATE,EXTERNAL RESIDENTIAL CARE,410540,130245330,23-May-14,"6,119.91",Revenue,LEONARD CHESHIRE,SP0000976
WANDSWORTH COUNCIL,ASC,SOCIAL SERVICES,PRIVATE,EXTERNAL RESIDENTIAL CARE,399151,130245330,06-May-14,"5,215.84",Revenue,CREDITON CARE & SUPPORT HOMES,SP0000998
WANDSWORTH COUNCIL,ASC,SOCIAL SERVICES,PRIVATE,EXTERNAL RESIDENTIAL CARE,408897,130245330,21-May-14,"4,613.60",Revenue,LOTUS CARE HOME LTD,SP0001006
WANDSWORTH COUNCIL,ASC,SOCIAL SERVICES,PRIVATE,EXTERNAL RESIDENTIAL CARE,408182,130245330,20-May-14,"5,020.50",Revenue,M JINGREE T/A SUNLIGHT HOUSE,SP0001024
WANDSWORTH COUNCIL,ASC,SOCIAL SERVICES,PRIVATE,EXTERNAL RESIDENTIAL CARE,397808,130245330,01-May-14,"3,708.20",Revenue,THE HOME FARM TRUST LTD,SP0001048
WANDSWORTH COUNCIL,ASC,SOCIAL SERVICES,PRIVATE,EXTERNAL RESIDENTIAL CARE,410612,130245330,23-May-14,"3,708.20",Revenue,THE HOME FARM TRUST LTD,SP0001048
WANDSWORTH COUNCIL,ASC,SOCIAL SERVICES,PRIVATE,EXTERNAL RESIDENTIAL CARE,401433,130245330,09-May-14,"4,839.00",Revenue,ALLIED CARE (MHS) LTD,SP0001069
WANDSWORTH COUNCIL,ASC,SOCIAL SERVICES,PRIVATE,EXTERNAL RESIDENTIAL CARE,410599,130245330,23-May-14,"4,332.83",Revenue,ALLIED CARE (MHS) LTD,SP0001069
WANDSWORTH COUNCIL,ASC,SOCIAL SERVICES,PRIVATE,EXTERNAL RESIDENTIAL CARE,410600,130245330,23-May-14,"4,332.73",Revenue,ALLIED CARE (MHS) LTD,SP0001069
WANDSWORTH COUNCIL,ASC,SOCIAL SERVICES,PRIVATE,EXTERNAL RESIDENTIAL CARE,408173,130245330,20-May-14,"1,798.71",Revenue,SAXON COURT,SP0001100
WANDSWORTH COUNCIL,ASC,SOCIAL SERVICES,PRIVATE,EXTERNAL RESIDENTIAL CARE,408174,130245330,20-May-14,"1,935.53",Revenue,SAXON COURT,SP0001100
WANDSWORTH COUNCIL,ASC,SOCIAL SERVICES,PRIVATE,EXTERNAL RESIDENTIAL CARE,403899,130245330,14-May-14,"7,395.80",Revenue,TOTTERDOWN,SP0001113
WANDSWORTH COUNCIL,ASC,SOCIAL SERVICES,PRIVATE,EXTERNAL RESIDENTIAL CARE,403900,130245330,14-May-14,"3,671.24",Revenue,TOTTERDOWN,SP0001113
WANDSWORTH COUNCIL,ASC,SOCIAL SERVICES,PRIVATE,EXTERNAL RESIDENTIAL CARE,399148,130245330,06-May-14,"6,874.92",Revenue,SUSSEX HEALTH CARE,SP0001115
WANDSWORTH COUNCIL,ASC,SOCIAL SERVICES,PRIVATE,EXTERNAL RESIDENTIAL CARE,403882,130245330,14-May-14,"5,987.05",Revenue,SUSSEX HEALTH CARE,SP0001115
WANDSWORTH COUNCIL,ASC,SOCIAL SERVICES,PRIVATE,EXTERNAL RESIDENTIAL CARE,410576,130245330,23-May-14,"6,186.62",Revenue,SUSSEX HEALTH CARE,SP0001115
WANDSWORTH COUNCIL,ASC,SOCIAL SERVICES,PRIVATE,EXTERNAL RESIDENTIAL CARE,398334,130245330,02-May-14,"6,691.33",Revenue,LONDON CARE PARTNERSHIP LTD,SP0001138
WANDSWORTH COUNCIL,ASC,SOCIAL SERVICES,PRIVATE,EXTERNAL RESIDENTIAL CARE,398335,130245330,02-May-14,"8,559.84",Revenue,LONDON CARE PARTNERSHIP LTD,SP0001138
WANDSWORTH COUNCIL,ASC,SOCIAL SERVICES,PRIVATE,EXTERNAL RESIDENTIAL CARE,398336,130245330,02-May-14,"7,935.99",Revenue,LONDON CARE PARTNERSHIP LTD,SP0001138
WANDSWORTH COUNCIL,ASC,SOCIAL SERVICES,PRIVATE,EXTERNAL RESIDENTIAL CARE,398337,130245330,02-May-14,"7,970.83",Revenue,LONDON CARE PARTNERSHIP LTD,SP0001138
WANDSWORTH COUNCIL,ASC,SOCIAL SERVICES,PRIVATE,EXTERNAL RESIDENTIAL CARE,410577,130245330,23-May-14,"6,916.63",Revenue,LONDON CARE PARTNERSHIP LTD,SP0001138
WANDSWORTH COUNCIL,ASC,SOCIAL SERVICES,PRIVATE,EXTERNAL RESIDENTIAL CARE,410578,130245330,23-May-14,"8,834.99",Revenue,LONDON CARE PARTNERSHIP LTD,SP0001138
WANDSWORTH COUNCIL,ASC,SOCIAL SERVICES,PRIVATE,EXTERNAL RESIDENTIAL CARE,410579,130245330,23-May-14,"8,201.71",Revenue,LONDON CARE PARTNERSHIP LTD,SP0001138
WANDSWORTH COUNCIL,ASC,SOCIAL SERVICES,PRIVATE,EXTERNAL RESIDENTIAL CARE,410580,130245330,23-May-14,"8,303.56",Revenue,LONDON CARE PARTNERSHIP LTD,SP0001138
WANDSWORTH COUNCIL,ASC,SOCIAL SERVICES,PRIVATE,EXTERNAL RESIDENTIAL CARE,410581,130245330,23-May-14,"8,303.57",Revenue,LONDON CARE PARTNERSHIP LTD,SP0001138
WANDSWORTH COUNCIL,ASC,SOCIAL SERVICES,PRIVATE,EXTERNAL RESIDENTIAL CARE,410582,130245330,23-May-14,"8,610.25",Revenue,LONDON CARE PARTNERSHIP LTD,SP0001138
WANDSWORTH COUNCIL,ASC,SOCIAL SERVICES,PRIVATE,EXTERNAL RESIDENTIAL CARE,408891,130245330,21-May-14,"6,636.76",Revenue,CHOICE CARE GROUP,SP0001367
WANDSWORTH COUNCIL,ASC,SOCIAL SERVICES,PRIVATE,EXTERNAL RESIDENTIAL CARE,397809,130245330,01-May-14,"6,471.07",Revenue,HOME FROM HOME CARE LIMITED,SP0001373
WANDSWORTH COUNCIL,ASC,SOCIAL SERVICES,PRIVATE,EXTERNAL RESIDENTIAL CARE,410575,130245330,23-May-14,"6,671.99",Revenue,HOME FROM HOME CARE LIMITED,SP0001373
WANDSWORTH COUNCIL,ASC,SOCIAL SERVICES,PRIVATE,EXTERNAL RESIDENTIAL CARE,408152,130245330,20-May-14,"2,306.33",Revenue,LARKFIELD HALL LTD T/A PEPENBURY,SP0001378
WANDSWORTH COUNCIL,ASC,SOCIAL SERVICES,PRIVATE,EXTERNAL RESIDENTIAL CARE,410520,130245330,23-May-14,"4,967.48",Revenue,LARKFIELD HALL LTD T/A PEPENBURY,SP0001378
WANDSWORTH COUNCIL,ASC,SOCIAL SERVICES,PRIVATE,EXTERNAL RESIDENTIAL CARE,398344,130245330,02-May-14,"8,514.43",Revenue,ROOKERY HOVE PRIORY,SP0001498
WANDSWORTH COUNCIL,ASC,SOCIAL SERVICES,PRIVATE,EXTERNAL RESIDENTIAL CARE,410666,130245330,23-May-14,"8,784.69",Revenue,ROOKERY HOVE PRIORY,SP0001498
WANDSWORTH COUNCIL,ASC,SOCIAL SERVICES,PRIVATE,EXTERNAL RESIDENTIAL CARE,410655,130245330,23-May-14,"3,693.40",Revenue,CRAEGMOOR OLD RECTORY BREDE PRIORY,SP0001621
WANDSWORTH COUNCIL,ASC,SOCIAL SERVICES,PRIVATE,EXTERNAL RESIDENTIAL CARE,410656,130245330,23-May-14,"3,900.78",Revenue,CRAEGMOOR OLD RECTORY BREDE PRIORY,SP0001621
WANDSWORTH COUNCIL,ASC,SOCIAL SERVICES,PRIVATE,EXTERNAL RESIDENTIAL CARE,403482,130245330,13-May-14,"9,889.80",Revenue,SALISBURY AUTISTIC CARE,SP0001691
WANDSWORTH COUNCIL,ASC,SOCIAL SERVICES,PRIVATE,EXTERNAL RESIDENTIAL CARE,408158,130245330,20-May-14,"7,134.21",Revenue,PATHWAY HEALTHCARE,SP0001779
WANDSWORTH COUNCIL,ASC,SOCIAL SERVICES,PRIVATE,EXTERNAL RESIDENTIAL CARE,408159,130245330,20-May-14,"7,336.92",Revenue,PATHWAY HEALTHCARE,SP0001779
WANDSWORTH COUNCIL,ASC,SOCIAL SERVICES,PRIVATE,EXTERNAL RESIDENTIAL CARE,408160,130245330,20-May-14,"6,904.07",Revenue,PATHWAY HEALTHCARE,SP0001779
WANDSWORTH COUNCIL,ASC,SOCIAL SERVICES,PRIVATE,EXTERNAL RESIDENTIAL CARE,408161,130245330,20-May-14,"7,134.21",Revenue,PATHWAY HEALTHCARE,SP0001779
WANDSWORTH COUNCIL,ASC,SOCIAL SERVICES,PRIVATE,EXTERNAL RESIDENTIAL CARE,401440,130245330,09-May-14,"6,408.96",Revenue,THE BRANDON TRUST,SP0005337
WANDSWORTH COUNCIL,ASC,SOCIAL SERVICES,PRIVATE,EXTERNAL RESIDENTIAL CARE,403464,130245330,13-May-14,"2,755.56",Revenue,HASTINGS & BEXHILL MENCAP SOCIETY,SP0005380
WANDSWORTH COUNCIL,ASC,SOCIAL SERVICES,PRIVATE,EXTERNAL RESIDENTIAL CARE,403499,130245330,13-May-14,"3,469.00",Revenue,CSS LTD T/A  THF CARE ESTATES LTD,SP0005682
WANDSWORTH COUNCIL,ASC,SOCIAL SERVICES,PRIVATE,EXTERNAL RESIDENTIAL CARE,399154,130245330,06-May-14,"5,860.77",Revenue,ENHAM,SP0005845
WANDSWORTH COUNCIL,ASC,SOCIAL SERVICES,PRIVATE,EXTERNAL RESIDENTIAL CARE,399142,130245330,06-May-14,"4,035.96",Revenue,PARK LODGE SOLUTIONS LTD,SP0006663
WANDSWORTH COUNCIL,ASC,SOCIAL SERVICES,PRIVATE,EXTERNAL RESIDENTIAL CARE,401416,130245330,09-May-14,"6,827.40",Revenue,PARK LODGE SOLUTIONS LTD,SP0006663
WANDSWORTH COUNCIL,ASC,SOCIAL SERVICES,PRIVATE,EXTERNAL RESI RESPITE CARE,20282919,130245340,21-May-14,"38,875.58",Revenue,SOUTHSIDE PARTNERSHIP,2005209
WANDSWORTH COUNCIL,ASC,SOCIAL SERVICES,PRIVATE,RESPITE CARE AT HOME -VOUCHERS,406230,130245510,16-May-14,431.94,Revenue,RAINBOW MEDICAL SERVICES,SP0000037
WANDSWORTH COUNCIL,ASC,SOCIAL SERVICES,PRIVATE,ONE TO ONE CARE,20282919,130246220,21-May-14,"2,788.39",Revenue,SOUTHSIDE PARTNERSHIP,2005209
WANDSWORTH COUNCIL,ASC,SOCIAL SERVICES,PRIVATE,ONE TO ONE CARE,406428,130246220,16-May-14,"2,638.03",Revenue,RAINBOW MEDICAL SERVICES,SP0000037
WANDSWORTH COUNCIL,ASC,SOCIAL SERVICES,PRIVATE,ONE TO ONE CARE,406430,130246220,16-May-14,"1,143.00",Revenue,RAINBOW MEDICAL SERVICES,SP0000037
WANDSWORTH COUNCIL,ASC,SOCIAL SERVICES,PRIVATE,ONE TO ONE CARE,406431,130246220,16-May-14,"2,813.30",Revenue,RAINBOW MEDICAL SERVICES,SP0000037
WANDSWORTH COUNCIL,ASC,SOCIAL SERVICES,PRIVATE,ONE TO ONE CARE,406433,130246220,16-May-14,"1,994.25",Revenue,RAINBOW MEDICAL SERVICES,SP0000037
WANDSWORTH COUNCIL,ASC,SOCIAL SERVICES,PRIVATE,ONE TO ONE CARE,411018,130246220,23-May-14,948.09,Revenue,FRANCES TAYLOR FOUNDATION,SP0000142
WANDSWORTH COUNCIL,ASC,SOCIAL SERVICES,PRIVATE,ONE TO ONE CARE,411019,130246220,23-May-14,979.69,Revenue,FRANCES TAYLOR FOUNDATION,SP0000142
WANDSWORTH COUNCIL,ASC,SOCIAL SERVICES,PRIVATE,ONE TO ONE CARE,399277,130246220,06-May-14,720.00,Revenue,THE CHESTNUTS,SP0000182
WANDSWORTH COUNCIL,ASC,SOCIAL SERVICES,PRIVATE,ONE TO ONE CARE,408375,130246220,20-May-14,671.40,Revenue,ST MARYS RESIDENTIAL HOME,SP0000215
WANDSWORTH COUNCIL,ASC,SOCIAL SERVICES,PRIVATE,ONE TO ONE CARE,408376,130246220,20-May-14,627.90,Revenue,ST MARYS RESIDENTIAL HOME,SP0000215
WANDSWORTH COUNCIL,ASC,SOCIAL SERVICES,PRIVATE,ONE TO ONE CARE,401584,130246220,09-May-14,"1,350.52",Revenue,MACINTYRE CARE,SP0000473
WANDSWORTH COUNCIL,ASC,SOCIAL SERVICES,PRIVATE,ONE TO ONE CARE,411008,130246220,23-May-14,"1,350.52",Revenue,MACINTYRE CARE,SP0000473
WANDSWORTH COUNCIL,ASC,SOCIAL SERVICES,PRIVATE,ONE TO ONE CARE,411009,130246220,23-May-14,"1,350.52",Revenue,MACINTYRE CARE,SP0000473
WANDSWORTH COUNCIL,ASC,SOCIAL SERVICES,PRIVATE,ONE TO ONE CARE,411010,130246220,23-May-14,"1,910.04",Revenue,MACINTYRE CARE,SP0000473
WANDSWORTH COUNCIL,ASC,SOCIAL SERVICES,PRIVATE,ONE TO ONE CARE,411011,130246220,23-May-14,"1,350.52",Revenue,MACINTYRE CARE,SP0000473
WANDSWORTH COUNCIL,ASC,SOCIAL SERVICES,PRIVATE,ONE TO ONE CARE,411020,130246220,23-May-14,694.56,Revenue,MACINTYRE CARE,SP0000473
WANDSWORTH COUNCIL,ASC,SOCIAL SERVICES,PRIVATE,ONE TO ONE CARE,411040,130246220,23-May-14,"1,115.70",Revenue,THE COMMUNITY CARE COMPANY UK LTD,SP0000576
WANDSWORTH COUNCIL,ASC,SOCIAL SERVICES,PRIVATE,ONE TO ONE CARE,411041,130246220,23-May-14,"1,272.39",Revenue,THE COMMUNITY CARE COMPANY UK LTD,SP0000576
WANDSWORTH COUNCIL,ASC,SOCIAL SERVICES,PRIVATE,ONE TO ONE CARE,411045,130246220,23-May-14,671.60,Revenue,MEDACS HOMECARE,SP0000829
WANDSWORTH COUNCIL,ASC,SOCIAL SERVICES,PRIVATE,ONE TO ONE CARE,399276,130246220,06-May-14,"2,791.71",Revenue,DOWNING (CHERTSEY ROAD) LTD,SP0000959
WANDSWORTH COUNCIL,ASC,SOCIAL SERVICES,PRIVATE,ONE TO ONE CARE,401586,130246220,09-May-14,"1,597.44",Revenue,TOTTERDOWN,SP0001113
WANDSWORTH COUNCIL,ASC,SOCIAL SERVICES,PRIVATE,ONE TO ONE CARE,403686,130246220,13-May-14,716.24,Revenue,FRONTIER SUPPORT SERVICES LTD,SP0001132
WANDSWORTH COUNCIL,ASC,SOCIAL SERVICES,PRIVATE,ONE TO ONE CARE,411012,130246220,23-May-14,802.08,Revenue,LARKFIELD HALL LTD T/A PEPENBURY,SP0001378
WANDSWORTH COUNCIL,ASC,SOCIAL SERVICES,PRIVATE,ONE TO ONE CARE,411066,130246220,23-May-14,"3,214.29",Revenue,CRAEGMOOR OLD RECTORY BREDE PRIORY,SP0001621
WANDSWORTH COUNCIL,ASC,SOCIAL SERVICES,PRIVATE,ONE TO ONE CARE,411067,130246220,23-May-14,"3,321.43",Revenue,CRAEGMOOR OLD RECTORY BREDE PRIORY,SP0001621
WANDSWORTH COUNCIL,ASC,SOCIAL SERVICES,PRIVATE,ONE TO ONE CARE,399272,130246220,06-May-14,"1,953.00",Revenue,ACH OF LONDON LLP,SP0001688
WANDSWORTH COUNCIL,ASC,SOCIAL SERVICES,PRIVATE,ONE TO ONE CARE,401554,130246220,09-May-14,324.00,Revenue,THE BRANDON TRUST,SP0005337
WANDSWORTH COUNCIL,ASC,SOCIAL SERVICES,PRIVATE,ONE TO ONE CARE,401575,130246220,09-May-14,331.20,Revenue,THE BRANDON TRUST,SP0005337
WANDSWORTH COUNCIL,ASC,SOCIAL SERVICES,PRIVATE,ONE TO ONE CARE,401644,130246220,09-May-14,600.04,Revenue,THE BRANDON TRUST,SP0005337
WANDSWORTH COUNCIL,ASC,SOCIAL SERVICES,PRIVATE,ONE TO ONE CARE,401657,130246220,09-May-14,331.20,Revenue,THE BRANDON TRUST,SP0005337
WANDSWORTH COUNCIL,ASC,SOCIAL SERVICES,PRIVATE,ONE TO ONE CARE,401672,130246220,09-May-14,"1,987.20",Revenue,THE BRANDON TRUST,SP0005337
WANDSWORTH COUNCIL,ASC,SOCIAL SERVICES,PRIVATE,ONE TO ONE CARE,401673,130246220,09-May-14,"1,312.00",Revenue,THE BRANDON TRUST,SP0005337
WANDSWORTH COUNCIL,ASC,SOCIAL SERVICES,PRIVATE,ONE TO ONE CARE,401676,130246220,09-May-14,"2,450.88",Revenue,THE BRANDON TRUST,SP0005337
WANDSWORTH COUNCIL,ASC,SOCIAL SERVICES,VOL ASS,SUPPORTED HOUSING PROGRAMME,397797,130248030,01-May-14,"4,120.24",Revenue,CMG HOMES LTD,SP0000075
WANDSWORTH COUNCIL,ASC,SOCIAL SERVICES,VOL ASS,SUPPORTED HOUSING PROGRAMME,401425,130248030,09-May-14,"4,120.24",Revenue,CMG HOMES LTD,SP0000075
WANDSWORTH COUNCIL,ASC,SOCIAL SERVICES,VOL ASS,SUPPORTED HOUSING PROGRAMME,401536,130248030,09-May-14,833.06,Revenue,HARINGEY ASSOCIATION FOR INDEPENDENT LIV,SP0000222
WANDSWORTH COUNCIL,ASC,SOCIAL SERVICES,VOL ASS,SUPPORTED HOUSING PROGRAMME,401537,130248030,09-May-14,724.40,Revenue,HARINGEY ASSOCIATION FOR INDEPENDENT LIV,SP0000222
WANDSWORTH COUNCIL,ASC,SOCIAL SERVICES,VOL ASS,SUPPORTED HOUSING PROGRAMME,401538,130248030,09-May-14,506.56,Revenue,HARINGEY ASSOCIATION FOR INDEPENDENT LIV,SP0000222
WANDSWORTH COUNCIL,ASC,SOCIAL SERVICES,VOL ASS,SUPPORTED HOUSING PROGRAMME,401539,130248030,09-May-14,"1,521.52",Revenue,HARINGEY ASSOCIATION FOR INDEPENDENT LIV,SP0000222
WANDSWORTH COUNCIL,ASC,SOCIAL SERVICES,VOL ASS,SUPPORTED HOUSING PROGRAMME,411013,130248030,23-May-14,"5,543.72",Revenue,NORWOOD SCHOOLS LTD,SP0000332
WANDSWORTH COUNCIL,ASC,SOCIAL SERVICES,VOL ASS,SUPPORTED HOUSING PROGRAMME,397829,130248030,01-May-14,"7,336.00",Revenue,LIFEWAYS COMMUNITY CARE LTD,SP0000364
WANDSWORTH COUNCIL,ASC,SOCIAL SERVICES,VOL ASS,SUPPORTED HOUSING PROGRAMME,401379,130248030,09-May-14,"1,488.00",Revenue,LIFEWAYS COMMUNITY CARE LTD,SP0000364
WANDSWORTH COUNCIL,ASC,SOCIAL SERVICES,VOL ASS,SUPPORTED HOUSING PROGRAMME,408219,130248030,20-May-14,577.60,Revenue,LIFEWAYS COMMUNITY CARE LTD,SP0000364
WANDSWORTH COUNCIL,ASC,SOCIAL SERVICES,VOL ASS,SUPPORTED HOUSING PROGRAMME,399150,130248030,06-May-14,"9,574.36",Revenue,CHOICE SUPPORT,SP0000398
WANDSWORTH COUNCIL,ASC,SOCIAL SERVICES,VOL ASS,SUPPORTED HOUSING PROGRAMME,399273,130248030,06-May-14,"8,080.68",Revenue,CHOICE SUPPORT,SP0000398
WANDSWORTH COUNCIL,ASC,SOCIAL SERVICES,VOL ASS,SUPPORTED HOUSING PROGRAMME,410605,130248030,23-May-14,"7,972.24",Revenue,CHOICE SUPPORT,SP0000398
WANDSWORTH COUNCIL,ASC,SOCIAL SERVICES,VOL ASS,SUPPORTED HOUSING PROGRAMME,410606,130248030,23-May-14,"9,574.36",Revenue,CHOICE SUPPORT,SP0000398
WANDSWORTH COUNCIL,ASC,SOCIAL SERVICES,VOL ASS,SUPPORTED HOUSING PROGRAMME,410607,130248030,23-May-14,"7,972.24",Revenue,CHOICE SUPPORT,SP0000398
WANDSWORTH COUNCIL,ASC,SOCIAL SERVICES,VOL ASS,SUPPORTED HOUSING PROGRAMME,411037,130248030,23-May-14,"8,080.68",Revenue,CHOICE SUPPORT,SP0000398
WANDSWORTH COUNCIL,ASC,SOCIAL SERVICES,VOL ASS,SUPPORTED HOUSING PROGRAMME,403672,130248030,13-May-14,"1,964.20",Revenue,C M CARE LTD,SP0000455
WANDSWORTH COUNCIL,ASC,SOCIAL SERVICES,VOL ASS,SUPPORTED HOUSING PROGRAMME,398382,130248030,02-May-14,"5,204.28",Revenue,ROYAL MENCAP SOCIETY,SP0000842
WANDSWORTH COUNCIL,ASC,SOCIAL SERVICES,VOL ASS,SUPPORTED HOUSING PROGRAMME,398383,130248030,02-May-14,"5,105.32",Revenue,ROYAL MENCAP SOCIETY,SP0000842
WANDSWORTH COUNCIL,ASC,SOCIAL SERVICES,VOL ASS,SUPPORTED HOUSING PROGRAMME,398384,130248030,02-May-14,"2,491.28",Revenue,ROYAL MENCAP SOCIETY,SP0000842
WANDSWORTH COUNCIL,ASC,SOCIAL SERVICES,VOL ASS,SUPPORTED HOUSING PROGRAMME,398399,130248030,02-May-14,"2,251.52",Revenue,ROYAL MENCAP SOCIETY,SP0000842
WANDSWORTH COUNCIL,ASC,SOCIAL SERVICES,VOL ASS,SUPPORTED HOUSING PROGRAMME,398401,130248030,02-May-14,"2,441.20",Revenue,ROYAL MENCAP SOCIETY,SP0000842
WANDSWORTH COUNCIL,ASC,SOCIAL SERVICES,VOL ASS,SUPPORTED HOUSING PROGRAMME,398402,130248030,02-May-14,"3,246.40",Revenue,ROYAL MENCAP SOCIETY,SP0000842
WANDSWORTH COUNCIL,ASC,SOCIAL SERVICES,VOL ASS,SUPPORTED HOUSING PROGRAMME,398403,130248030,02-May-14,897.32,Revenue,ROYAL MENCAP SOCIETY,SP0000842
WANDSWORTH COUNCIL,ASC,SOCIAL SERVICES,VOL ASS,SUPPORTED HOUSING PROGRAMME,398404,130248030,02-May-14,"1,748.04",Revenue,ROYAL MENCAP SOCIETY,SP0000842
WANDSWORTH COUNCIL,ASC,SOCIAL SERVICES,VOL ASS,SUPPORTED HOUSING PROGRAMME,406441,130248030,16-May-14,600.00,Revenue,ACT TOO LTD,SP0000855
WANDSWORTH COUNCIL,ASC,SOCIAL SERVICES,VOL ASS,SUPPORTED HOUSING PROGRAMME,406442,130248030,16-May-14,"1,320.00",Revenue,ACT TOO LTD,SP0000855
WANDSWORTH COUNCIL,ASC,SOCIAL SERVICES,VOL ASS,SUPPORTED HOUSING PROGRAMME,406443,130248030,16-May-14,"1,020.00",Revenue,ACT TOO LTD,SP0000855
WANDSWORTH COUNCIL,ASC,SOCIAL SERVICES,VOL ASS,SUPPORTED HOUSING PROGRAMME,406444,130248030,16-May-14,"2,220.00",Revenue,ACT TOO LTD,SP0000855
WANDSWORTH COUNCIL,ASC,SOCIAL SERVICES,VOL ASS,SUPPORTED HOUSING PROGRAMME,406445,130248030,16-May-14,"1,350.00",Revenue,ACT TOO LTD,SP0000855
WANDSWORTH COUNCIL,ASC,SOCIAL SERVICES,VOL ASS,SUPPORTED HOUSING PROGRAMME,406452,130248030,16-May-14,560.00,Revenue,ACT TOO LTD,SP0000855
WANDSWORTH COUNCIL,ASC,SOCIAL SERVICES,VOL ASS,SUPPORTED HOUSING PROGRAMME,406453,130248030,16-May-14,620.76,Revenue,ACT TOO LTD,SP0000855
WANDSWORTH COUNCIL,ASC,SOCIAL SERVICES,VOL ASS,SUPPORTED HOUSING PROGRAMME,406454,130248030,16-May-14,700.00,Revenue,ACT TOO LTD,SP0000855
WANDSWORTH COUNCIL,ASC,SOCIAL SERVICES,VOL ASS,SUPPORTED HOUSING PROGRAMME,408354,130248030,20-May-14,600.00,Revenue,ACT TOO LTD,SP0000855
WANDSWORTH COUNCIL,ASC,SOCIAL SERVICES,VOL ASS,SUPPORTED HOUSING PROGRAMME,408355,130248030,20-May-14,"1,320.00",Revenue,ACT TOO LTD,SP0000855
WANDSWORTH COUNCIL,ASC,SOCIAL SERVICES,VOL ASS,SUPPORTED HOUSING PROGRAMME,408356,130248030,20-May-14,"1,020.00",Revenue,ACT TOO LTD,SP0000855
WANDSWORTH COUNCIL,ASC,SOCIAL SERVICES,VOL ASS,SUPPORTED HOUSING PROGRAMME,408357,130248030,20-May-14,"2,220.00",Revenue,ACT TOO LTD,SP0000855
WANDSWORTH COUNCIL,ASC,SOCIAL SERVICES,VOL ASS,SUPPORTED HOUSING PROGRAMME,408358,130248030,20-May-14,"1,350.00",Revenue,ACT TOO LTD,SP0000855
WANDSWORTH COUNCIL,ASC,SOCIAL SERVICES,VOL ASS,SUPPORTED HOUSING PROGRAMME,408362,130248030,20-May-14,560.00,Revenue,ACT TOO LTD,SP0000855
WANDSWORTH COUNCIL,ASC,SOCIAL SERVICES,VOL ASS,SUPPORTED HOUSING PROGRAMME,408363,130248030,20-May-14,620.76,Revenue,ACT TOO LTD,SP0000855
WANDSWORTH COUNCIL,ASC,SOCIAL SERVICES,VOL ASS,SUPPORTED HOUSING PROGRAMME,408364,130248030,20-May-14,700.00,Revenue,ACT TOO LTD,SP0000855
WANDSWORTH COUNCIL,ASC,SOCIAL SERVICES,VOL ASS,SUPPORTED HOUSING PROGRAMME,403676,130248030,13-May-14,"2,509.20",Revenue,FRONTIER SUPPORT SERVICES LTD,SP0001132
WANDSWORTH COUNCIL,ASC,SOCIAL SERVICES,VOL ASS,SUPPORTED HOUSING PROGRAMME,403677,130248030,13-May-14,657.80,Revenue,FRONTIER SUPPORT SERVICES LTD,SP0001132
WANDSWORTH COUNCIL,ASC,SOCIAL SERVICES,VOL ASS,SUPPORTED HOUSING PROGRAMME,403678,130248030,13-May-14,"1,864.88",Revenue,FRONTIER SUPPORT SERVICES LTD,SP0001132
WANDSWORTH COUNCIL,ASC,SOCIAL SERVICES,VOL ASS,SUPPORTED HOUSING PROGRAMME,403679,130248030,13-May-14,"1,685.92",Revenue,FRONTIER SUPPORT SERVICES LTD,SP0001132
WANDSWORTH COUNCIL,ASC,SOCIAL SERVICES,VOL ASS,SUPPORTED HOUSING PROGRAMME,403681,130248030,13-May-14,"1,353.32",Revenue,FRONTIER SUPPORT SERVICES LTD,SP0001132
WANDSWORTH COUNCIL,ASC,SOCIAL SERVICES,VOL ASS,SUPPORTED HOUSING PROGRAMME,403682,130248030,13-May-14,"1,353.32",Revenue,FRONTIER SUPPORT SERVICES LTD,SP0001132
WANDSWORTH COUNCIL,ASC,SOCIAL SERVICES,VOL ASS,SUPPORTED HOUSING PROGRAMME,403683,130248030,13-May-14,"1,097.52",Revenue,FRONTIER SUPPORT SERVICES LTD,SP0001132
WANDSWORTH COUNCIL,ASC,SOCIAL SERVICES,VOL ASS,SUPPORTED HOUSING PROGRAMME,403684,130248030,13-May-14,"1,097.56",Revenue,FRONTIER SUPPORT SERVICES LTD,SP0001132
WANDSWORTH COUNCIL,ASC,SOCIAL SERVICES,VOL ASS,SUPPORTED HOUSING PROGRAMME,403685,130248030,13-May-14,"1,533.00",Revenue,FRONTIER SUPPORT SERVICES LTD,SP0001132
WANDSWORTH COUNCIL,ASC,SOCIAL SERVICES,VOL ASS,SUPPORTED HOUSING PROGRAMME,403686,130248030,13-May-14,"1,097.64",Revenue,FRONTIER SUPPORT SERVICES LTD,SP0001132
WANDSWORTH COUNCIL,ASC,SOCIAL SERVICES,VOL ASS,SUPPORTED HOUSING PROGRAMME,403687,130248030,13-May-14,"1,251.12",Revenue,FRONTIER SUPPORT SERVICES LTD,SP0001132
WANDSWORTH COUNCIL,ASC,SOCIAL SERVICES,VOL ASS,SUPPORTED HOUSING PROGRAMME,403688,130248030,13-May-14,"1,535.48",Revenue,FRONTIER SUPPORT SERVICES LTD,SP0001132
WANDSWORTH COUNCIL,ASC,SOCIAL SERVICES,VOL ASS,SUPPORTED HOUSING PROGRAMME,397877,130248030,01-May-14,"5,907.30",Revenue,INDEPENDENCE HOMES LTD,SP0004378
WANDSWORTH COUNCIL,ASC,SOCIAL SERVICES,VOL ASS,SUPPORTED HOUSING PROGRAMME,401549,130248030,09-May-14,"1,551.32",Revenue,THE BRANDON TRUST,SP0005337
WANDSWORTH COUNCIL,ASC,SOCIAL SERVICES,VOL ASS,SUPPORTED HOUSING PROGRAMME,401550,130248030,09-May-14,"1,504.84",Revenue,THE BRANDON TRUST,SP0005337
WANDSWORTH COUNCIL,ASC,SOCIAL SERVICES,VOL ASS,SUPPORTED HOUSING PROGRAMME,401551,130248030,09-May-14,"1,504.84",Revenue,THE BRANDON TRUST,SP0005337
WANDSWORTH COUNCIL,ASC,SOCIAL SERVICES,VOL ASS,SUPPORTED HOUSING PROGRAMME,401552,130248030,09-May-14,"1,936.52",Revenue,THE BRANDON TRUST,SP0005337
WANDSWORTH COUNCIL,ASC,SOCIAL SERVICES,VOL ASS,SUPPORTED HOUSING PROGRAMME,401553,130248030,09-May-14,"7,764.16",Revenue,THE BRANDON TRUST,SP0005337
WANDSWORTH COUNCIL,ASC,SOCIAL SERVICES,VOL ASS,SUPPORTED HOUSING PROGRAMME,401554,130248030,09-May-14,"2,327.04",Revenue,THE BRANDON TRUST,SP0005337
WANDSWORTH COUNCIL,ASC,SOCIAL SERVICES,VOL ASS,SUPPORTED HOUSING PROGRAMME,401555,130248030,09-May-14,"2,980.32",Revenue,THE BRANDON TRUST,SP0005337
WANDSWORTH COUNCIL,ASC,SOCIAL SERVICES,VOL ASS,SUPPORTED HOUSING PROGRAMME,401556,130248030,09-May-14,"2,969.12",Revenue,THE BRANDON TRUST,SP0005337
WANDSWORTH COUNCIL,ASC,SOCIAL SERVICES,VOL ASS,SUPPORTED HOUSING PROGRAMME,401557,130248030,09-May-14,"2,979.92",Revenue,THE BRANDON TRUST,SP0005337
WANDSWORTH COUNCIL,ASC,SOCIAL SERVICES,VOL ASS,SUPPORTED HOUSING PROGRAMME,401558,130248030,09-May-14,"2,186.04",Revenue,THE BRANDON TRUST,SP0005337
WANDSWORTH COUNCIL,ASC,SOCIAL SERVICES,VOL ASS,SUPPORTED HOUSING PROGRAMME,401559,130248030,09-May-14,"2,893.04",Revenue,THE BRANDON TRUST,SP0005337
WANDSWORTH COUNCIL,ASC,SOCIAL SERVICES,VOL ASS,SUPPORTED HOUSING PROGRAMME,401560,130248030,09-May-14,"1,125.08",Revenue,THE BRANDON TRUST,SP0005337
WANDSWORTH COUNCIL,ASC,SOCIAL SERVICES,VOL ASS,SUPPORTED HOUSING PROGRAMME,401561,130248030,09-May-14,"1,155.88",Revenue,THE BRANDON TRUST,SP0005337
WANDSWORTH COUNCIL,ASC,SOCIAL SERVICES,VOL ASS,SUPPORTED HOUSING PROGRAMME,401562,130248030,09-May-14,"1,854.72",Revenue,THE BRANDON TRUST,SP0005337
WANDSWORTH COUNCIL,ASC,SOCIAL SERVICES,VOL ASS,SUPPORTED HOUSING PROGRAMME,401563,130248030,09-May-14,"1,380.64",Revenue,THE BRANDON TRUST,SP0005337
WANDSWORTH COUNCIL,ASC,SOCIAL SERVICES,VOL ASS,SUPPORTED HOUSING PROGRAMME,401564,130248030,09-May-14,"1,466.16",Revenue,THE BRANDON TRUST,SP0005337
WANDSWORTH COUNCIL,ASC,SOCIAL SERVICES,VOL ASS,SUPPORTED HOUSING PROGRAMME,401565,130248030,09-May-14,"2,298.88",Revenue,THE BRANDON TRUST,SP0005337
WANDSWORTH COUNCIL,ASC,SOCIAL SERVICES,VOL ASS,SUPPORTED HOUSING PROGRAMME,401566,130248030,09-May-14,"1,513.68",Revenue,THE BRANDON TRUST,SP0005337
WANDSWORTH COUNCIL,ASC,SOCIAL SERVICES,VOL ASS,SUPPORTED HOUSING PROGRAMME,401567,130248030,09-May-14,"1,513.68",Revenue,THE BRANDON TRUST,SP0005337
WANDSWORTH COUNCIL,ASC,SOCIAL SERVICES,VOL ASS,SUPPORTED HOUSING PROGRAMME,401568,130248030,09-May-14,"2,856.96",Revenue,THE BRANDON TRUST,SP0005337
WANDSWORTH COUNCIL,ASC,SOCIAL SERVICES,VOL ASS,SUPPORTED HOUSING PROGRAMME,401569,130248030,09-May-14,"2,260.80",Revenue,THE BRANDON TRUST,SP0005337
WANDSWORTH COUNCIL,ASC,SOCIAL SERVICES,VOL ASS,SUPPORTED HOUSING PROGRAMME,401570,130248030,09-May-14,"3,453.12",Revenue,THE BRANDON TRUST,SP0005337
WANDSWORTH COUNCIL,ASC,SOCIAL SERVICES,VOL ASS,SUPPORTED HOUSING PROGRAMME,401571,130248030,09-May-14,"2,790.72",Revenue,THE BRANDON TRUST,SP0005337
WANDSWORTH COUNCIL,ASC,SOCIAL SERVICES,VOL ASS,SUPPORTED HOUSING PROGRAMME,401572,130248030,09-May-14,"1,258.56",Revenue,THE BRANDON TRUST,SP0005337
WANDSWORTH COUNCIL,ASC,SOCIAL SERVICES,VOL ASS,SUPPORTED HOUSING PROGRAMME,401573,130248030,09-May-14,"1,886.40",Revenue,THE BRANDON TRUST,SP0005337
WANDSWORTH COUNCIL,ASC,SOCIAL SERVICES,VOL ASS,SUPPORTED HOUSING PROGRAMME,401574,130248030,09-May-14,947.04,Revenue,THE BRANDON TRUST,SP0005337
WANDSWORTH COUNCIL,ASC,SOCIAL SERVICES,VOL ASS,SUPPORTED HOUSING PROGRAMME,401575,130248030,09-May-14,"2,459.52",Revenue,THE BRANDON TRUST,SP0005337
WANDSWORTH COUNCIL,ASC,SOCIAL SERVICES,VOL ASS,SUPPORTED HOUSING PROGRAMME,401576,130248030,09-May-14,"1,730.88",Revenue,THE BRANDON TRUST,SP0005337
WANDSWORTH COUNCIL,ASC,SOCIAL SERVICES,VOL ASS,SUPPORTED HOUSING PROGRAMME,401600,130248030,09-May-14,"2,327.24",Revenue,THE BRANDON TRUST,SP0005337
WANDSWORTH COUNCIL,ASC,SOCIAL SERVICES,VOL ASS,SUPPORTED HOUSING PROGRAMME,401601,130248030,09-May-14,"2,819.52",Revenue,THE BRANDON TRUST,SP0005337
WANDSWORTH COUNCIL,ASC,SOCIAL SERVICES,VOL ASS,SUPPORTED HOUSING PROGRAMME,401618,130248030,09-May-14,"1,499.04",Revenue,THE BRANDON TRUST,SP0005337
WANDSWORTH COUNCIL,ASC,SOCIAL SERVICES,VOL ASS,SUPPORTED HOUSING PROGRAMME,401631,130248030,09-May-14,"1,034.48",Revenue,THE BRANDON TRUST,SP0005337
WANDSWORTH COUNCIL,ASC,SOCIAL SERVICES,VOL ASS,SUPPORTED HOUSING PROGRAMME,401650,130248030,09-May-14,"1,477.60",Revenue,THE BRANDON TRUST,SP0005337
WANDSWORTH COUNCIL,ASC,SOCIAL SERVICES,VOL ASS,SUPPORTED HOUSING PROGRAMME,401651,130248030,09-May-14,"1,674.84",Revenue,THE BRANDON TRUST,SP0005337
WANDSWORTH COUNCIL,ASC,SOCIAL SERVICES,VOL ASS,SUPPORTED HOUSING PROGRAMME,401652,130248030,09-May-14,"2,658.24",Revenue,THE BRANDON TRUST,SP0005337
WANDSWORTH COUNCIL,ASC,SOCIAL SERVICES,VOL ASS,SUPPORTED HOUSING PROGRAMME,401653,130248030,09-May-14,"2,405.96",Revenue,THE BRANDON TRUST,SP0005337
WANDSWORTH COUNCIL,ASC,SOCIAL SERVICES,VOL ASS,SUPPORTED HOUSING PROGRAMME,401656,130248030,09-May-14,"3,883.68",Revenue,THE BRANDON TRUST,SP0005337
WANDSWORTH COUNCIL,ASC,SOCIAL SERVICES,VOL ASS,SUPPORTED HOUSING PROGRAMME,401657,130248030,09-May-14,"2,618.48",Revenue,THE BRANDON TRUST,SP0005337
WANDSWORTH COUNCIL,ASC,SOCIAL SERVICES,VOL ASS,SUPPORTED HOUSING PROGRAMME,401658,130248030,09-May-14,"1,797.12",Revenue,THE BRANDON TRUST,SP0005337
WANDSWORTH COUNCIL,ASC,SOCIAL SERVICES,VOL ASS,SUPPORTED HOUSING PROGRAMME,401659,130248030,09-May-14,"2,062.08",Revenue,THE BRANDON TRUST,SP0005337
WANDSWORTH COUNCIL,ASC,SOCIAL SERVICES,VOL ASS,SUPPORTED HOUSING PROGRAMME,401660,130248030,09-May-14,"3,520.16",Revenue,THE BRANDON TRUST,SP0005337
WANDSWORTH COUNCIL,ASC,SOCIAL SERVICES,VOL ASS,SUPPORTED HOUSING PROGRAMME,401661,130248030,09-May-14,"2,525.76",Revenue,THE BRANDON TRUST,SP0005337
WANDSWORTH COUNCIL,ASC,SOCIAL SERVICES,VOL ASS,SUPPORTED HOUSING PROGRAMME,401662,130248030,09-May-14,"3,453.92",Revenue,THE BRANDON TRUST,SP0005337
WANDSWORTH COUNCIL,ASC,SOCIAL SERVICES,VOL ASS,SUPPORTED HOUSING PROGRAMME,401663,130248030,09-May-14,"1,929.60",Revenue,THE BRANDON TRUST,SP0005337
WANDSWORTH COUNCIL,ASC,SOCIAL SERVICES,VOL ASS,SUPPORTED HOUSING PROGRAMME,401664,130248030,09-May-14,"2,923.88",Revenue,THE BRANDON TRUST,SP0005337
WANDSWORTH COUNCIL,ASC,SOCIAL SERVICES,VOL ASS,SUPPORTED HOUSING PROGRAMME,401665,130248030,09-May-14,"4,687.20",Revenue,THE BRANDON TRUST,SP0005337
WANDSWORTH COUNCIL,ASC,SOCIAL SERVICES,VOL ASS,SUPPORTED HOUSING PROGRAMME,401666,130248030,09-May-14,"4,688.56",Revenue,THE BRANDON TRUST,SP0005337
WANDSWORTH COUNCIL,ASC,SOCIAL SERVICES,VOL ASS,SUPPORTED HOUSING PROGRAMME,401667,130248030,09-May-14,"3,320.64",Revenue,THE BRANDON TRUST,SP0005337
WANDSWORTH COUNCIL,ASC,SOCIAL SERVICES,VOL ASS,SUPPORTED HOUSING PROGRAMME,401668,130248030,09-May-14,"3,702.20",Revenue,THE BRANDON TRUST,SP0005337
WANDSWORTH COUNCIL,ASC,SOCIAL SERVICES,VOL ASS,SUPPORTED HOUSING PROGRAMME,401669,130248030,09-May-14,"1,465.92",Revenue,THE BRANDON TRUST,SP0005337
WANDSWORTH COUNCIL,ASC,SOCIAL SERVICES,VOL ASS,SUPPORTED HOUSING PROGRAMME,401670,130248030,09-May-14,"3,718.08",Revenue,THE BRANDON TRUST,SP0005337
WANDSWORTH COUNCIL,ASC,SOCIAL SERVICES,VOL ASS,SUPPORTED HOUSING PROGRAMME,401671,130248030,09-May-14,"3,121.92",Revenue,THE BRANDON TRUST,SP0005337
WANDSWORTH COUNCIL,ASC,SOCIAL SERVICES,VOL ASS,SUPPORTED HOUSING PROGRAMME,401672,130248030,09-May-14,"5,688.08",Revenue,THE BRANDON TRUST,SP0005337
WANDSWORTH COUNCIL,ASC,SOCIAL SERVICES,VOL ASS,SUPPORTED HOUSING PROGRAMME,401673,130248030,09-May-14,"5,983.44",Revenue,THE BRANDON TRUST,SP0005337
WANDSWORTH COUNCIL,ASC,SOCIAL SERVICES,VOL ASS,SUPPORTED HOUSING PROGRAMME,401674,130248030,09-May-14,"4,827.60",Revenue,THE BRANDON TRUST,SP0005337
WANDSWORTH COUNCIL,ASC,SOCIAL SERVICES,VOL ASS,SUPPORTED HOUSING PROGRAMME,401675,130248030,09-May-14,"6,346.04",Revenue,THE BRANDON TRUST,SP0005337
WANDSWORTH COUNCIL,ASC,SOCIAL SERVICES,VOL ASS,SUPPORTED HOUSING PROGRAMME,401676,130248030,09-May-14,"3,324.96",Revenue,THE BRANDON TRUST,SP0005337
WANDSWORTH COUNCIL,ASC,SOCIAL SERVICES,VOL ASS,SUPPORTED HOUSING PROGRAMME,401677,130248030,09-May-14,"2,886.04",Revenue,THE BRANDON TRUST,SP0005337
WANDSWORTH COUNCIL,ASC,SOCIAL SERVICES,VOL ASS,SUPPORTED HOUSING PROGRAMME,401678,130248030,09-May-14,"2,327.04",Revenue,THE BRANDON TRUST,SP0005337
WANDSWORTH COUNCIL,ASC,SOCIAL SERVICES,VOL ASS,SUPPORTED HOUSING PROGRAMME,401679,130248030,09-May-14,"2,856.96",Revenue,THE BRANDON TRUST,SP0005337
WANDSWORTH COUNCIL,ASC,SOCIAL SERVICES,VOL ASS,SUPPORTED HOUSING PROGRAMME,401680,130248030,09-May-14,"3,088.80",Revenue,THE BRANDON TRUST,SP0005337
WANDSWORTH COUNCIL,ASC,SOCIAL SERVICES,VOL ASS,SUPPORTED HOUSING PROGRAMME,401681,130248030,09-May-14,"2,758.28",Revenue,THE BRANDON TRUST,SP0005337
WANDSWORTH COUNCIL,ASC,SOCIAL SERVICES,VOL ASS,SUPPORTED HOUSING PROGRAMME,401682,130248030,09-May-14,"2,128.32",Revenue,THE BRANDON TRUST,SP0005337
WANDSWORTH COUNCIL,ASC,SOCIAL SERVICES,VOL ASS,SUPPORTED HOUSING PROGRAMME,401683,130248030,09-May-14,"6,198.76",Revenue,THE BRANDON TRUST,SP0005337
WANDSWORTH COUNCIL,ASC,SOCIAL SERVICES,VOL ASS,SUPPORTED HOUSING PROGRAMME,401684,130248030,09-May-14,"1,465.92",Revenue,THE BRANDON TRUST,SP0005337
WANDSWORTH COUNCIL,ASC,SOCIAL SERVICES,VOL ASS,SUPPORTED HOUSING PROGRAMME,401685,130248030,09-May-14,"1,548.72",Revenue,THE BRANDON TRUST,SP0005337
WANDSWORTH COUNCIL,ASC,SOCIAL SERVICES,VOL ASS,SUPPORTED HOUSING PROGRAMME,401686,130248030,09-May-14,"2,658.24",Revenue,THE BRANDON TRUST,SP0005337
WANDSWORTH COUNCIL,ASC,SOCIAL SERVICES,VOL ASS,SUPPORTED HOUSING PROGRAMME,401687,130248030,09-May-14,"2,592.60",Revenue,THE BRANDON TRUST,SP0005337
WANDSWORTH COUNCIL,ASC,SOCIAL SERVICES,VOL ASS,SUPPORTED HOUSING PROGRAMME,401688,130248030,09-May-14,"2,724.48",Revenue,THE BRANDON TRUST,SP0005337
WANDSWORTH COUNCIL,ASC,SOCIAL SERVICES,VOL ASS,SUPPORTED HOUSING PROGRAMME,401689,130248030,09-May-14,"3,564.56",Revenue,THE BRANDON TRUST,SP0005337
WANDSWORTH COUNCIL,ASC,SOCIAL SERVICES,VOL ASS,SUPPORTED HOUSING PROGRAMME,401690,130248030,09-May-14,"3,416.80",Revenue,THE BRANDON TRUST,SP0005337
WANDSWORTH COUNCIL,ASC,SOCIAL SERVICES,VOL ASS,SUPPORTED HOUSING PROGRAMME,401691,130248030,09-May-14,"4,007.84",Revenue,THE BRANDON TRUST,SP0005337
WANDSWORTH COUNCIL,ASC,SOCIAL SERVICES,VOL ASS,SUPPORTED HOUSING PROGRAMME,401692,130248030,09-May-14,"2,327.24",Revenue,THE BRANDON TRUST,SP0005337
WANDSWORTH COUNCIL,ASC,SOCIAL SERVICES,VOL ASS,SUPPORTED HOUSING PROGRAMME,411036,130248030,23-May-14,"4,772.00",Revenue,CARE UNLIMITED DOMCARE LIMITED,SP0005359
WANDSWORTH COUNCIL,ASC,SOCIAL SERVICES,VOL ASS,SUPPORTED HOUSING PROGRAMME,406690,130248030,16-May-14,"6,120.00",Revenue,RELIABLE PERSONNEL LTD,SP0005657
WANDSWORTH COUNCIL,ASC,SOCIAL SERVICES,VOL ASS,SUPPORTED HOUSING PROGRAMME,398386,130248030,02-May-14,"7,931.00",Revenue,HIGHER GREEN FARM LTD,SP0005842
WANDSWORTH COUNCIL,ASC,SOCIAL SERVICES,VOL ASS,SUPPORTED HOUSING PROGRAMME,408373,130248030,20-May-14,"1,982.75",Revenue,HIGHER GREEN FARM LTD,SP0005842
WANDSWORTH COUNCIL,ASC,SOCIAL SERVICES,VOL ASS,SUPPORTED HOUSING PROGRAMME,405603,130248030,15-May-14,500.00,Revenue,THE LANTERN COMMUNITY,SP0006839
WANDSWORTH COUNCIL,ASC,SOCIAL SERVICES,DIRECT,DIRECT PAYMENTS,20283337,130250380,29-May-14,"4,360.44",Revenue,REDACTED PERSONAL DATA,2002164
WANDSWORTH COUNCIL,ASC,SOCIAL SERVICES,DIRECT,DIRECT PAYMENTS,20283336,130250380,29-May-14,"1,214.24",Revenue,REDACTED PERSONAL DATA,2003514
WANDSWORTH COUNCIL,ASC,SOCIAL SERVICES,DIRECT,DIRECT PAYMENTS,411524,130250380,23-May-14,613.76,Revenue, SHAW TRUST LTD,SP0005390
WANDSWORTH COUNCIL,ASC,SOCIAL SERVICES,DIRECT,DIRECT PAYMENTS,414531,130250380,30-May-14,"1,331.37",Revenue,REDBRIDGE COMMUNITY HOUSING LTD,SP0005489
WANDSWORTH COUNCIL,ASC,SOCIAL SERVICES,CUSTOMER & CLIENT RECPTS - EXT,CL CONT EXT RESIDEN S28A 100%,406184,130280680,16-May-14,-529.11,Revenue,ST MARYS RESIDENTIAL HOME,SP0000215
WANDSWORTH COUNCIL,ASC,SOCIAL SERVICES,CUSTOMER & CLIENT RECPTS - EXT,CL CONT EXT RESIDEN S28A 100%,406186,130280680,16-May-14,-529.11,Revenue,ST MARYS RESIDENTIAL HOME,SP0000215
WANDSWORTH COUNCIL,ASC,SOCIAL SERVICES,CUSTOMER & CLIENT RECPTS - EXT,CL CONT EXT RESIDEN S28A 100%,408156,130280680,20-May-14,-318.35,Revenue,LOVING CARE LTD,SP0000670
WANDSWORTH COUNCIL,ASC,SOCIAL SERVICES,CUSTOMER & CLIENT RECPTS - EXT,CL CONT EXT RESIDEN S28A 100%,399147,130280680,06-May-14,-495.80,Revenue,ASHTON CARE,SP0000695
WANDSWORTH COUNCIL,ASC,SOCIAL SERVICES,CUSTOMER & CLIENT RECPTS - EXT,CL CONT EXT RESIDEN S28A 100%,403466,130280680,13-May-14,-529.11,Revenue,RALEIGH HOUSE LTD,SP0000760
WANDSWORTH COUNCIL,ASC,SOCIAL SERVICES,CUSTOMER & CLIENT RECPTS - EXT,CL CONT EXT RESIDENTIAL RESP,20282919,130280690,21-May-14,"2,978.87",Revenue,SOUTHSIDE PARTNERSHIP,2005209
WANDSWORTH COUNCIL,ASC,SOCIAL SERVICES,CUSTOMER & CLIENT RECPTS - EXT,CL CONT EXT RESIDENTIAL RESP,20282919,130280690,21-May-14,"-1,583.05",Revenue,SOUTHSIDE PARTNERSHIP,2005209
WANDSWORTH COUNCIL,ASC,SOCIAL SERVICES,CUSTOMER & CLIENT RECPTS - EXT,CL CONT EXTERNAL RESIDENT S28A,397792,130280710,01-May-14,-316.70,Revenue,CMG HOMES LTD,SP0000075
WANDSWORTH COUNCIL,ASC,SOCIAL SERVICES,CUSTOMER & CLIENT RECPTS - EXT,CL CONT EXTERNAL RESIDENT S28A,401420,130280710,09-May-14,-319.40,Revenue,CMG HOMES LTD,SP0000075
WANDSWORTH COUNCIL,ASC,SOCIAL SERVICES,CUSTOMER & CLIENT RECPTS - EXT,CL CONT EXTERNAL RESIDENT S28A,408902,130280710,21-May-14,-504.43,Revenue,MACINTYRE CARE,SP0000473
WANDSWORTH COUNCIL,ASC,SOCIAL SERVICES,CUSTOMER & CLIENT RECPTS - EXT,CL CONT EXTERNAL RESIDENT S28A,410508,130280710,23-May-14,-319.40,Revenue,MACINTYRE CARE,SP0000473
WANDSWORTH COUNCIL,ASC,SOCIAL SERVICES,CUSTOMER & CLIENT RECPTS - EXT,CL CONT EXTERNAL RESIDENT S28A,410522,130280710,23-May-14,-319.40,Revenue,MACINTYRE CARE,SP0000473
WANDSWORTH COUNCIL,ASC,SOCIAL SERVICES,CUSTOMER & CLIENT RECPTS - EXT,CL CONT EXTERNAL RESIDENT S28A,408183,130280710,20-May-14,-318.50,Revenue,SURREY & BORDERS PARTNERSHIP NHS TRUST,SP0000501
WANDSWORTH COUNCIL,ASC,SOCIAL SERVICES,CUSTOMER & CLIENT RECPTS - EXT,CL CONT EXTERNAL RESIDENT S28A,398339,130280710,02-May-14,-341.31,Revenue,PARKGATE MANOR,SP0000521
WANDSWORTH COUNCIL,ASC,SOCIAL SERVICES,CUSTOMER & CLIENT RECPTS - EXT,CL CONT EXTERNAL RESIDENT S28A,410585,130280710,23-May-14,-353.62,Revenue,PARKGATE MANOR,SP0000521
WANDSWORTH COUNCIL,ASC,SOCIAL SERVICES,CUSTOMER & CLIENT RECPTS - EXT,CL CONT EXTERNAL RESIDENT S28A,410635,130280710,23-May-14,-530.05,Revenue,THE COMMUNITY CARE COMPANY UK LTD,SP0000576
WANDSWORTH COUNCIL,ASC,SOCIAL SERVICES,CUSTOMER & CLIENT RECPTS - EXT,CL CONT EXTERNAL RESIDENT S28A,406202,130280710,16-May-14,-502.36,Revenue,METROPOLITAN HOUSING TRUST,SP0000626
WANDSWORTH COUNCIL,ASC,SOCIAL SERVICES,CUSTOMER & CLIENT RECPTS - EXT,CL CONT EXTERNAL RESIDENT S28A,406204,130280710,16-May-14,-315.20,Revenue,METROPOLITAN HOUSING TRUST,SP0000626
WANDSWORTH COUNCIL,ASC,SOCIAL SERVICES,CUSTOMER & CLIENT RECPTS - EXT,CL CONT EXTERNAL RESIDENT S28A,406212,130280710,16-May-14,-315.20,Revenue,METROPOLITAN HOUSING TRUST,SP0000626
WANDSWORTH COUNCIL,ASC,SOCIAL SERVICES,CUSTOMER & CLIENT RECPTS - EXT,CL CONT EXTERNAL RESIDENT S28A,410660,130280710,23-May-14,-353.62,Revenue,PROGRESS HOUSING MARLOW,SP0000952
WANDSWORTH COUNCIL,ASC,SOCIAL SERVICES,CUSTOMER & CLIENT RECPTS - EXT,CL CONT EXTERNAL RESIDENTIAL,398553,130280720,02-May-14,-980.40,Revenue,THE LYLE PARK TRUST,SP0000070
WANDSWORTH COUNCIL,ASC,SOCIAL SERVICES,CUSTOMER & CLIENT RECPTS - EXT,CL CONT EXTERNAL RESIDENTIAL,397789,130280720,01-May-14,-316.70,Revenue,CMG HOMES LTD,SP0000075
WANDSWORTH COUNCIL,ASC,SOCIAL SERVICES,CUSTOMER & CLIENT RECPTS - EXT,CL CONT EXTERNAL RESIDENTIAL,397790,130280720,01-May-14,-316.70,Revenue,CMG HOMES LTD,SP0000075
WANDSWORTH COUNCIL,ASC,SOCIAL SERVICES,CUSTOMER & CLIENT RECPTS - EXT,CL CONT EXTERNAL RESIDENTIAL,397794,130280720,01-May-14,-316.70,Revenue,CMG HOMES LTD,SP0000075
WANDSWORTH COUNCIL,ASC,SOCIAL SERVICES,CUSTOMER & CLIENT RECPTS - EXT,CL CONT EXTERNAL RESIDENTIAL,397795,130280720,01-May-14,-316.70,Revenue,CMG HOMES LTD,SP0000075
WANDSWORTH COUNCIL,ASC,SOCIAL SERVICES,CUSTOMER & CLIENT RECPTS - EXT,CL CONT EXTERNAL RESIDENTIAL,397796,130280720,01-May-14,-489.50,Revenue,CMG HOMES LTD,SP0000075
WANDSWORTH COUNCIL,ASC,SOCIAL SERVICES,CUSTOMER & CLIENT RECPTS - EXT,CL CONT EXTERNAL RESIDENTIAL,397798,130280720,01-May-14,-356.24,Revenue,CMG HOMES LTD,SP0000075
WANDSWORTH COUNCIL,ASC,SOCIAL SERVICES,CUSTOMER & CLIENT RECPTS - EXT,CL CONT EXTERNAL RESIDENTIAL,397799,130280720,01-May-14,-316.70,Revenue,CMG HOMES LTD,SP0000075
WANDSWORTH COUNCIL,ASC,SOCIAL SERVICES,CUSTOMER & CLIENT RECPTS - EXT,CL CONT EXTERNAL RESIDENTIAL,397800,130280720,01-May-14,-316.70,Revenue,CMG HOMES LTD,SP0000075
WANDSWORTH COUNCIL,ASC,SOCIAL SERVICES,CUSTOMER & CLIENT RECPTS - EXT,CL CONT EXTERNAL RESIDENTIAL,401415,130280720,09-May-14,-319.40,Revenue,CMG HOMES LTD,SP0000075
WANDSWORTH COUNCIL,ASC,SOCIAL SERVICES,CUSTOMER & CLIENT RECPTS - EXT,CL CONT EXTERNAL RESIDENTIAL,401418,130280720,09-May-14,-319.40,Revenue,CMG HOMES LTD,SP0000075
WANDSWORTH COUNCIL,ASC,SOCIAL SERVICES,CUSTOMER & CLIENT RECPTS - EXT,CL CONT EXTERNAL RESIDENTIAL,401422,130280720,09-May-14,-319.40,Revenue,CMG HOMES LTD,SP0000075
WANDSWORTH COUNCIL,ASC,SOCIAL SERVICES,CUSTOMER & CLIENT RECPTS - EXT,CL CONT EXTERNAL RESIDENTIAL,401423,130280720,09-May-14,-319.40,Revenue,CMG HOMES LTD,SP0000075
WANDSWORTH COUNCIL,ASC,SOCIAL SERVICES,CUSTOMER & CLIENT RECPTS - EXT,CL CONT EXTERNAL RESIDENTIAL,401424,130280720,09-May-14,-495.80,Revenue,CMG HOMES LTD,SP0000075
WANDSWORTH COUNCIL,ASC,SOCIAL SERVICES,CUSTOMER & CLIENT RECPTS - EXT,CL CONT EXTERNAL RESIDENTIAL,401426,130280720,09-May-14,-362.80,Revenue,CMG HOMES LTD,SP0000075
WANDSWORTH COUNCIL,ASC,SOCIAL SERVICES,CUSTOMER & CLIENT RECPTS - EXT,CL CONT EXTERNAL RESIDENTIAL,401434,130280720,09-May-14,-319.40,Revenue,CMG HOMES LTD,SP0000075
WANDSWORTH COUNCIL,ASC,SOCIAL SERVICES,CUSTOMER & CLIENT RECPTS - EXT,CL CONT EXTERNAL RESIDENTIAL,401435,130280720,09-May-14,-319.40,Revenue,CMG HOMES LTD,SP0000075
WANDSWORTH COUNCIL,ASC,SOCIAL SERVICES,CUSTOMER & CLIENT RECPTS - EXT,CL CONT EXTERNAL RESIDENTIAL,410536,130280720,23-May-14,-341.31,Revenue,COUNTRY CARE,SP0000090
WANDSWORTH COUNCIL,ASC,SOCIAL SERVICES,CUSTOMER & CLIENT RECPTS - EXT,CL CONT EXTERNAL RESIDENTIAL,410537,130280720,23-May-14,-353.62,Revenue,COUNTRY CARE,SP0000090
WANDSWORTH COUNCIL,ASC,SOCIAL SERVICES,CUSTOMER & CLIENT RECPTS - EXT,CL CONT EXTERNAL RESIDENTIAL,398412,130280720,02-May-14,-319.40,Revenue,SANCTUARY CARE LTD,SP0000121
WANDSWORTH COUNCIL,ASC,SOCIAL SERVICES,CUSTOMER & CLIENT RECPTS - EXT,CL CONT EXTERNAL RESIDENTIAL,397812,130280720,01-May-14,-294.08,Revenue,IN CHORUS LTD,SP0000129
WANDSWORTH COUNCIL,ASC,SOCIAL SERVICES,CUSTOMER & CLIENT RECPTS - EXT,CL CONT EXTERNAL RESIDENTIAL,410558,130280720,23-May-14,-305.61,Revenue,IN CHORUS LTD,SP0000129
WANDSWORTH COUNCIL,ASC,SOCIAL SERVICES,CUSTOMER & CLIENT RECPTS - EXT,CL CONT EXTERNAL RESIDENTIAL,401442,130280720,09-May-14,-68.31,Revenue,CENTRUST CARE HOMES LTD,SP0000141
WANDSWORTH COUNCIL,ASC,SOCIAL SERVICES,CUSTOMER & CLIENT RECPTS - EXT,CL CONT EXTERNAL RESIDENTIAL,401443,130280720,09-May-14,-273.77,Revenue,CENTRUST CARE HOMES LTD,SP0000141
WANDSWORTH COUNCIL,ASC,SOCIAL SERVICES,CUSTOMER & CLIENT RECPTS - EXT,CL CONT EXTERNAL RESIDENTIAL,410549,130280720,23-May-14,-337.71,Revenue,FRANCES TAYLOR FOUNDATION,SP0000142
WANDSWORTH COUNCIL,ASC,SOCIAL SERVICES,CUSTOMER & CLIENT RECPTS - EXT,CL CONT EXTERNAL RESIDENTIAL,410550,130280720,23-May-14,-341.31,Revenue,FRANCES TAYLOR FOUNDATION,SP0000142
WANDSWORTH COUNCIL,ASC,SOCIAL SERVICES,CUSTOMER & CLIENT RECPTS - EXT,CL CONT EXTERNAL RESIDENTIAL,410552,130280720,23-May-14,-341.31,Revenue,FRANCES TAYLOR FOUNDATION,SP0000142
WANDSWORTH COUNCIL,ASC,SOCIAL SERVICES,CUSTOMER & CLIENT RECPTS - EXT,CL CONT EXTERNAL RESIDENTIAL,410553,130280720,23-May-14,-348.97,Revenue,FRANCES TAYLOR FOUNDATION,SP0000142
WANDSWORTH COUNCIL,ASC,SOCIAL SERVICES,CUSTOMER & CLIENT RECPTS - EXT,CL CONT EXTERNAL RESIDENTIAL,410554,130280720,23-May-14,-353.62,Revenue,FRANCES TAYLOR FOUNDATION,SP0000142
WANDSWORTH COUNCIL,ASC,SOCIAL SERVICES,CUSTOMER & CLIENT RECPTS - EXT,CL CONT EXTERNAL RESIDENTIAL,410555,130280720,23-May-14,-353.62,Revenue,FRANCES TAYLOR FOUNDATION,SP0000142
WANDSWORTH COUNCIL,ASC,SOCIAL SERVICES,CUSTOMER & CLIENT RECPTS - EXT,CL CONT EXTERNAL RESIDENTIAL,408896,130280720,21-May-14,-341.31,Revenue,RESIDENTIAL CARE SERVICES T/A FRANKLYN L,SP0000147
WANDSWORTH COUNCIL,ASC,SOCIAL SERVICES,CUSTOMER & CLIENT RECPTS - EXT,CL CONT EXTERNAL RESIDENTIAL,410545,130280720,23-May-14,-319.40,Revenue,THE CHESTNUTS,SP0000182
WANDSWORTH COUNCIL,ASC,SOCIAL SERVICES,CUSTOMER & CLIENT RECPTS - EXT,CL CONT EXTERNAL RESIDENTIAL,410547,130280720,23-May-14,-495.80,Revenue,THE CHESTNUTS,SP0000182
WANDSWORTH COUNCIL,ASC,SOCIAL SERVICES,CUSTOMER & CLIENT RECPTS - EXT,CL CONT EXTERNAL RESIDENTIAL,401411,130280720,09-May-14,-758.61,Revenue,TRELOAR SCHOOL,SP0000200
WANDSWORTH COUNCIL,ASC,SOCIAL SERVICES,CUSTOMER & CLIENT RECPTS - EXT,CL CONT EXTERNAL RESIDENTIAL,408145,130280720,20-May-14,-317.30,Revenue,ORCHARD VALE TRUST,SP0000214
WANDSWORTH COUNCIL,ASC,SOCIAL SERVICES,CUSTOMER & CLIENT RECPTS - EXT,CL CONT EXTERNAL RESIDENTIAL,406174,130280720,16-May-14,-258.02,Revenue,ST MARYS RESIDENTIAL HOME,SP0000215
WANDSWORTH COUNCIL,ASC,SOCIAL SERVICES,CUSTOMER & CLIENT RECPTS - EXT,CL CONT EXTERNAL RESIDENTIAL,406175,130280720,16-May-14,-341.31,Revenue,ST MARYS RESIDENTIAL HOME,SP0000215
WANDSWORTH COUNCIL,ASC,SOCIAL SERVICES,CUSTOMER & CLIENT RECPTS - EXT,CL CONT EXTERNAL RESIDENTIAL,406176,130280720,16-May-14,-341.31,Revenue,ST MARYS RESIDENTIAL HOME,SP0000215
WANDSWORTH COUNCIL,ASC,SOCIAL SERVICES,CUSTOMER & CLIENT RECPTS - EXT,CL CONT EXTERNAL RESIDENTIAL,406177,130280720,16-May-14,-529.11,Revenue,ST MARYS RESIDENTIAL HOME,SP0000215
WANDSWORTH COUNCIL,ASC,SOCIAL SERVICES,CUSTOMER & CLIENT RECPTS - EXT,CL CONT EXTERNAL RESIDENTIAL,406178,130280720,16-May-14,-341.31,Revenue,ST MARYS RESIDENTIAL HOME,SP0000215
WANDSWORTH COUNCIL,ASC,SOCIAL SERVICES,CUSTOMER & CLIENT RECPTS - EXT,CL CONT EXTERNAL RESIDENTIAL,406179,130280720,16-May-14,-340.63,Revenue,ST MARYS RESIDENTIAL HOME,SP0000215
WANDSWORTH COUNCIL,ASC,SOCIAL SERVICES,CUSTOMER & CLIENT RECPTS - EXT,CL CONT EXTERNAL RESIDENTIAL,406180,130280720,16-May-14,-341.31,Revenue,ST MARYS RESIDENTIAL HOME,SP0000215
WANDSWORTH COUNCIL,ASC,SOCIAL SERVICES,CUSTOMER & CLIENT RECPTS - EXT,CL CONT EXTERNAL RESIDENTIAL,406181,130280720,16-May-14,-529.11,Revenue,ST MARYS RESIDENTIAL HOME,SP0000215
WANDSWORTH COUNCIL,ASC,SOCIAL SERVICES,CUSTOMER & CLIENT RECPTS - EXT,CL CONT EXTERNAL RESIDENTIAL,406183,130280720,16-May-14,-711.32,Revenue,ST MARYS RESIDENTIAL HOME,SP0000215
WANDSWORTH COUNCIL,ASC,SOCIAL SERVICES,CUSTOMER & CLIENT RECPTS - EXT,CL CONT EXTERNAL RESIDENTIAL,406185,130280720,16-May-14,-529.11,Revenue,ST MARYS RESIDENTIAL HOME,SP0000215
WANDSWORTH COUNCIL,ASC,SOCIAL SERVICES,CUSTOMER & CLIENT RECPTS - EXT,CL CONT EXTERNAL RESIDENTIAL,406187,130280720,16-May-14,"-1,333.40",Revenue,ST MARYS RESIDENTIAL HOME,SP0000215
WANDSWORTH COUNCIL,ASC,SOCIAL SERVICES,CUSTOMER & CLIENT RECPTS - EXT,CL CONT EXTERNAL RESIDENTIAL,406188,130280720,16-May-14,-319.40,Revenue,ST MARYS RESIDENTIAL HOME,SP0000215
WANDSWORTH COUNCIL,ASC,SOCIAL SERVICES,CUSTOMER & CLIENT RECPTS - EXT,CL CONT EXTERNAL RESIDENTIAL,401445,130280720,09-May-14,-319.40,Revenue,NAS SERVICES LIMITED,SP0000217
WANDSWORTH COUNCIL,ASC,SOCIAL SERVICES,CUSTOMER & CLIENT RECPTS - EXT,CL CONT EXTERNAL RESIDENTIAL,410557,130280720,23-May-14,-319.40,Revenue,HAYDON PARK LODGE LTD,SP0000231
WANDSWORTH COUNCIL,ASC,SOCIAL SERVICES,CUSTOMER & CLIENT RECPTS - EXT,CL CONT EXTERNAL RESIDENTIAL,401417,130280720,09-May-14,"-1,232.27",Revenue,CAMERON LODGE LIMITED,SP0000271
WANDSWORTH COUNCIL,ASC,SOCIAL SERVICES,CUSTOMER & CLIENT RECPTS - EXT,CL CONT EXTERNAL RESIDENTIAL,410539,130280720,23-May-14,-319.40,Revenue,CRAEGMOOR FACILITIES CO LTD,SP0000306
WANDSWORTH COUNCIL,ASC,SOCIAL SERVICES,CUSTOMER & CLIENT RECPTS - EXT,CL CONT EXTERNAL RESIDENTIAL,410565,130280720,23-May-14,-341.31,Revenue,DOLPHIN HOMES LTD,SP0000331
WANDSWORTH COUNCIL,ASC,SOCIAL SERVICES,CUSTOMER & CLIENT RECPTS - EXT,CL CONT EXTERNAL RESIDENTIAL,410664,130280720,23-May-14,-353.62,Revenue,DOLPHIN HOMES LTD,SP0000331
WANDSWORTH COUNCIL,ASC,SOCIAL SERVICES,CUSTOMER & CLIENT RECPTS - EXT,CL CONT EXTERNAL RESIDENTIAL,410665,130280720,23-May-14,-353.62,Revenue,DOLPHIN HOMES LTD,SP0000331
WANDSWORTH COUNCIL,ASC,SOCIAL SERVICES,CUSTOMER & CLIENT RECPTS - EXT,CL CONT EXTERNAL RESIDENTIAL,410562,130280720,23-May-14,-319.40,Revenue,NORWOOD SCHOOLS LTD,SP0000332
WANDSWORTH COUNCIL,ASC,SOCIAL SERVICES,CUSTOMER & CLIENT RECPTS - EXT,CL CONT EXTERNAL RESIDENTIAL,410563,130280720,23-May-14,-319.40,Revenue,NORWOOD SCHOOLS LTD,SP0000332
WANDSWORTH COUNCIL,ASC,SOCIAL SERVICES,CUSTOMER & CLIENT RECPTS - EXT,CL CONT EXTERNAL RESIDENTIAL,403891,130280720,14-May-14,-529.11,Revenue,THE MANOR,SP0000340
WANDSWORTH COUNCIL,ASC,SOCIAL SERVICES,CUSTOMER & CLIENT RECPTS - EXT,CL CONT EXTERNAL RESIDENTIAL,408150,130280720,20-May-14,-548.92,Revenue,THE MANOR,SP0000340
WANDSWORTH COUNCIL,ASC,SOCIAL SERVICES,CUSTOMER & CLIENT RECPTS - EXT,CL CONT EXTERNAL RESIDENTIAL,403501,130280720,13-May-14,-529.11,Revenue,HEYWOODS GRANGE LTD,SP0000361
WANDSWORTH COUNCIL,ASC,SOCIAL SERVICES,CUSTOMER & CLIENT RECPTS - EXT,CL CONT EXTERNAL RESIDENTIAL,403523,130280720,13-May-14,-341.31,Revenue,ESSEX CARE CONSORTIUM,SP0000387
WANDSWORTH COUNCIL,ASC,SOCIAL SERVICES,CUSTOMER & CLIENT RECPTS - EXT,CL CONT EXTERNAL RESIDENTIAL,410543,130280720,23-May-14,-315.20,Revenue,POTENSIAL LTD,SP0000395
WANDSWORTH COUNCIL,ASC,SOCIAL SERVICES,CUSTOMER & CLIENT RECPTS - EXT,CL CONT EXTERNAL RESIDENTIAL,405437,130280720,15-May-14,-319.40,Revenue,KENILWORTH RESIDENTIAL HOME,SP0000432
WANDSWORTH COUNCIL,ASC,SOCIAL SERVICES,CUSTOMER & CLIENT RECPTS - EXT,CL CONT EXTERNAL RESIDENTIAL,405438,130280720,15-May-14,-495.80,Revenue,KENILWORTH RESIDENTIAL HOME,SP0000432
WANDSWORTH COUNCIL,ASC,SOCIAL SERVICES,CUSTOMER & CLIENT RECPTS - EXT,CL CONT EXTERNAL RESIDENTIAL,403488,130280720,13-May-14,-148.29,Revenue,THE WELL HOUSE,SP0000448
WANDSWORTH COUNCIL,ASC,SOCIAL SERVICES,CUSTOMER & CLIENT RECPTS - EXT,CL CONT EXTERNAL RESIDENTIAL,408191,130280720,20-May-14,-319.40,Revenue,THE WELL HOUSE,SP0000448
WANDSWORTH COUNCIL,ASC,SOCIAL SERVICES,CUSTOMER & CLIENT RECPTS - EXT,CL CONT EXTERNAL RESIDENTIAL,408192,130280720,20-May-14,-362.80,Revenue,THE WELL HOUSE,SP0000448
WANDSWORTH COUNCIL,ASC,SOCIAL SERVICES,CUSTOMER & CLIENT RECPTS - EXT,CL CONT EXTERNAL RESIDENTIAL,401441,130280720,09-May-14,-315.20,Revenue,MACINTYRE CARE,SP0000473
WANDSWORTH COUNCIL,ASC,SOCIAL SERVICES,CUSTOMER & CLIENT RECPTS - EXT,CL CONT EXTERNAL RESIDENTIAL,408903,130280720,21-May-14,-510.59,Revenue,MACINTYRE CARE,SP0000473
WANDSWORTH COUNCIL,ASC,SOCIAL SERVICES,CUSTOMER & CLIENT RECPTS - EXT,CL CONT EXTERNAL RESIDENTIAL,410504,130280720,23-May-14,-315.20,Revenue,MACINTYRE CARE,SP0000473
WANDSWORTH COUNCIL,ASC,SOCIAL SERVICES,CUSTOMER & CLIENT RECPTS - EXT,CL CONT EXTERNAL RESIDENTIAL,410505,130280720,23-May-14,-319.40,Revenue,MACINTYRE CARE,SP0000473
WANDSWORTH COUNCIL,ASC,SOCIAL SERVICES,CUSTOMER & CLIENT RECPTS - EXT,CL CONT EXTERNAL RESIDENTIAL,410507,130280720,23-May-14,-319.40,Revenue,MACINTYRE CARE,SP0000473
WANDSWORTH COUNCIL,ASC,SOCIAL SERVICES,CUSTOMER & CLIENT RECPTS - EXT,CL CONT EXTERNAL RESIDENTIAL,410509,130280720,23-May-14,-362.80,Revenue,MACINTYRE CARE,SP0000473
WANDSWORTH COUNCIL,ASC,SOCIAL SERVICES,CUSTOMER & CLIENT RECPTS - EXT,CL CONT EXTERNAL RESIDENTIAL,410510,130280720,23-May-14,-319.40,Revenue,MACINTYRE CARE,SP0000473
WANDSWORTH COUNCIL,ASC,SOCIAL SERVICES,CUSTOMER & CLIENT RECPTS - EXT,CL CONT EXTERNAL RESIDENTIAL,410511,130280720,23-May-14,-319.40,Revenue,MACINTYRE CARE,SP0000473
WANDSWORTH COUNCIL,ASC,SOCIAL SERVICES,CUSTOMER & CLIENT RECPTS - EXT,CL CONT EXTERNAL RESIDENTIAL,410512,130280720,23-May-14,-319.40,Revenue,MACINTYRE CARE,SP0000473
WANDSWORTH COUNCIL,ASC,SOCIAL SERVICES,CUSTOMER & CLIENT RECPTS - EXT,CL CONT EXTERNAL RESIDENTIAL,410513,130280720,23-May-14,-330.52,Revenue,MACINTYRE CARE,SP0000473
WANDSWORTH COUNCIL,ASC,SOCIAL SERVICES,CUSTOMER & CLIENT RECPTS - EXT,CL CONT EXTERNAL RESIDENTIAL,410516,130280720,23-May-14,-315.20,Revenue,MACINTYRE CARE,SP0000473
WANDSWORTH COUNCIL,ASC,SOCIAL SERVICES,CUSTOMER & CLIENT RECPTS - EXT,CL CONT EXTERNAL RESIDENTIAL,410523,130280720,23-May-14,-319.40,Revenue,MACINTYRE CARE,SP0000473
WANDSWORTH COUNCIL,ASC,SOCIAL SERVICES,CUSTOMER & CLIENT RECPTS - EXT,CL CONT EXTERNAL RESIDENTIAL,410524,130280720,23-May-14,-319.40,Revenue,MACINTYRE CARE,SP0000473
WANDSWORTH COUNCIL,ASC,SOCIAL SERVICES,CUSTOMER & CLIENT RECPTS - EXT,CL CONT EXTERNAL RESIDENTIAL,410525,130280720,23-May-14,-514.80,Revenue,MACINTYRE CARE,SP0000473
WANDSWORTH COUNCIL,ASC,SOCIAL SERVICES,CUSTOMER & CLIENT RECPTS - EXT,CL CONT EXTERNAL RESIDENTIAL,410526,130280720,23-May-14,-319.40,Revenue,MACINTYRE CARE,SP0000473
WANDSWORTH COUNCIL,ASC,SOCIAL SERVICES,CUSTOMER & CLIENT RECPTS - EXT,CL CONT EXTERNAL RESIDENTIAL,410548,130280720,23-May-14,-495.80,Revenue,MACINTYRE CARE,SP0000473
WANDSWORTH COUNCIL,ASC,SOCIAL SERVICES,CUSTOMER & CLIENT RECPTS - EXT,CL CONT EXTERNAL RESIDENTIAL,410560,130280720,23-May-14,-407.20,Revenue,MACINTYRE CARE,SP0000473
WANDSWORTH COUNCIL,ASC,SOCIAL SERVICES,CUSTOMER & CLIENT RECPTS - EXT,CL CONT EXTERNAL RESIDENTIAL,410561,130280720,23-May-14,-495.80,Revenue,MACINTYRE CARE,SP0000473
WANDSWORTH COUNCIL,ASC,SOCIAL SERVICES,CUSTOMER & CLIENT RECPTS - EXT,CL CONT EXTERNAL RESIDENTIAL,410564,130280720,23-May-14,-495.80,Revenue,MACINTYRE CARE,SP0000473
WANDSWORTH COUNCIL,ASC,SOCIAL SERVICES,CUSTOMER & CLIENT RECPTS - EXT,CL CONT EXTERNAL RESIDENTIAL,408184,130280720,20-May-14,-493.70,Revenue,SURREY & BORDERS PARTNERSHIP NHS TRUST,SP0000501
WANDSWORTH COUNCIL,ASC,SOCIAL SERVICES,CUSTOMER & CLIENT RECPTS - EXT,CL CONT EXTERNAL RESIDENTIAL,403486,130280720,13-May-14,-694.93,Revenue,AIMS CARE PARTNERSHIP,SP0000561
WANDSWORTH COUNCIL,ASC,SOCIAL SERVICES,CUSTOMER & CLIENT RECPTS - EXT,CL CONT EXTERNAL RESIDENTIAL,408178,130280720,20-May-14,-337.71,Revenue,SEEABILITY,SP0000572
WANDSWORTH COUNCIL,ASC,SOCIAL SERVICES,CUSTOMER & CLIENT RECPTS - EXT,CL CONT EXTERNAL RESIDENTIAL,410636,130280720,23-May-14,-392.86,Revenue,THE COMMUNITY CARE COMPANY UK LTD,SP0000576
WANDSWORTH COUNCIL,ASC,SOCIAL SERVICES,CUSTOMER & CLIENT RECPTS - EXT,CL CONT EXTERNAL RESIDENTIAL,410637,130280720,23-May-14,-341.31,Revenue,THE COMMUNITY CARE COMPANY UK LTD,SP0000576
WANDSWORTH COUNCIL,ASC,SOCIAL SERVICES,CUSTOMER & CLIENT RECPTS - EXT,CL CONT EXTERNAL RESIDENTIAL,410638,130280720,23-May-14,-341.31,Revenue,THE COMMUNITY CARE COMPANY UK LTD,SP0000576
WANDSWORTH COUNCIL,ASC,SOCIAL SERVICES,CUSTOMER & CLIENT RECPTS - EXT,CL CONT EXTERNAL RESIDENTIAL,410639,130280720,23-May-14,-341.31,Revenue,THE COMMUNITY CARE COMPANY UK LTD,SP0000576
WANDSWORTH COUNCIL,ASC,SOCIAL SERVICES,CUSTOMER & CLIENT RECPTS - EXT,CL CONT EXTERNAL RESIDENTIAL,410640,130280720,23-May-14,-341.31,Revenue,THE COMMUNITY CARE COMPANY UK LTD,SP0000576
WANDSWORTH COUNCIL,ASC,SOCIAL SERVICES,CUSTOMER & CLIENT RECPTS - EXT,CL CONT EXTERNAL RESIDENTIAL,397810,130280720,01-May-14,-341.31,Revenue,BIRCC,SP0000584
WANDSWORTH COUNCIL,ASC,SOCIAL SERVICES,CUSTOMER & CLIENT RECPTS - EXT,CL CONT EXTERNAL RESIDENTIAL,403468,130280720,13-May-14,-391.00,Revenue,THE REGARD PARTNERSHIP,SP0000588
WANDSWORTH COUNCIL,ASC,SOCIAL SERVICES,CUSTOMER & CLIENT RECPTS - EXT,CL CONT EXTERNAL RESIDENTIAL,403469,130280720,13-May-14,-391.00,Revenue,THE REGARD PARTNERSHIP,SP0000588
WANDSWORTH COUNCIL,ASC,SOCIAL SERVICES,CUSTOMER & CLIENT RECPTS - EXT,CL CONT EXTERNAL RESIDENTIAL,403470,130280720,13-May-14,-391.00,Revenue,THE REGARD PARTNERSHIP,SP0000588
WANDSWORTH COUNCIL,ASC,SOCIAL SERVICES,CUSTOMER & CLIENT RECPTS - EXT,CL CONT EXTERNAL RESIDENTIAL,403471,130280720,13-May-14,-315.20,Revenue,THE REGARD PARTNERSHIP,SP0000588
WANDSWORTH COUNCIL,ASC,SOCIAL SERVICES,CUSTOMER & CLIENT RECPTS - EXT,CL CONT EXTERNAL RESIDENTIAL,403472,130280720,13-May-14,-491.28,Revenue,THE REGARD PARTNERSHIP,SP0000588
WANDSWORTH COUNCIL,ASC,SOCIAL SERVICES,CUSTOMER & CLIENT RECPTS - EXT,CL CONT EXTERNAL RESIDENTIAL,403489,130280720,13-May-14,-391.00,Revenue,THE REGARD PARTNERSHIP,SP0000588
WANDSWORTH COUNCIL,ASC,SOCIAL SERVICES,CUSTOMER & CLIENT RECPTS - EXT,CL CONT EXTERNAL RESIDENTIAL,403883,130280720,14-May-14,-318.35,Revenue,LAETUS LODGE,SP0000600
WANDSWORTH COUNCIL,ASC,SOCIAL SERVICES,CUSTOMER & CLIENT RECPTS - EXT,CL CONT EXTERNAL RESIDENTIAL,403884,130280720,14-May-14,-395.65,Revenue,LAETUS LODGE,SP0000600
WANDSWORTH COUNCIL,ASC,SOCIAL SERVICES,CUSTOMER & CLIENT RECPTS - EXT,CL CONT EXTERNAL RESIDENTIAL,403886,130280720,14-May-14,-243.92,Revenue,LAETUS LODGE,SP0000600
WANDSWORTH COUNCIL,ASC,SOCIAL SERVICES,CUSTOMER & CLIENT RECPTS - EXT,CL CONT EXTERNAL RESIDENTIAL,403887,130280720,14-May-14,-360.25,Revenue,LAETUS LODGE,SP0000600
WANDSWORTH COUNCIL,ASC,SOCIAL SERVICES,CUSTOMER & CLIENT RECPTS - EXT,CL CONT EXTERNAL RESIDENTIAL,403888,130280720,14-May-14,-318.35,Revenue,LAETUS LODGE,SP0000600
WANDSWORTH COUNCIL,ASC,SOCIAL SERVICES,CUSTOMER & CLIENT RECPTS - EXT,CL CONT EXTERNAL RESIDENTIAL,403895,130280720,14-May-14,-273.77,Revenue,MENCAP,SP0000604
WANDSWORTH COUNCIL,ASC,SOCIAL SERVICES,CUSTOMER & CLIENT RECPTS - EXT,CL CONT EXTERNAL RESIDENTIAL,406198,130280720,16-May-14,-380.60,Revenue,METROPOLITAN HOUSING TRUST,SP0000626
WANDSWORTH COUNCIL,ASC,SOCIAL SERVICES,CUSTOMER & CLIENT RECPTS - EXT,CL CONT EXTERNAL RESIDENTIAL,406199,130280720,16-May-14,-486.00,Revenue,METROPOLITAN HOUSING TRUST,SP0000626
WANDSWORTH COUNCIL,ASC,SOCIAL SERVICES,CUSTOMER & CLIENT RECPTS - EXT,CL CONT EXTERNAL RESIDENTIAL,406200,130280720,16-May-14,-315.20,Revenue,METROPOLITAN HOUSING TRUST,SP0000626
WANDSWORTH COUNCIL,ASC,SOCIAL SERVICES,CUSTOMER & CLIENT RECPTS - EXT,CL CONT EXTERNAL RESIDENTIAL,406201,130280720,16-May-14,-380.60,Revenue,METROPOLITAN HOUSING TRUST,SP0000626
WANDSWORTH COUNCIL,ASC,SOCIAL SERVICES,CUSTOMER & CLIENT RECPTS - EXT,CL CONT EXTERNAL RESIDENTIAL,406203,130280720,16-May-14,-315.20,Revenue,METROPOLITAN HOUSING TRUST,SP0000626
WANDSWORTH COUNCIL,ASC,SOCIAL SERVICES,CUSTOMER & CLIENT RECPTS - EXT,CL CONT EXTERNAL RESIDENTIAL,406205,130280720,16-May-14,-486.00,Revenue,METROPOLITAN HOUSING TRUST,SP0000626
WANDSWORTH COUNCIL,ASC,SOCIAL SERVICES,CUSTOMER & CLIENT RECPTS - EXT,CL CONT EXTERNAL RESIDENTIAL,406206,130280720,16-May-14,-315.20,Revenue,METROPOLITAN HOUSING TRUST,SP0000626
WANDSWORTH COUNCIL,ASC,SOCIAL SERVICES,CUSTOMER & CLIENT RECPTS - EXT,CL CONT EXTERNAL RESIDENTIAL,406208,130280720,16-May-14,-315.20,Revenue,METROPOLITAN HOUSING TRUST,SP0000626
WANDSWORTH COUNCIL,ASC,SOCIAL SERVICES,CUSTOMER & CLIENT RECPTS - EXT,CL CONT EXTERNAL RESIDENTIAL,406209,130280720,16-May-14,-486.00,Revenue,METROPOLITAN HOUSING TRUST,SP0000626
WANDSWORTH COUNCIL,ASC,SOCIAL SERVICES,CUSTOMER & CLIENT RECPTS - EXT,CL CONT EXTERNAL RESIDENTIAL,406211,130280720,16-May-14,-315.20,Revenue,METROPOLITAN HOUSING TRUST,SP0000626
WANDSWORTH COUNCIL,ASC,SOCIAL SERVICES,CUSTOMER & CLIENT RECPTS - EXT,CL CONT EXTERNAL RESIDENTIAL,406213,130280720,16-May-14,-315.20,Revenue,METROPOLITAN HOUSING TRUST,SP0000626
WANDSWORTH COUNCIL,ASC,SOCIAL SERVICES,CUSTOMER & CLIENT RECPTS - EXT,CL CONT EXTERNAL RESIDENTIAL,408904,130280720,21-May-14,-317.75,Revenue,LIVABILITY,SP0000669
WANDSWORTH COUNCIL,ASC,SOCIAL SERVICES,CUSTOMER & CLIENT RECPTS - EXT,CL CONT EXTERNAL RESIDENTIAL,408905,130280720,21-May-14,-319.40,Revenue,LIVABILITY,SP0000669
WANDSWORTH COUNCIL,ASC,SOCIAL SERVICES,CUSTOMER & CLIENT RECPTS - EXT,CL CONT EXTERNAL RESIDENTIAL,403889,130280720,14-May-14,-315.20,Revenue,LOVING CARE LTD,SP0000670
WANDSWORTH COUNCIL,ASC,SOCIAL SERVICES,CUSTOMER & CLIENT RECPTS - EXT,CL CONT EXTERNAL RESIDENTIAL,408146,130280720,20-May-14,-317.00,Revenue,LOVING CARE LTD,SP0000670
WANDSWORTH COUNCIL,ASC,SOCIAL SERVICES,CUSTOMER & CLIENT RECPTS - EXT,CL CONT EXTERNAL RESIDENTIAL,408147,130280720,20-May-14,-317.30,Revenue,LOVING CARE LTD,SP0000670
WANDSWORTH COUNCIL,ASC,SOCIAL SERVICES,CUSTOMER & CLIENT RECPTS - EXT,CL CONT EXTERNAL RESIDENTIAL,408148,130280720,20-May-14,-317.00,Revenue,LOVING CARE LTD,SP0000670
WANDSWORTH COUNCIL,ASC,SOCIAL SERVICES,CUSTOMER & CLIENT RECPTS - EXT,CL CONT EXTERNAL RESIDENTIAL,408149,130280720,20-May-14,-317.00,Revenue,LOVING CARE LTD,SP0000670
WANDSWORTH COUNCIL,ASC,SOCIAL SERVICES,CUSTOMER & CLIENT RECPTS - EXT,CL CONT EXTERNAL RESIDENTIAL,408155,130280720,20-May-14,-317.60,Revenue,LOVING CARE LTD,SP0000670
WANDSWORTH COUNCIL,ASC,SOCIAL SERVICES,CUSTOMER & CLIENT RECPTS - EXT,CL CONT EXTERNAL RESIDENTIAL,403890,130280720,14-May-14,-341.31,Revenue,THE MANOR HOUSE,SP0000728
WANDSWORTH COUNCIL,ASC,SOCIAL SERVICES,CUSTOMER & CLIENT RECPTS - EXT,CL CONT EXTERNAL RESIDENTIAL,403467,130280720,13-May-14,-529.11,Revenue,RALEIGH HOUSE LTD,SP0000760
WANDSWORTH COUNCIL,ASC,SOCIAL SERVICES,CUSTOMER & CLIENT RECPTS - EXT,CL CONT EXTERNAL RESIDENTIAL,399149,130280720,06-May-14,-318.35,Revenue,UNITED RESPONSE,SP0000797
WANDSWORTH COUNCIL,ASC,SOCIAL SERVICES,CUSTOMER & CLIENT RECPTS - EXT,CL CONT EXTERNAL RESIDENTIAL,397814,130280720,01-May-14,-341.31,Revenue,PROSPECTS,SP0000800
WANDSWORTH COUNCIL,ASC,SOCIAL SERVICES,CUSTOMER & CLIENT RECPTS - EXT,CL CONT EXTERNAL RESIDENTIAL,403897,130280720,14-May-14,-348.97,Revenue,PROSPECTS,SP0000800
WANDSWORTH COUNCIL,ASC,SOCIAL SERVICES,CUSTOMER & CLIENT RECPTS - EXT,CL CONT EXTERNAL RESIDENTIAL,406189,130280720,16-May-14,-348.97,Revenue,PROSPECTS,SP0000800
WANDSWORTH COUNCIL,ASC,SOCIAL SERVICES,CUSTOMER & CLIENT RECPTS - EXT,CL CONT EXTERNAL RESIDENTIAL,406190,130280720,16-May-14,-337.71,Revenue,PROSPECTS,SP0000800
WANDSWORTH COUNCIL,ASC,SOCIAL SERVICES,CUSTOMER & CLIENT RECPTS - EXT,CL CONT EXTERNAL RESIDENTIAL,406191,130280720,16-May-14,-337.71,Revenue,PROSPECTS,SP0000800
WANDSWORTH COUNCIL,ASC,SOCIAL SERVICES,CUSTOMER & CLIENT RECPTS - EXT,CL CONT EXTERNAL RESIDENTIAL,408900,130280720,21-May-14,-348.97,Revenue,PROSPECTS,SP0000800
WANDSWORTH COUNCIL,ASC,SOCIAL SERVICES,CUSTOMER & CLIENT RECPTS - EXT,CL CONT EXTERNAL RESIDENTIAL,410531,130280720,23-May-14,-341.31,Revenue,BEECH LODGE,SP0000807
WANDSWORTH COUNCIL,ASC,SOCIAL SERVICES,CUSTOMER & CLIENT RECPTS - EXT,CL CONT EXTERNAL RESIDENTIAL,410532,130280720,23-May-14,-341.31,Revenue,BEECH LODGE,SP0000807
WANDSWORTH COUNCIL,ASC,SOCIAL SERVICES,CUSTOMER & CLIENT RECPTS - EXT,CL CONT EXTERNAL RESIDENTIAL,410533,130280720,23-May-14,-341.31,Revenue,BEECH LODGE,SP0000807
WANDSWORTH COUNCIL,ASC,SOCIAL SERVICES,CUSTOMER & CLIENT RECPTS - EXT,CL CONT EXTERNAL RESIDENTIAL,398330,130280720,02-May-14,-341.31,Revenue,FIRCROFT,SP0000840
WANDSWORTH COUNCIL,ASC,SOCIAL SERVICES,CUSTOMER & CLIENT RECPTS - EXT,CL CONT EXTERNAL RESIDENTIAL,398328,130280720,02-May-14,-319.40,Revenue,ROYAL MENCAP SOCIETY,SP0000842
WANDSWORTH COUNCIL,ASC,SOCIAL SERVICES,CUSTOMER & CLIENT RECPTS - EXT,CL CONT EXTERNAL RESIDENTIAL,398345,130280720,02-May-14,-319.40,Revenue,ROYAL MENCAP SOCIETY,SP0000842
WANDSWORTH COUNCIL,ASC,SOCIAL SERVICES,CUSTOMER & CLIENT RECPTS - EXT,CL CONT EXTERNAL RESIDENTIAL,398346,130280720,02-May-14,-319.40,Revenue,ROYAL MENCAP SOCIETY,SP0000842
WANDSWORTH COUNCIL,ASC,SOCIAL SERVICES,CUSTOMER & CLIENT RECPTS - EXT,CL CONT EXTERNAL RESIDENTIAL,408181,130280720,20-May-14,-337.71,Revenue,STALLCOMBE HOUSE,SP0000843
WANDSWORTH COUNCIL,ASC,SOCIAL SERVICES,CUSTOMER & CLIENT RECPTS - EXT,CL CONT EXTERNAL RESIDENTIAL,410662,130280720,23-May-14,-353.62,Revenue,SCOPE,SP0000852
WANDSWORTH COUNCIL,ASC,SOCIAL SERVICES,CUSTOMER & CLIENT RECPTS - EXT,CL CONT EXTERNAL RESIDENTIAL,410663,130280720,23-May-14,-401.67,Revenue,SCOPE,SP0000852
WANDSWORTH COUNCIL,ASC,SOCIAL SERVICES,CUSTOMER & CLIENT RECPTS - EXT,CL CONT EXTERNAL RESIDENTIAL,410571,130280720,23-May-14,-353.62,Revenue,229 MITCHAM LANE LTD,SP0000884
WANDSWORTH COUNCIL,ASC,SOCIAL SERVICES,CUSTOMER & CLIENT RECPTS - EXT,CL CONT EXTERNAL RESIDENTIAL,410572,130280720,23-May-14,-353.62,Revenue,229 MITCHAM LANE LTD,SP0000884
WANDSWORTH COUNCIL,ASC,SOCIAL SERVICES,CUSTOMER & CLIENT RECPTS - EXT,CL CONT EXTERNAL RESIDENTIAL,410573,130280720,23-May-14,-353.62,Revenue,229 MITCHAM LANE LTD,SP0000884
WANDSWORTH COUNCIL,ASC,SOCIAL SERVICES,CUSTOMER & CLIENT RECPTS - EXT,CL CONT EXTERNAL RESIDENTIAL,408144,130280720,20-May-14,-317.15,Revenue,WINSLOW COURT,SP0000886
WANDSWORTH COUNCIL,ASC,SOCIAL SERVICES,CUSTOMER & CLIENT RECPTS - EXT,CL CONT EXTERNAL RESIDENTIAL,398333,130280720,02-May-14,-318.35,Revenue,THE LEO TRUST,SP0000908
WANDSWORTH COUNCIL,ASC,SOCIAL SERVICES,CUSTOMER & CLIENT RECPTS - EXT,CL CONT EXTERNAL RESIDENTIAL,410515,130280720,23-May-14,-319.40,Revenue,THE LEO TRUST,SP0000908
WANDSWORTH COUNCIL,ASC,SOCIAL SERVICES,CUSTOMER & CLIENT RECPTS - EXT,CL CONT EXTERNAL RESIDENTIAL,406192,130280720,16-May-14,-486.00,Revenue,PURBECK CARE LTD,SP0000913
WANDSWORTH COUNCIL,ASC,SOCIAL SERVICES,CUSTOMER & CLIENT RECPTS - EXT,CL CONT EXTERNAL RESIDENTIAL,406195,130280720,16-May-14,-433.93,Revenue,PURBECK CARE LTD,SP0000913
WANDSWORTH COUNCIL,ASC,SOCIAL SERVICES,CUSTOMER & CLIENT RECPTS - EXT,CL CONT EXTERNAL RESIDENTIAL,406196,130280720,16-May-14,-495.80,Revenue,PURBECK CARE LTD,SP0000913
WANDSWORTH COUNCIL,ASC,SOCIAL SERVICES,CUSTOMER & CLIENT RECPTS - EXT,CL CONT EXTERNAL RESIDENTIAL,399152,130280720,06-May-14,-341.31,Revenue,DOWNING (CHERTSEY ROAD) LTD,SP0000959
WANDSWORTH COUNCIL,ASC,SOCIAL SERVICES,CUSTOMER & CLIENT RECPTS - EXT,CL CONT EXTERNAL RESIDENTIAL,410535,130280720,23-May-14,-341.31,Revenue,CHERRY LODGE,SP0000965
WANDSWORTH COUNCIL,ASC,SOCIAL SERVICES,CUSTOMER & CLIENT RECPTS - EXT,CL CONT EXTERNAL RESIDENTIAL,399151,130280720,06-May-14,-341.31,Revenue,CREDITON CARE & SUPPORT HOMES,SP0000998
WANDSWORTH COUNCIL,ASC,SOCIAL SERVICES,CUSTOMER & CLIENT RECPTS - EXT,CL CONT EXTERNAL RESIDENTIAL,408897,130280720,21-May-14,-319.40,Revenue,LOTUS CARE HOME LTD,SP0001006
WANDSWORTH COUNCIL,ASC,SOCIAL SERVICES,CUSTOMER & CLIENT RECPTS - EXT,CL CONT EXTERNAL RESIDENTIAL,397808,130280720,01-May-14,-488.45,Revenue,THE HOME FARM TRUST LTD,SP0001048
WANDSWORTH COUNCIL,ASC,SOCIAL SERVICES,CUSTOMER & CLIENT RECPTS - EXT,CL CONT EXTERNAL RESIDENTIAL,410612,130280720,23-May-14,-495.80,Revenue,THE HOME FARM TRUST LTD,SP0001048
WANDSWORTH COUNCIL,ASC,SOCIAL SERVICES,CUSTOMER & CLIENT RECPTS - EXT,CL CONT EXTERNAL RESIDENTIAL,410599,130280720,23-May-14,-260.67,Revenue,ALLIED CARE (MHS) LTD,SP0001069
WANDSWORTH COUNCIL,ASC,SOCIAL SERVICES,CUSTOMER & CLIENT RECPTS - EXT,CL CONT EXTERNAL RESIDENTIAL,410600,130280720,23-May-14,-268.32,Revenue,ALLIED CARE (MHS) LTD,SP0001069
WANDSWORTH COUNCIL,ASC,SOCIAL SERVICES,CUSTOMER & CLIENT RECPTS - EXT,CL CONT EXTERNAL RESIDENTIAL,408173,130280720,20-May-14,-273.77,Revenue,SAXON COURT,SP0001100
WANDSWORTH COUNCIL,ASC,SOCIAL SERVICES,CUSTOMER & CLIENT RECPTS - EXT,CL CONT EXTERNAL RESIDENTIAL,408174,130280720,20-May-14,-273.77,Revenue,SAXON COURT,SP0001100
WANDSWORTH COUNCIL,ASC,SOCIAL SERVICES,CUSTOMER & CLIENT RECPTS - EXT,CL CONT EXTERNAL RESIDENTIAL,403900,130280720,14-May-14,-360.25,Revenue,TOTTERDOWN,SP0001113
WANDSWORTH COUNCIL,ASC,SOCIAL SERVICES,CUSTOMER & CLIENT RECPTS - EXT,CL CONT EXTERNAL RESIDENTIAL,399148,130280720,06-May-14,-433.74,Revenue,SUSSEX HEALTH CARE,SP0001115
WANDSWORTH COUNCIL,ASC,SOCIAL SERVICES,CUSTOMER & CLIENT RECPTS - EXT,CL CONT EXTERNAL RESIDENTIAL,403882,130280720,14-May-14,-341.31,Revenue,SUSSEX HEALTH CARE,SP0001115
WANDSWORTH COUNCIL,ASC,SOCIAL SERVICES,CUSTOMER & CLIENT RECPTS - EXT,CL CONT EXTERNAL RESIDENTIAL,410576,130280720,23-May-14,-353.62,Revenue,SUSSEX HEALTH CARE,SP0001115
WANDSWORTH COUNCIL,ASC,SOCIAL SERVICES,CUSTOMER & CLIENT RECPTS - EXT,CL CONT EXTERNAL RESIDENTIAL,398334,130280720,02-May-14,-386.53,Revenue,LONDON CARE PARTNERSHIP LTD,SP0001138
WANDSWORTH COUNCIL,ASC,SOCIAL SERVICES,CUSTOMER & CLIENT RECPTS - EXT,CL CONT EXTERNAL RESIDENTIAL,398335,130280720,02-May-14,-280.27,Revenue,LONDON CARE PARTNERSHIP LTD,SP0001138
WANDSWORTH COUNCIL,ASC,SOCIAL SERVICES,CUSTOMER & CLIENT RECPTS - EXT,CL CONT EXTERNAL RESIDENTIAL,398336,130280720,02-May-14,-341.06,Revenue,LONDON CARE PARTNERSHIP LTD,SP0001138
WANDSWORTH COUNCIL,ASC,SOCIAL SERVICES,CUSTOMER & CLIENT RECPTS - EXT,CL CONT EXTERNAL RESIDENTIAL,398337,130280720,02-May-14,-205.54,Revenue,LONDON CARE PARTNERSHIP LTD,SP0001138
WANDSWORTH COUNCIL,ASC,SOCIAL SERVICES,CUSTOMER & CLIENT RECPTS - EXT,CL CONT EXTERNAL RESIDENTIAL,410577,130280720,23-May-14,-401.67,Revenue,LONDON CARE PARTNERSHIP LTD,SP0001138
WANDSWORTH COUNCIL,ASC,SOCIAL SERVICES,CUSTOMER & CLIENT RECPTS - EXT,CL CONT EXTERNAL RESIDENTIAL,410578,130280720,23-May-14,-291.26,Revenue,LONDON CARE PARTNERSHIP LTD,SP0001138
WANDSWORTH COUNCIL,ASC,SOCIAL SERVICES,CUSTOMER & CLIENT RECPTS - EXT,CL CONT EXTERNAL RESIDENTIAL,410579,130280720,23-May-14,-353.62,Revenue,LONDON CARE PARTNERSHIP LTD,SP0001138
WANDSWORTH COUNCIL,ASC,SOCIAL SERVICES,CUSTOMER & CLIENT RECPTS - EXT,CL CONT EXTERNAL RESIDENTIAL,410580,130280720,23-May-14,-291.26,Revenue,LONDON CARE PARTNERSHIP LTD,SP0001138
WANDSWORTH COUNCIL,ASC,SOCIAL SERVICES,CUSTOMER & CLIENT RECPTS - EXT,CL CONT EXTERNAL RESIDENTIAL,410581,130280720,23-May-14,-212.57,Revenue,LONDON CARE PARTNERSHIP LTD,SP0001138
WANDSWORTH COUNCIL,ASC,SOCIAL SERVICES,CUSTOMER & CLIENT RECPTS - EXT,CL CONT EXTERNAL RESIDENTIAL,410582,130280720,23-May-14,-401.67,Revenue,LONDON CARE PARTNERSHIP LTD,SP0001138
WANDSWORTH COUNCIL,ASC,SOCIAL SERVICES,CUSTOMER & CLIENT RECPTS - EXT,CL CONT EXTERNAL RESIDENTIAL,397809,130280720,01-May-14,-340.40,Revenue,HOME FROM HOME CARE LIMITED,SP0001373
WANDSWORTH COUNCIL,ASC,SOCIAL SERVICES,CUSTOMER & CLIENT RECPTS - EXT,CL CONT EXTERNAL RESIDENTIAL,410575,130280720,23-May-14,-353.62,Revenue,HOME FROM HOME CARE LIMITED,SP0001373
WANDSWORTH COUNCIL,ASC,SOCIAL SERVICES,CUSTOMER & CLIENT RECPTS - EXT,CL CONT EXTERNAL RESIDENTIAL,408152,130280720,20-May-14,-166.26,Revenue,LARKFIELD HALL LTD T/A PEPENBURY,SP0001378
WANDSWORTH COUNCIL,ASC,SOCIAL SERVICES,CUSTOMER & CLIENT RECPTS - EXT,CL CONT EXTERNAL RESIDENTIAL,410520,130280720,23-May-14,-362.80,Revenue,LARKFIELD HALL LTD T/A PEPENBURY,SP0001378
WANDSWORTH COUNCIL,ASC,SOCIAL SERVICES,CUSTOMER & CLIENT RECPTS - EXT,CL CONT EXTERNAL RESIDENTIAL,398344,130280720,02-May-14,-386.53,Revenue,ROOKERY HOVE PRIORY,SP0001498
WANDSWORTH COUNCIL,ASC,SOCIAL SERVICES,CUSTOMER & CLIENT RECPTS - EXT,CL CONT EXTERNAL RESIDENTIAL,410666,130280720,23-May-14,-401.67,Revenue,ROOKERY HOVE PRIORY,SP0001498
WANDSWORTH COUNCIL,ASC,SOCIAL SERVICES,CUSTOMER & CLIENT RECPTS - EXT,CL CONT EXTERNAL RESIDENTIAL,410655,130280720,23-May-14,-278.50,Revenue,CRAEGMOOR OLD RECTORY BREDE PRIORY,SP0001621
WANDSWORTH COUNCIL,ASC,SOCIAL SERVICES,CUSTOMER & CLIENT RECPTS - EXT,CL CONT EXTERNAL RESIDENTIAL,410656,130280720,23-May-14,-289.32,Revenue,CRAEGMOOR OLD RECTORY BREDE PRIORY,SP0001621
WANDSWORTH COUNCIL,ASC,SOCIAL SERVICES,CUSTOMER & CLIENT RECPTS - EXT,CL CONT EXTERNAL RESIDENTIAL,408159,130280720,20-May-14,-341.31,Revenue,PATHWAY HEALTHCARE,SP0001779
WANDSWORTH COUNCIL,ASC,SOCIAL SERVICES,CUSTOMER & CLIENT RECPTS - EXT,CL CONT EXTERNAL RESIDENTIAL,401440,130280720,09-May-14,-319.40,Revenue,THE BRANDON TRUST,SP0005337
WANDSWORTH COUNCIL,ASC,SOCIAL SERVICES,CUSTOMER & CLIENT RECPTS - EXT,CL CONT EXTERNAL RESIDENTIAL,399154,130280720,06-May-14,-135.57,Revenue,ENHAM,SP0005845
WANDSWORTH COUNCIL,ASC,SOCIAL SERVICES,CUSTOMER & CLIENT RECPTS - EXT,CL CONTS  APS SHARED LIVES SCH,20282918,130280740,21-May-14,"-35,229.07",Revenue,SOUTHSIDE PARTNERSHIP,2005209
WANDSWORTH COUNCIL,ASC,SOCIAL SERVICES,CUSTOMER & CLIENT RECPTS - EXT,CL CONTS  APS SHARED LIVES SCH,20282945,130280740,22-May-14,"-25,090.45",Revenue,SOUTHSIDE PARTNERSHIP,2005209
WANDSWORTH COUNCIL,ASC,SOCIAL SERVICES,CUSTOMER & CLIENT RECPTS - EXT,CLIENT CONTS EXTERNAL NURSING,398466,130280820,02-May-14,-486.00,Revenue,GEORGE POTTER CARE HOME LTD,SP0000276
WANDSWORTH COUNCIL,ASC,SOCIAL SERVICES,CUSTOMER & CLIENT RECPTS - EXT,CLIENT CONTS EXTERNAL NURSING,403477,130280820,13-May-14,-535.64,Revenue,ROSEDENE NURSING HOME,SP0000316
WANDSWORTH COUNCIL,ASC,SOCIAL SERVICES,CUSTOMER & CLIENT RECPTS - EXT,CLIENT CONTS EXTERNAL NURSING,413971,130280820,30-May-14,-494.05,Revenue,YEW TREE NURSING HOME,SP0000454
WANDSWORTH COUNCIL,ASC,SOCIAL SERVICES,CUSTOMER & CLIENT RECPTS - EXT,CLIENT CONTS EXTERNAL NURSING,413972,130280820,30-May-14,-495.80,Revenue,YEW TREE NURSING HOME,SP0000454
WANDSWORTH COUNCIL,ASC,SOCIAL SERVICES,CUSTOMER & CLIENT RECPTS - EXT,CLIENT CONTS EXTERNAL NURSING,410574,130280820,23-May-14,-362.80,Revenue,HIGH HURLANDS HOMES,SP0000668
WANDSWORTH COUNCIL,ASC,SOCIAL SERVICES,CUSTOMER & CLIENT RECPTS - EXT,CLIENT CONTS EXTERNAL NURSING,398700,130280820,02-May-14,-387.40,Revenue,TRINITY COURT NURSING HOME,SP0001001
WANDSWORTH COUNCIL,ASC,SOCIAL SERVICES,CUSTOMER & CLIENT RECPTS - EXT,CLIENT CONTS EXTERNAL NURSING,408142,130280820,20-May-14,-378.51,Revenue,SUSSEX HEALTH CARE,SP0001115
WANDSWORTH COUNCIL,ASC,SOCIAL SERVICES,CUSTOMER & CLIENT RECPTS - EXT,CLIENT CONTS EXTERNAL NURSING,408143,130280820,20-May-14,-401.67,Revenue,SUSSEX HEALTH CARE,SP0001115
WANDSWORTH COUNCIL,ASC,SOCIAL SERVICES,CUSTOMER & CLIENT RECPTS - EXT,RNCC,398466,130284120,02-May-14,-443.56,Revenue,GEORGE POTTER CARE HOME LTD,SP0000276
WANDSWORTH COUNCIL,ASC,SOCIAL SERVICES,CUSTOMER & CLIENT RECPTS - EXT,RNCC,397817,130284120,01-May-14,-474.30,Revenue,RONALD GIBSON HOUSE,SP0000302
WANDSWORTH COUNCIL,ASC,SOCIAL SERVICES,CUSTOMER & CLIENT RECPTS - EXT,RNCC,410627,130284120,23-May-14,-491.09,Revenue,RONALD GIBSON HOUSE,SP0000302
WANDSWORTH COUNCIL,ASC,SOCIAL SERVICES,CUSTOMER & CLIENT RECPTS - EXT,RNCC,403477,130284120,13-May-14,-441.68,Revenue,ROSEDENE NURSING HOME,SP0000316
WANDSWORTH COUNCIL,ASC,SOCIAL SERVICES,CUSTOMER & CLIENT RECPTS - EXT,RNCC,398645,130284120,02-May-14,-443.56,Revenue,FOUR SEASONS HEALTH CARE LTD,SP0000422
WANDSWORTH COUNCIL,ASC,SOCIAL SERVICES,CUSTOMER & CLIENT RECPTS - EXT,RNCC,413971,130284120,30-May-14,-442.77,Revenue,YEW TREE NURSING HOME,SP0000454
WANDSWORTH COUNCIL,ASC,SOCIAL SERVICES,CUSTOMER & CLIENT RECPTS - EXT,RNCC,413972,130284120,30-May-14,-443.56,Revenue,YEW TREE NURSING HOME,SP0000454
WANDSWORTH COUNCIL,ASC,SOCIAL SERVICES,CUSTOMER & CLIENT RECPTS - EXT,RNCC,410574,130284120,23-May-14,-610.44,Revenue,HIGH HURLANDS HOMES,SP0000668
WANDSWORTH COUNCIL,ASC,SOCIAL SERVICES,CUSTOMER & CLIENT RECPTS - EXT,RNCC,398700,130284120,02-May-14,-443.56,Revenue,TRINITY COURT NURSING HOME,SP0001001
WANDSWORTH COUNCIL,ASC,SOCIAL SERVICES,GRANTS & SUBSCRIPTIONS,CONTRACTS TO VOLUNTARY ORGS,20283182,136137550,27-May-14,"1,059.38",Revenue,HARINGEY ASSOCIATION FOR INDEPENDENT LIVING (HAIL),2001094
WANDSWORTH COUNCIL,ASC,SOCIAL SERVICES,DIRECT2,AGENCY STAFF,20281988,140000510,14-May-14,"1,606.83",Revenue,MATRIX SCM LIMITED,2014926
WANDSWORTH COUNCIL,ASC,SOCIAL SERVICES,DIRECT2,AGENCY STAFF,20283183,140000510,27-May-14,"1,253.49",Revenue,MATRIX SCM LIMITED,2014926
WANDSWORTH COUNCIL,ASC,SOCIAL SERVICES,DIRECT2,AGENCY STAFF,20283184,140000510,27-May-14,"1,007.41",Revenue,MATRIX SCM LIMITED,2014926
WANDSWORTH COUNCIL,ASC,SOCIAL SERVICES,DIRECT2,AGENCY STAFF,20283600,140000510,30-May-14,916.40,Revenue,MATRIX SCM LIMITED,2014926
WANDSWORTH COUNCIL,ASC,SOCIAL SERVICES,DIRECT2,AGENCY STAFF,20281988,140100510,14-May-14,"2,424.02",Revenue,MATRIX SCM LIMITED,2014926
WANDSWORTH COUNCIL,ASC,SOCIAL SERVICES,DIRECT2,AGENCY STAFF,20283183,140100510,27-May-14,"1,264.56",Revenue,MATRIX SCM LIMITED,2014926
WANDSWORTH COUNCIL,ASC,SOCIAL SERVICES,DIRECT2,AGENCY STAFF,20283184,140100510,27-May-14,"2,735.08",Revenue,MATRIX SCM LIMITED,2014926
WANDSWORTH COUNCIL,ASC,SOCIAL SERVICES,DIRECT2,AGENCY STAFF,20283600,140100510,30-May-14,"1,966.90",Revenue,MATRIX SCM LIMITED,2014926
WANDSWORTH COUNCIL,ASC,SOCIAL SERVICES,PRIVATE,EXTERNAL DAYCARE,410949,140145290,23-May-14,"1,980.00",Revenue,WESTMINSTER DRUG PROJECT LTD,SP0000388
WANDSWORTH COUNCIL,ASC,SOCIAL SERVICES,PRIVATE,EXTERNAL DAYCARE,414482,140145290,30-May-14,"1,980.00",Revenue,WESTMINSTER DRUG PROJECT LTD,SP0000388
WANDSWORTH COUNCIL,ASC,SOCIAL SERVICES,PRIVATE,EXTERNAL DAYCARE,414483,140145290,30-May-14,"1,980.00",Revenue,WESTMINSTER DRUG PROJECT LTD,SP0000388
WANDSWORTH COUNCIL,ASC,SOCIAL SERVICES,PRIVATE,EXTERNAL DAYCARE,414478,140145290,30-May-14,814.00,Revenue,THE SEVENTY4 FOUNDATION,SP0001269
WANDSWORTH COUNCIL,ASC,SOCIAL SERVICES,PRIVATE,EXTERNAL DAYCARE,410950,140145290,23-May-14,765.00,Revenue,FREEDOM RECOVERY CENTRE LTD,SP0001282
WANDSWORTH COUNCIL,ASC,SOCIAL SERVICES,PRIVATE,EXTERNAL HOMECARE,410685,140145300,23-May-14,"1,249.95",Revenue,STOCKWELLCARE SUPPORT SERVICES,SP0006011
WANDSWORTH COUNCIL,ASC,SOCIAL SERVICES,PRIVATE,EXTERNAL RESIDENTIAL CARE,397802,140145330,01-May-14,"2,766.83",Revenue,CRANSTOUN DRUG SERVICES,SP0000202
WANDSWORTH COUNCIL,ASC,SOCIAL SERVICES,PRIVATE,EXTERNAL RESIDENTIAL CARE,401211,140145330,09-May-14,"1,448.90",Revenue,CRANSTOUN DRUG SERVICES,SP0000202
WANDSWORTH COUNCIL,ASC,SOCIAL SERVICES,PRIVATE,EXTERNAL RESIDENTIAL CARE,413977,140145330,30-May-14,"2,892.86",Revenue,CRANSTOUN DRUG SERVICES,SP0000202
WANDSWORTH COUNCIL,ASC,SOCIAL SERVICES,PRIVATE,EXTERNAL RESIDENTIAL CARE,413978,140145330,30-May-14,"3,102.50",Revenue,PHOENIX HOUSE,SP0000373
WANDSWORTH COUNCIL,ASC,SOCIAL SERVICES,PRIVATE,EXTERNAL RESIDENTIAL CARE,406465,140145330,16-May-14,"2,500.00",Revenue,STREETSCENE ADDICTION RECOVERY,SP0001163
WANDSWORTH COUNCIL,ASC,SOCIAL SERVICES,PRIVATE,EXTERNAL RESIDENTIAL CARE,411104,140145330,23-May-14,"2,479.92",Revenue,STREETSCENE ADDICTION RECOVERY,SP0001163
WANDSWORTH COUNCIL,ASC,SOCIAL SERVICES,PRIVATE,EXTERNAL RESIDENTIAL CARE,411105,140145330,23-May-14,"2,479.92",Revenue,STREETSCENE ADDICTION RECOVERY,SP0001163
WANDSWORTH COUNCIL,ASC,SOCIAL SERVICES,PRIVATE,EXTERNAL RESIDENTIAL CARE,411106,140145330,23-May-14,"2,740.42",Revenue,STREETSCENE ADDICTION RECOVERY,SP0001163
WANDSWORTH COUNCIL,ASC,SOCIAL SERVICES,PRIVATE,EXTERNAL RESIDENTIAL CARE,413983,140145330,30-May-14,"2,699.96",Revenue,STREETSCENE ADDICTION RECOVERY,SP0001163
WANDSWORTH COUNCIL,ASC,SOCIAL SERVICES,PRIVATE,EXTERNAL RESIDENTIAL CARE,406168,140145330,16-May-14,"3,051.37",Revenue,THE NELSON TRUST,SP0005794
WANDSWORTH COUNCIL,ASC,SOCIAL SERVICES,PRIVATE,EXTERNAL RESIDENTIAL CARE,408123,140145330,20-May-14,"5,850.43",Revenue,THE NELSON TRUST,SP0005794
WANDSWORTH COUNCIL,ASC,SOCIAL SERVICES,PRIVATE,EXTERNAL RESIDENTIAL CARE,408124,140145330,20-May-14,"2,952.94",Revenue,THE NELSON TRUST,SP0005794
WANDSWORTH COUNCIL,ASC,SOCIAL SERVICES,PRIVATE,EXTERNAL RESIDENTIAL CARE,410502,140145330,23-May-14,"3,550.48",Revenue,THE NELSON TRUST,SP0005794
WANDSWORTH COUNCIL,ASC,SOCIAL SERVICES,VOL ASS,SUPPORTED HOUSING PROGRAMME,399138,140148030,06-May-14,"3,300.00",Revenue,FREEDOM RECOVERY CENTRE LTD,SP0001282
WANDSWORTH COUNCIL,ASC,SOCIAL SERVICES,VOL ASS,SUPPORTED HOUSING PROGRAMME,410648,140148030,23-May-14,"1,100.00",Revenue,FREEDOM RECOVERY CENTRE LTD,SP0001282
WANDSWORTH COUNCIL,ASC,SOCIAL SERVICES,VOL ASS,SUPPORTED HOUSING PROGRAMME,401412,140148030,09-May-14,928.57,Revenue,ADDICTION RECOVERY CENTRE,SP0001547
WANDSWORTH COUNCIL,ASC,SOCIAL SERVICES,VOL ASS,SUPPORTED HOUSING PROGRAMME,401447,140148030,09-May-14,"2,000.00",Revenue,ADDICTION RECOVERY CENTRE,SP0001547
WANDSWORTH COUNCIL,ASC,SOCIAL SERVICES,VOL ASS,SUPPORTED HOUSING PROGRAMME,405445,140148030,15-May-14,"2,000.00",Revenue,ADDICTION RECOVERY CENTRE,SP0001547
WANDSWORTH COUNCIL,ASC,SOCIAL SERVICES,VOL ASS,SUPPORTED HOUSING PROGRAMME,405446,140148030,15-May-14,"2,500.00",Revenue,ADDICTION RECOVERY CENTRE,SP0001547
WANDSWORTH COUNCIL,ASC,SOCIAL SERVICES,VOL ASS,SUPPORTED HOUSING PROGRAMME,405447,140148030,15-May-14,"2,320.00",Revenue,ADDICTION RECOVERY CENTRE,SP0001547
WANDSWORTH COUNCIL,ASC,SOCIAL SERVICES,VOL ASS,SUPPORTED HOUSING PROGRAMME,405448,140148030,15-May-14,"2,900.00",Revenue,ADDICTION RECOVERY CENTRE,SP0001547
WANDSWORTH COUNCIL,ASC,SOCIAL SERVICES,VOL ASS,SUPPORTED HOUSING PROGRAMME,405449,140148030,15-May-14,"2,000.00",Revenue,ADDICTION RECOVERY CENTRE,SP0001547
WANDSWORTH COUNCIL,ASC,SOCIAL SERVICES,VOL ASS,SUPPORTED HOUSING PROGRAMME,405450,140148030,15-May-14,"2,500.00",Revenue,ADDICTION RECOVERY CENTRE,SP0001547
WANDSWORTH COUNCIL,ASC,SOCIAL SERVICES,VOL ASS,SUPPORTED HOUSING PROGRAMME,413982,140148030,30-May-14,500.00,Revenue,ADDICTION RECOVERY CENTRE,SP0001547
WANDSWORTH COUNCIL,ASC,SOCIAL SERVICES,CUSTOMER & CLIENT RECPTS - EXT,CL CONT EXTERNAL RESIDENTIAL,397802,140180720,01-May-14,-6.83,Revenue,CRANSTOUN DRUG SERVICES,SP0000202
WANDSWORTH COUNCIL,ASC,SOCIAL SERVICES,CUSTOMER & CLIENT RECPTS - EXT,CL CONT EXTERNAL RESIDENTIAL,401211,140180720,09-May-14,-194.50,Revenue,CRANSTOUN DRUG SERVICES,SP0000202
WANDSWORTH COUNCIL,ASC,SOCIAL SERVICES,CUSTOMER & CLIENT RECPTS - EXT,CL CONT EXTERNAL RESIDENTIAL,413977,140180720,30-May-14,-204.86,Revenue,CRANSTOUN DRUG SERVICES,SP0000202
WANDSWORTH COUNCIL,ASC,SOCIAL SERVICES,CUSTOMER & CLIENT RECPTS - EXT,CL CONT EXTERNAL RESIDENTIAL,406465,140180720,16-May-14,-191.20,Revenue,STREETSCENE ADDICTION RECOVERY,SP0001163
WANDSWORTH COUNCIL,ASC,SOCIAL SERVICES,CUSTOMER & CLIENT RECPTS - EXT,CL CONT EXTERNAL RESIDENTIAL,411104,140180720,23-May-14,-191.20,Revenue,STREETSCENE ADDICTION RECOVERY,SP0001163
WANDSWORTH COUNCIL,ASC,SOCIAL SERVICES,CUSTOMER & CLIENT RECPTS - EXT,CL CONT EXTERNAL RESIDENTIAL,411105,140180720,23-May-14,-191.20,Revenue,STREETSCENE ADDICTION RECOVERY,SP0001163
WANDSWORTH COUNCIL,ASC,SOCIAL SERVICES,CUSTOMER & CLIENT RECPTS - EXT,CL CONT EXTERNAL RESIDENTIAL,411106,140180720,23-May-14,-266.71,Revenue,STREETSCENE ADDICTION RECOVERY,SP0001163
WANDSWORTH COUNCIL,ASC,SOCIAL SERVICES,CUSTOMER & CLIENT RECPTS - EXT,CL CONT EXTERNAL RESIDENTIAL,413983,140180720,30-May-14,-192.00,Revenue,STREETSCENE ADDICTION RECOVERY,SP0001163
WANDSWORTH COUNCIL,ASC,SOCIAL SERVICES,CUSTOMER & CLIENT RECPTS - EXT,CL CONT EXTERNAL RESIDENTIAL,406168,140180720,16-May-14,-159.38,Revenue,THE NELSON TRUST,SP0005794
WANDSWORTH COUNCIL,ASC,SOCIAL SERVICES,CUSTOMER & CLIENT RECPTS - EXT,CL CONT EXTERNAL RESIDENTIAL,408123,140180720,20-May-14,-284.14,Revenue,THE NELSON TRUST,SP0005794
WANDSWORTH COUNCIL,ASC,SOCIAL SERVICES,CUSTOMER & CLIENT RECPTS - EXT,CL CONT EXTERNAL RESIDENTIAL,408124,140180720,20-May-14,-159.28,Revenue,THE NELSON TRUST,SP0005794
WANDSWORTH COUNCIL,ASC,SOCIAL SERVICES,CUSTOMER & CLIENT RECPTS - EXT,CL CONT EXTERNAL RESIDENTIAL,410502,140180720,23-May-14,-167.14,Revenue,THE NELSON TRUST,SP0005794
WANDSWORTH COUNCIL,ASC,SOCIAL SERVICES,DIRECT2,AGENCY STAFF,20281988,140300510,14-May-14,689.60,Revenue,MATRIX SCM LIMITED,2014926
WANDSWORTH COUNCIL,ASC,SOCIAL SERVICES,DIRECT2,AGENCY STAFF,20283183,140300510,27-May-14,"8,084.36",Revenue,MATRIX SCM LIMITED,2014926
WANDSWORTH COUNCIL,ASC,SOCIAL SERVICES,DIRECT2,AGENCY STAFF,20283184,140300510,27-May-14,"8,024.44",Revenue,MATRIX SCM LIMITED,2014926
WANDSWORTH COUNCIL,ASC,SOCIAL SERVICES,DIRECT2,AGENCY STAFF,20283600,140300510,30-May-14,"3,927.28",Revenue,MATRIX SCM LIMITED,2014926
WANDSWORTH COUNCIL,ASC,ADMINISTRATION,INDIRECT,STAFF ADVERTISING - VACANCIES,20282414,140400960,16-May-14,"1,308.00",Revenue,PENNA PLC,2016362
WANDSWORTH COUNCIL,ASC,SOCIAL SERVICES,OTHER AGENCIES,EXTERNAL OUTREACH,398380,140543330,02-May-14,940.56,Revenue,ACTION ON HEARING LOSS,SP0000563
WANDSWORTH COUNCIL,ASC,SOCIAL SERVICES,OTHER AGENCIES,EXTERNAL OUTREACH,401381,140543330,09-May-14,528.96,Revenue,ROYAL ASSOCIATION FOR DEAF PEOPLE,SP0001251
WANDSWORTH COUNCIL,ASC,SOCIAL SERVICES,OTHER AGENCIES,EXTERNAL OUTREACH,401382,140543330,09-May-14,919.60,Revenue,ACTION ON HEARING LOSS,SP0001359
WANDSWORTH COUNCIL,ASC,SOCIAL SERVICES,OTHER AGENCIES,EXTERNAL OUTREACH,403663,140543330,13-May-14,919.60,Revenue,ACTION ON HEARING LOSS,SP0001359
WANDSWORTH COUNCIL,ASC,SOCIAL SERVICES,PRIVATE,EXTERNAL RESIDENTIAL CARE,413979,140545330,30-May-14,"6,038.36",Revenue,SIGNHEALTH,SP0000496
WANDSWORTH COUNCIL,ASC,SOCIAL SERVICES,PRIVATE,EXTERNAL RESIDENTIAL CARE,413980,140545330,30-May-14,"7,041.92",Revenue,SIGNHEALTH,SP0000496
WANDSWORTH COUNCIL,ASC,SOCIAL SERVICES,PRIVATE,EXTERNAL RESIDENTIAL CARE,413981,140545330,30-May-14,"5,950.76",Revenue,SIGNHEALTH,SP0000496
WANDSWORTH COUNCIL,ASC,SOCIAL SERVICES,PRIVATE,EXTERNAL RESIDENTIAL CARE,401219,140545330,09-May-14,"24,000.00",Revenue,ACTION ON HEARING LOSS,SP0000563
WANDSWORTH COUNCIL,ASC,SOCIAL SERVICES,PRIVATE,EXTERNAL RESIDENTIAL CARE,401220,140545330,09-May-14,"4,800.00",Revenue,ACTION ON HEARING LOSS,SP0000563
WANDSWORTH COUNCIL,ASC,SOCIAL SERVICES,PRIVATE,EXTERNAL RESIDENTIAL CARE,401221,140545330,09-May-14,"4,800.00",Revenue,ACTION ON HEARING LOSS,SP0000563
WANDSWORTH COUNCIL,ASC,SOCIAL SERVICES,PRIVATE,EXTERNAL RESIDENTIAL CARE,401210,140545330,09-May-14,"3,874.96",Revenue,VIRIDIAN HOUSING,SP0001289
WANDSWORTH COUNCIL,ASC,SOCIAL SERVICES,PRIVATE,EXTERNAL RESIDENTIAL CARE,408128,140545330,20-May-14,"3,131.32",Revenue,ACTION ON HEARING LOSS,SP0001359
WANDSWORTH COUNCIL,ASC,SOCIAL SERVICES,PRIVATE,EXTERNAL RESIDENTIAL CARE,408129,140545330,20-May-14,"3,100.52",Revenue,ACTION ON HEARING LOSS,SP0001359
WANDSWORTH COUNCIL,ASC,SOCIAL SERVICES,CUSTOMER & CLIENT RECPTS - EXT,CL CONT EXTERNAL RESIDENTIAL,401210,140580720,09-May-14,-319.40,Revenue,VIRIDIAN HOUSING,SP0001289
WANDSWORTH COUNCIL,ASC,SOCIAL SERVICES,CUSTOMER & CLIENT RECPTS - EXT,CL CONT EXTERNAL RESIDENTIAL,408128,140580720,20-May-14,-315.20,Revenue,ACTION ON HEARING LOSS,SP0001359
WANDSWORTH COUNCIL,ASC,SOCIAL SERVICES,CUSTOMER & CLIENT RECPTS - EXT,CL CONT EXTERNAL RESIDENTIAL,408129,140580720,20-May-14,-319.40,Revenue,ACTION ON HEARING LOSS,SP0001359
WANDSWORTH COUNCIL,ASC,SOCIAL SERVICES,PRIVATE,EXTERNAL HOMECARE,401299,142045300,09-May-14,528.00,Revenue,LONDON CARE PLC,SP0001035
WANDSWORTH COUNCIL,ASC,SOCIAL SERVICES,PRIVATE,EXTERNAL HOMECARE,414115,142045300,30-May-14,540.43,Revenue,LONDON CARE PLC,SP0001035
WANDSWORTH COUNCIL,ASC,SOCIAL SERVICES,PRIVATE,EXTERNAL HOMECARE,408321,142045300,20-May-14,287.84,Revenue,HFH HOMECARE,SP0001058
WANDSWORTH COUNCIL,ASC,SOCIAL SERVICES,PRIVATE,EXTERNAL HOMECARE,403589,142045300,13-May-14,696.50,Revenue,SUPREME CARE SERVICE LTD,SP0001600
WANDSWORTH COUNCIL,ASC,SOCIAL SERVICES,PRIVATE,EXTERNAL NURSING CARE,397805,142045310,01-May-14,"3,400.94",Revenue,HAVELOCK COURT NURSING HOME,SP0000024
WANDSWORTH COUNCIL,ASC,SOCIAL SERVICES,PRIVATE,EXTERNAL NURSING CARE,408894,142045310,21-May-14,"3,400.00",Revenue,HAVELOCK COURT NURSING HOME,SP0000024
WANDSWORTH COUNCIL,ASC,SOCIAL SERVICES,PRIVATE,EXTERNAL NURSING CARE,408132,142045310,20-May-14,"2,815.89",Revenue,ROSEDENE NURSING HOME,SP0000316
WANDSWORTH COUNCIL,ASC,SOCIAL SERVICES,PRIVATE,EXTERNAL NURSING CARE,408135,142045310,20-May-14,"2,815.88",Revenue,ROSEDENE NURSING HOME,SP0000316
WANDSWORTH COUNCIL,ASC,SOCIAL SERVICES,PRIVATE,EXTERNAL NURSING CARE,408136,142045310,20-May-14,"2,815.89",Revenue,ROSEDENE NURSING HOME,SP0000316
WANDSWORTH COUNCIL,ASC,SOCIAL SERVICES,PRIVATE,EXTERNAL NURSING CARE,408140,142045310,20-May-14,"2,815.88",Revenue,ROSEDENE NURSING HOME,SP0000316
WANDSWORTH COUNCIL,ASC,SOCIAL SERVICES,PRIVATE,EXTERNAL NURSING CARE,398686,142045310,02-May-14,"3,138.52",Revenue,TRINITY COURT NURSING HOME,SP0001001
WANDSWORTH COUNCIL,ASC,SOCIAL SERVICES,PRIVATE,EXTERNAL NURSING CARE,398699,142045310,02-May-14,"2,828.00",Revenue,TRINITY COURT NURSING HOME,SP0001001
WANDSWORTH COUNCIL,ASC,SOCIAL SERVICES,PRIVATE,EXTERNAL RESIDENTIAL CARE,398667,142045330,02-May-14,"2,554.56",Revenue,RICHARD CUSDEN HOMES LTD,SP0000268
WANDSWORTH COUNCIL,ASC,SOCIAL SERVICES,PRIVATE,EXTERNAL RESIDENTIAL CARE,406469,142045330,16-May-14,"1,928.13",Revenue,ASTRA HOMES LTD,SP0000374
WANDSWORTH COUNCIL,ASC,SOCIAL SERVICES,PRIVATE,EXTERNAL RESIDENTIAL CARE,406470,142045330,16-May-14,"2,490.50",Revenue,ASTRA HOMES LTD,SP0000374
WANDSWORTH COUNCIL,ASC,SOCIAL SERVICES,PRIVATE,EXTERNAL RESIDENTIAL CARE,406475,142045330,16-May-14,"2,164.28",Revenue,ASTRA HOMES LTD,SP0000374
WANDSWORTH COUNCIL,ASC,SOCIAL SERVICES,PRIVATE,EXTERNAL RESIDENTIAL CARE,406476,142045330,16-May-14,"2,795.53",Revenue,ASTRA HOMES LTD,SP0000374
WANDSWORTH COUNCIL,ASC,SOCIAL SERVICES,PRIVATE,EXTERNAL RESIDENTIAL CARE,406481,142045330,16-May-14,"1,928.13",Revenue,ASTRA HOMES LTD,SP0000374
WANDSWORTH COUNCIL,ASC,SOCIAL SERVICES,PRIVATE,EXTERNAL RESIDENTIAL CARE,406482,142045330,16-May-14,"2,490.50",Revenue,ASTRA HOMES LTD,SP0000374
WANDSWORTH COUNCIL,ASC,SOCIAL SERVICES,PRIVATE,EXTERNAL RESIDENTIAL CARE,401206,142045330,09-May-14,"5,092.99",Revenue,229 MITCHAM LANE LTD,SP0000884
WANDSWORTH COUNCIL,ASC,SOCIAL SERVICES,PRIVATE,EXTERNAL RESIDENTIAL CARE,405444,142045330,15-May-14,"2,974.09",Revenue,LA ROSA LONDON LTD,SP0000957
WANDSWORTH COUNCIL,ASC,SOCIAL SERVICES,PRIVATE,EXTERNAL RESIDENTIAL CARE,397783,142045330,01-May-14,"3,294.30",Revenue,DEEPDENE CARE LTD,SP0001199
WANDSWORTH COUNCIL,ASC,SOCIAL SERVICES,PRIVATE,EXTERNAL RESIDENTIAL CARE,397785,142045330,01-May-14,"3,289.29",Revenue,DEEPDENE CARE LTD,SP0001199
WANDSWORTH COUNCIL,ASC,SOCIAL SERVICES,PRIVATE,EXTERNAL RESIDENTIAL CARE,397786,142045330,01-May-14,"2,156.79",Revenue,DEEPDENE CARE LTD,SP0001199
WANDSWORTH COUNCIL,ASC,SOCIAL SERVICES,PRIVATE,EXTERNAL RESIDENTIAL CARE,397787,142045330,01-May-14,"2,690.31",Revenue,DEEPDENE CARE LTD,SP0001199
WANDSWORTH COUNCIL,ASC,SOCIAL SERVICES,PRIVATE,EXTERNAL RESIDENTIAL CARE,397788,142045330,01-May-14,"2,156.79",Revenue,DEEPDENE CARE LTD,SP0001199
